Workbook

Sheet Instructions (hidden)
A1: Historical Cl2 and CT Spreadsheet
B2: Instructions
A3: > The purpose of this database is to assess a water system's historical chlorine dose and residual and
A4: disinfection (CT) performance data.
A5: > The Cl2 input data requires chlorine dose and plant residual data.
A6: > The CT database requires data needed to develop the CT profile, including plant flow rate, pH, temperature
A7: residuals, volume and baffling factors for various segments through the plant.
A8: > The State-specific CT requirement should be entered into the appropriate cell on the DataEntryValues(CT)
A9: worksheet. If the State has a more stringent CT goal for their systems, this should be entered as well;
A10: otherwise, a CT goal of twice the required amount will be calculated. The goal will be shown on the CT plots.
A11: > The residual data needed to develop the CT profile is also needed used for the chlorine residual analysis;
A12: while it must be entered on two different worksheets, it can be copied/pasted to minimize data entry.
A16: The following is helpful for entering the CT data.
A17: Entering data from another spreadsheet (copy/paste):
A18: 1. | B18: When entering (copying) data sets from another spreadsheet, use the DataEntryPaste worksheet. This
B19: will reduce problems that could occur due to formatting differences. Typically, this worksheet is only
B20: used to start a plant disinfection profile. To enter new data at a later time, use the DataEntryValues
B21: worksheet.
A22: 2. | B22: Before entering new data, you should clear the data entry area of any pre-existing data. This can be
B23: performed by clicking on the CLEAR button.
A24: 3. | B24: After the data is entered, click the TRANSFER button to transfer the data to the database.
B25: A message will appear notifying the user that the data in the database (DataEntryValues worksheet)
B26: will be replaced.
A27: 4. | B27: Go to the DataEntryValues worksheet and enter the plant name, inactivation target, and segment
B28: information (i.e., volume, baffle factor).
A29: 5. | B29: Click the UPDATE button to develop the summary report.
A31: Entering individual data from plant records:
A32: 1. | B32: When entering data from plant records, use the DataEntryValues worksheet.
A33: 2. | B33: Before entering new data, you should clear the database of any pre-existing data. This can be
B34: performed by clicking on the CLEAR button.
A35: 3. | B35: Enter the plant name, inactivation target, and segment information (i.e., volume, baffle factor).
A36: 4. | B36: After data is entered, click on the UPDATE button to develop the Summary Report.
C43: =A1 -> Historical Cl2 and CT Spreadsheet
C44: FILE: | D44: Cl2&CTspreadsheetV1.xls
C45: AUTHOR: | D45: L. DeMers
C46: COMPANY: | D46: Process Applications, Inc.
C47: PURPOSE: | D47: To assess inactivation ratio for a water treatment plant
B49: DATE MODIFIED: | D49: MODIFICATIONS & BY WHOM:
B50: 2000-04-29 | C50: LDD modified Optimization Assessment Software (turbidity) to calculate inactivation
C51: ratio (CT measured/CT required).
B52: 2001-08-30 | C52: LDD modified data entry to accommodate leap year.
B53: 2002-02-23 | C53: LDD added annual statistics for chlorine residual, pH, and temperature for each
C54: segment. Also added comments to make spreadsheet more user friendly.
B55: 2002-07-01 | C55: LDD modified section 5 to allow input of varying water level in a basin such as a
C56: clearwell.
B57: 2002-10-09 | C57: LDD corrected error in segment 5 in MonthDist worksheet. Formula did not include basin
C58: depth in calculation.
B59: 2004-09-23 | C59: LDD combined historical chlorine dose and residual spreadsheet with CT spreadsheet.
B60: 2006-03-21 | C60: Update spreadsheet for DBP PBT. Removed DS chlorine residual data to make
C61: spreadsheet plant-based information only. Modified charts to show disinfection ratio
C62: for each segment and total.
B64: Model by: Process Applications, Inc. Fort Collins, CO 970-223-5787

Sheet Criteria (hidden)
B1: MenuSheetLink | C1: 1 | F1: MenuSheetLink1 | G1: 1 | J1: MenuSheetLink2 | K1: 1
C2: Select Data Entry | G2: Select Chlorine Charts | K2: Select CT Charts
C3: Menu | G3: Menu | K3: Menu
C4: Chlorine Dose & Residual | G4: Chlorine Dose | K4: Disinfection Summary
C5: CT Input Data (paste values) | G5: Chlorine Residual | K5: Total Inactivation Ratio
C6: CT Input Data (enter values) | G6: Chlorine Dose & Residual | K6: Segment Inactivation Ratio
G7: Chlorine Demand | K7: pH Summary

Sheet Menu
B5: Plant/System Name | C5: Watertown Waterworks
B6: Plant PWS # | C6: ABC123456
B10: This spreadsheet is used to trend chlorine dose and residal data within a treatment plant for 1 year:
B11: Chlorine dose at two locations (e.g., pre and post)
B12: Chlorine residual at two locations (e.g., settled, finished)
B16: This speadsheet is also used to develop a disinfection profile for a plant for 1 year:
B17: Include up to five disinfection segments
B18: Input maximum daily plant flow rate (one location)
B19: Input minimum daily chlorine residual for each segment
B20: Input minimum daily temperature for each segment
B21: Input maximum daily pH for each segment

Sheet Cl2 Input Data (hidden)
A2: Minimum | B2: =MIN(B9:B374) -> 0 | C2: 0 | D2: 0 | E2: 0 | F2: 0 | G2: 0 | H2: 0 | I2: 0 | J2: 0 | K2: 0 | L2: =MIN(L9:L374) -> 0 | M2: =MIN(F9:K374) -> 0 | R2: =MIN(R9:R374) -> 0 | S2: =MIN(S9:S374) -> 0
A3: Maximum | B3: =MAX(B9:B374) -> 0 | C3: 0 | D3: 0 | E3: 0 | F3: 0 | G3: 0 | H3: 0 | I3: 0 | J3: 0 | K3: 0 | L3: =MAX(L9:L374) -> 0 | M3: =MAX(F9:K374) -> 0 | R3: =MAX(R9:R374) -> 0 | S3: =MAX(S9:S374) -> 0
A4: Average | B4: =IF(SUM(B9:B374)=0,,AVERAGE(B9:B374)) -> 0 | C4: =IF(SUM(C9:C374)=0,,AVERAGE(C9:C374)) -> 0 | D4: 0 | E4: 0 | F4: 0 | G4: 0 | H4: 0 | I4: 0 | J4: 0 | K4: 0 | L4: =IF(SUM(L9:L374)=0,,AVERAGE(L9:L374)) -> 0 | M4: =IF(SUM(F9:K374)=0,,AVERAGE(F9:K374)) -> 0 | R4: =IF(SUM(R9:R374)=0,,AVERAGE(R9:R374)) -> 0 | S4: =IF(SUM(S9:S374)=0,,AVERAGE(S9:S374)) -> 0
A7: Dose & Res. | B7: Pre Cl2 Dose | C7: Post Cl2 Dose | D7: Total Cl2 Dose | E7: Settled Residual | F7: Plant Finished Residual | N7: Plant Finished Res. Target | R7: Pre Chlorine Demand (mg/L) | S7: Total Demand (Total Dose - PE Residual)
A8: as mg/L >> | F8: 04:00:00 | G8: 08:00:00 | H8: 12:00:00 | I8: 16:00:00 | J8: 20:00:00 | K8: 1 | L8: Daily Avg. | M8: Daily Min.
A9: 2017-01-01 | D9: =B9+C9 -> 0 | L9: =IF(SUM(F9:K9)=0,,AVERAGE(F9:K9)) -> 0 | M9: =MIN(F9:K9) -> 0 | N9: 0.9 | R9: =IF(B9-E9>0,B9-E9,"") ->  | S9: =IF(D9-M9>0,D9-M9,"") -> 
A10: =+A9+1 -> 2017-01-02 | D10: =B10+C10 -> 0 | L10: =IF(SUM(F10:K10)=0,,AVERAGE(F10:K10)) -> 0 | M10: =MIN(F10:K10) -> 0 | N10: =N9 -> 0.9 | R10: =IF(B10-E10>0,B10-E10,"") -> 
A11: =+A10+1 -> 2017-01-03 | D11: 0 | L11: 0 | M11: 0 | N11: =N10 -> 0.9
A12: 2017-01-04 | D12: 0 | L12: 0 | M12: 0 | N12: 0.9
A13: 2017-01-05 | D13: 0 | L13: 0 | M13: 0 | N13: 0.9
A14: 2017-01-06 | D14: 0 | L14: 0 | M14: 0 | N14: 0.9
A15: 2017-01-07 | D15: 0 | L15: 0 | M15: 0 | N15: 0.9
A16: 2017-01-08 | D16: 0 | L16: 0 | M16: 0 | N16: 0.9
A17: 2017-01-09 | D17: 0 | L17: 0 | M17: 0 | N17: 0.9
A18: 2017-01-10 | D18: 0 | L18: 0 | M18: 0 | N18: 0.9
A19: 2017-01-11 | D19: 0 | L19: 0 | M19: 0 | N19: 0.9
A20: 2017-01-12 | D20: 0 | L20: 0 | M20: 0 | N20: 0.9
A21: 2017-01-13 | D21: 0 | L21: 0 | M21: 0 | N21: 0.9
A22: 2017-01-14 | D22: 0 | L22: 0 | M22: 0 | N22: 0.9
A23: 2017-01-15 | D23: 0 | L23: 0 | M23: 0 | N23: 0.9
A24: 2017-01-16 | D24: 0 | L24: 0 | M24: 0 | N24: 0.9
A25: 2017-01-17 | D25: 0 | L25: 0 | M25: 0 | N25: 0.9
A26: 2017-01-18 | D26: 0 | L26: 0 | M26: 0 | N26: 0.9
A27: 2017-01-19 | D27: 0 | L27: 0 | M27: 0 | N27: 0.9
A28: 2017-01-20 | D28: 0 | L28: 0 | M28: 0 | N28: 0.9
A29: 2017-01-21 | D29: 0 | L29: 0 | M29: 0 | N29: 0.9
A30: 2017-01-22 | D30: 0 | L30: 0 | M30: 0 | N30: 0.9
A31: 2017-01-23 | D31: 0 | L31: 0 | M31: 0 | N31: 0.9
A32: 2017-01-24 | D32: 0 | L32: 0 | M32: 0 | N32: 0.9
A33: 2017-01-25 | D33: 0 | L33: 0 | M33: 0 | N33: 0.9
A34: 2017-01-26 | D34: 0 | L34: 0 | M34: 0 | N34: 0.9
A35: 2017-01-27 | D35: 0 | L35: 0 | M35: 0 | N35: 0.9
A36: 2017-01-28 | D36: 0 | L36: 0 | M36: 0 | N36: 0.9
A37: 2017-01-29 | D37: 0 | L37: 0 | M37: 0 | N37: 0.9
A38: 2017-01-30 | D38: 0 | L38: 0 | M38: 0 | N38: 0.9
A39: 2017-01-31 | D39: 0 | L39: 0 | M39: 0 | N39: 0.9
A40: 2017-02-01 | D40: 0 | L40: 0 | M40: 0 | N40: 0.9
A41: 2017-02-02 | D41: 0 | L41: 0 | M41: 0 | N41: 0.9
A42: 2017-02-03 | D42: 0 | L42: 0 | M42: 0 | N42: 0.9
A43: 2017-02-04 | D43: 0 | L43: 0 | M43: 0 | N43: 0.9
A44: 2017-02-05 | D44: 0 | L44: 0 | M44: 0 | N44: 0.9
A45: 2017-02-06 | D45: 0 | L45: 0 | M45: 0 | N45: 0.9
A46: 2017-02-07 | D46: 0 | L46: 0 | M46: 0 | N46: 0.9
A47: 2017-02-08 | D47: 0 | L47: 0 | M47: 0 | N47: 0.9
A48: 2017-02-09 | D48: 0 | L48: 0 | M48: 0 | N48: 0.9
A49: 2017-02-10 | D49: 0 | L49: 0 | M49: 0 | N49: 0.9
A50: 2017-02-11 | D50: 0 | L50: 0 | M50: 0 | N50: 0.9
A51: 2017-02-12 | D51: 0 | L51: 0 | M51: 0 | N51: 0.9
A52: 2017-02-13 | D52: 0 | L52: 0 | M52: 0 | N52: 0.9
A53: 2017-02-14 | D53: 0 | L53: 0 | M53: 0 | N53: 0.9
A54: 2017-02-15 | D54: 0 | L54: 0 | M54: 0 | N54: 0.9
A55: 2017-02-16 | D55: 0 | L55: 0 | M55: 0 | N55: 0.9
A56: 2017-02-17 | D56: 0 | L56: 0 | M56: 0 | N56: 0.9
A57: 2017-02-18 | D57: 0 | L57: 0 | M57: 0 | N57: 0.9
A58: 2017-02-19 | D58: 0 | L58: 0 | M58: 0 | N58: 0.9
A59: 2017-02-20 | D59: 0 | L59: 0 | M59: 0 | N59: 0.9
A60: 2017-02-21 | D60: 0 | L60: 0 | M60: 0 | N60: 0.9
A61: 2017-02-22 | D61: 0 | L61: 0 | M61: 0 | N61: 0.9
A62: 2017-02-23 | D62: 0 | L62: 0 | M62: 0 | N62: 0.9
A63: 2017-02-24 | D63: 0 | L63: 0 | M63: 0 | N63: 0.9
A64: 2017-02-25 | D64: 0 | L64: 0 | M64: 0 | N64: 0.9
A65: 2017-02-26 | D65: 0 | L65: 0 | M65: 0 | N65: 0.9
A66: 2017-02-27 | D66: 0 | L66: 0 | M66: 0 | N66: 0.9
A67: 2017-02-28 | D67: 0 | L67: 0 | M67: 0 | N67: 0.9
A68: 2017-03-01 | D68: 0 | L68: 0 | M68: 0 | N68: 0.9
A69: 2017-03-02 | D69: 0 | L69: 0 | M69: 0 | N69: 0.9
A70: 2017-03-03 | D70: 0 | L70: 0 | M70: 0 | N70: 0.9
A71: 2017-03-04 | D71: 0 | L71: 0 | M71: 0 | N71: 0.9
A72: 2017-03-05 | D72: 0 | L72: 0 | M72: 0 | N72: 0.9
A73: 2017-03-06 | D73: 0 | L73: 0 | M73: 0 | N73: 0.9 | S73: =IF(D73-M73>0,D73-M73,"") -> 
A74: 2017-03-07 | D74: =B74+C74 -> 0 | L74: =IF(SUM(F74:K74)=0,,AVERAGE(F74:K74)) -> 0 | M74: =MIN(F74:K74) -> 0 | N74: 0.9 | R74: =IF(B74-E74>0,B74-E74,"") -> 
A75: =+A74+1 -> 2017-03-08 | D75: 0 | L75: 0 | M75: 0 | N75: =N74 -> 0.9
A76: 2017-03-09 | D76: 0 | L76: 0 | M76: 0 | N76: 0.9
A77: 2017-03-10 | D77: 0 | L77: 0 | M77: 0 | N77: 0.9
A78: 2017-03-11 | D78: 0 | L78: 0 | M78: 0 | N78: 0.9
A79: 2017-03-12 | D79: 0 | L79: 0 | M79: 0 | N79: 0.9
A80: 2017-03-13 | D80: 0 | L80: 0 | M80: 0 | N80: 0.9
A81: 2017-03-14 | D81: 0 | L81: 0 | M81: 0 | N81: 0.9
A82: 2017-03-15 | D82: 0 | L82: 0 | M82: 0 | N82: 0.9
A83: 2017-03-16 | D83: 0 | L83: 0 | M83: 0 | N83: 0.9
A84: 2017-03-17 | D84: 0 | L84: 0 | M84: 0 | N84: 0.9
A85: 2017-03-18 | D85: 0 | L85: 0 | M85: 0 | N85: 0.9
A86: 2017-03-19 | D86: 0 | L86: 0 | M86: 0 | N86: 0.9
A87: 2017-03-20 | D87: 0 | L87: 0 | M87: 0 | N87: 0.9
A88: 2017-03-21 | D88: 0 | L88: 0 | M88: 0 | N88: 0.9
A89: 2017-03-22 | D89: 0 | L89: 0 | M89: 0 | N89: 0.9
A90: 2017-03-23 | D90: 0 | L90: 0 | M90: 0 | N90: 0.9
A91: 2017-03-24 | D91: 0 | L91: 0 | M91: 0 | N91: 0.9
A92: 2017-03-25 | D92: 0 | L92: 0 | M92: 0 | N92: 0.9
A93: 2017-03-26 | D93: 0 | L93: 0 | M93: 0 | N93: 0.9
A94: 2017-03-27 | D94: 0 | L94: 0 | M94: 0 | N94: 0.9
A95: 2017-03-28 | D95: 0 | L95: 0 | M95: 0 | N95: 0.9
A96: 2017-03-29 | D96: 0 | L96: 0 | M96: 0 | N96: 0.9
A97: 2017-03-30 | D97: 0 | L97: 0 | M97: 0 | N97: 0.9
A98: 2017-03-31 | D98: 0 | L98: 0 | M98: 0 | N98: 0.9
A99: 2017-04-01 | D99: 0 | L99: 0 | M99: 0 | N99: 0.9
A100: 2017-04-02 | D100: 0 | L100: 0 | M100: 0 | N100: 0.9
A101: 2017-04-03 | D101: 0 | L101: 0 | M101: 0 | N101: 0.9
A102: 2017-04-04 | D102: 0 | L102: 0 | M102: 0 | N102: 0.9
A103: 2017-04-05 | D103: 0 | L103: 0 | M103: 0 | N103: 0.9
A104: 2017-04-06 | D104: 0 | L104: 0 | M104: 0 | N104: 0.9
A105: 2017-04-07 | D105: 0 | L105: 0 | M105: 0 | N105: 0.9
A106: 2017-04-08 | D106: 0 | L106: 0 | M106: 0 | N106: 0.9
A107: 2017-04-09 | D107: 0 | L107: 0 | M107: 0 | N107: 0.9
A108: 2017-04-10 | D108: 0 | L108: 0 | M108: 0 | N108: 0.9
A109: 2017-04-11 | D109: 0 | L109: 0 | M109: 0 | N109: 0.9
A110: 2017-04-12 | D110: 0 | L110: 0 | M110: 0 | N110: 0.9
A111: 2017-04-13 | D111: 0 | L111: 0 | M111: 0 | N111: 0.9
A112: 2017-04-14 | D112: 0 | L112: 0 | M112: 0 | N112: 0.9
A113: 2017-04-15 | D113: 0 | L113: 0 | M113: 0 | N113: 0.9
A114: 2017-04-16 | D114: 0 | L114: 0 | M114: 0 | N114: 0.9
A115: 2017-04-17 | D115: 0 | L115: 0 | M115: 0 | N115: 0.9
A116: 2017-04-18 | D116: 0 | L116: 0 | M116: 0 | N116: 0.9
A117: 2017-04-19 | D117: 0 | L117: 0 | M117: 0 | N117: 0.9
A118: 2017-04-20 | D118: 0 | L118: 0 | M118: 0 | N118: 0.9
A119: 2017-04-21 | D119: 0 | L119: 0 | M119: 0 | N119: 0.9
A120: 2017-04-22 | D120: 0 | L120: 0 | M120: 0 | N120: 0.9
A121: 2017-04-23 | D121: 0 | L121: 0 | M121: 0 | N121: 0.9
A122: 2017-04-24 | D122: 0 | L122: 0 | M122: 0 | N122: 0.9
A123: 2017-04-25 | D123: 0 | L123: 0 | M123: 0 | N123: 0.9
A124: 2017-04-26 | D124: 0 | L124: 0 | M124: 0 | N124: 0.9
A125: 2017-04-27 | D125: 0 | L125: 0 | M125: 0 | N125: 0.9
A126: 2017-04-28 | D126: 0 | L126: 0 | M126: 0 | N126: 0.9
A127: 2017-04-29 | D127: 0 | L127: 0 | M127: 0 | N127: 0.9
A128: 2017-04-30 | D128: 0 | L128: 0 | M128: 0 | N128: 0.9
A129: 2017-05-01 | D129: 0 | L129: 0 | M129: 0 | N129: 0.9
A130: 2017-05-02 | D130: 0 | L130: 0 | M130: 0 | N130: 0.9
A131: 2017-05-03 | D131: 0 | L131: 0 | M131: 0 | N131: 0.9
A132: 2017-05-04 | D132: 0 | L132: 0 | M132: 0 | N132: 0.9
A133: 2017-05-05 | D133: 0 | L133: 0 | M133: 0 | N133: 0.9
A134: 2017-05-06 | D134: 0 | L134: 0 | M134: 0 | N134: 0.9
A135: 2017-05-07 | D135: 0 | L135: 0 | M135: 0 | N135: 0.9
A136: 2017-05-08 | D136: 0 | L136: 0 | M136: 0 | N136: 0.9
A137: 2017-05-09 | D137: 0 | L137: 0 | M137: 0 | N137: 0.9 | S137: =IF(D137-M137>0,D137-M137,"") -> 
A138: 2017-05-10 | D138: =B138+C138 -> 0 | L138: =IF(SUM(F138:K138)=0,,AVERAGE(F138:K138)) -> 0 | M138: =MIN(F138:K138) -> 0 | N138: 0.9 | R138: =IF(B138-E138>0,B138-E138,"") -> 
A139: =+A138+1 -> 2017-05-11 | D139: 0 | L139: 0 | M139: 0 | N139: =N138 -> 0.9
A140: 2017-05-12 | D140: 0 | L140: 0 | M140: 0 | N140: 0.9
A141: 2017-05-13 | D141: 0 | L141: 0 | M141: 0 | N141: 0.9
A142: 2017-05-14 | D142: 0 | L142: 0 | M142: 0 | N142: 0.9
A143: 2017-05-15 | D143: 0 | L143: 0 | M143: 0 | N143: 0.9
A144: 2017-05-16 | D144: 0 | L144: 0 | M144: 0 | N144: 0.9
A145: 2017-05-17 | D145: 0 | L145: 0 | M145: 0 | N145: 0.9
A146: 2017-05-18 | D146: 0 | L146: 0 | M146: 0 | N146: 0.9
A147: 2017-05-19 | D147: 0 | L147: 0 | M147: 0 | N147: 0.9
A148: 2017-05-20 | D148: 0 | L148: 0 | M148: 0 | N148: 0.9
A149: 2017-05-21 | D149: 0 | L149: 0 | M149: 0 | N149: 0.9
A150: 2017-05-22 | D150: 0 | L150: 0 | M150: 0 | N150: 0.9
A151: 2017-05-23 | D151: 0 | L151: 0 | M151: 0 | N151: 0.9
A152: 2017-05-24 | D152: 0 | L152: 0 | M152: 0 | N152: 0.9
A153: 2017-05-25 | D153: 0 | L153: 0 | M153: 0 | N153: 0.9
A154: 2017-05-26 | D154: 0 | L154: 0 | M154: 0 | N154: 0.9
A155: 2017-05-27 | D155: 0 | L155: 0 | M155: 0 | N155: 0.9
A156: 2017-05-28 | D156: 0 | L156: 0 | M156: 0 | N156: 0.9
A157: 2017-05-29 | D157: 0 | L157: 0 | M157: 0 | N157: 0.9
A158: 2017-05-30 | D158: 0 | L158: 0 | M158: 0 | N158: 0.9
A159: 2017-05-31 | D159: 0 | L159: 0 | M159: 0 | N159: 0.9
A160: 2017-06-01 | D160: 0 | L160: 0 | M160: 0 | N160: 0.9
A161: 2017-06-02 | D161: 0 | L161: 0 | M161: 0 | N161: 0.9
A162: 2017-06-03 | D162: 0 | L162: 0 | M162: 0 | N162: 0.9
A163: 2017-06-04 | D163: 0 | L163: 0 | M163: 0 | N163: 0.9
A164: 2017-06-05 | D164: 0 | L164: 0 | M164: 0 | N164: 0.9
A165: 2017-06-06 | D165: 0 | L165: 0 | M165: 0 | N165: 0.9
A166: 2017-06-07 | D166: 0 | L166: 0 | M166: 0 | N166: 0.9
A167: 2017-06-08 | D167: 0 | L167: 0 | M167: 0 | N167: 0.9
A168: 2017-06-09 | D168: 0 | L168: 0 | M168: 0 | N168: 0.9
A169: 2017-06-10 | D169: 0 | L169: 0 | M169: 0 | N169: 0.9
A170: 2017-06-11 | D170: 0 | L170: 0 | M170: 0 | N170: 0.9
A171: 2017-06-12 | D171: 0 | L171: 0 | M171: 0 | N171: 0.9
A172: 2017-06-13 | D172: 0 | L172: 0 | M172: 0 | N172: 0.9
A173: 2017-06-14 | D173: 0 | L173: 0 | M173: 0 | N173: 0.9
A174: 2017-06-15 | D174: 0 | L174: 0 | M174: 0 | N174: 0.9
A175: 2017-06-16 | D175: 0 | L175: 0 | M175: 0 | N175: 0.9
A176: 2017-06-17 | D176: 0 | L176: 0 | M176: 0 | N176: 0.9
A177: 2017-06-18 | D177: 0 | L177: 0 | M177: 0 | N177: 0.9
A178: 2017-06-19 | D178: 0 | L178: 0 | M178: 0 | N178: 0.9
A179: 2017-06-20 | D179: 0 | L179: 0 | M179: 0 | N179: 0.9
A180: 2017-06-21 | D180: 0 | L180: 0 | M180: 0 | N180: 0.9
A181: 2017-06-22 | D181: 0 | L181: 0 | M181: 0 | N181: 0.9
A182: 2017-06-23 | D182: 0 | L182: 0 | M182: 0 | N182: 0.9
A183: 2017-06-24 | D183: 0 | L183: 0 | M183: 0 | N183: 0.9
A184: 2017-06-25 | D184: 0 | L184: 0 | M184: 0 | N184: 0.9
A185: 2017-06-26 | D185: 0 | L185: 0 | M185: 0 | N185: 0.9
A186: 2017-06-27 | D186: 0 | L186: 0 | M186: 0 | N186: 0.9
A187: 2017-06-28 | D187: 0 | L187: 0 | M187: 0 | N187: 0.9
A188: 2017-06-29 | D188: 0 | L188: 0 | M188: 0 | N188: 0.9
A189: 2017-06-30 | D189: 0 | L189: 0 | M189: 0 | N189: 0.9
A190: 2017-07-01 | D190: 0 | L190: 0 | M190: 0 | N190: 0.9
A191: 2017-07-02 | D191: 0 | L191: 0 | M191: 0 | N191: 0.9
A192: 2017-07-03 | D192: 0 | L192: 0 | M192: 0 | N192: 0.9
A193: 2017-07-04 | D193: 0 | L193: 0 | M193: 0 | N193: 0.9
A194: 2017-07-05 | D194: 0 | L194: 0 | M194: 0 | N194: 0.9
A195: 2017-07-06 | D195: 0 | L195: 0 | M195: 0 | N195: 0.9
A196: 2017-07-07 | D196: 0 | L196: 0 | M196: 0 | N196: 0.9
A197: 2017-07-08 | D197: 0 | L197: 0 | M197: 0 | N197: 0.9
A198: 2017-07-09 | D198: 0 | L198: 0 | M198: 0 | N198: 0.9
A199: 2017-07-10 | D199: 0 | L199: 0 | M199: 0 | N199: 0.9
A200: 2017-07-11 | D200: 0 | L200: 0 | M200: 0 | N200: 0.9
A201: 2017-07-12 | D201: 0 | L201: 0 | M201: 0 | N201: 0.9 | S201: =IF(D201-M201>0,D201-M201,"") -> 
A202: 2017-07-13 | D202: =B202+C202 -> 0 | L202: =IF(SUM(F202:K202)=0,,AVERAGE(F202:K202)) -> 0 | M202: =MIN(F202:K202) -> 0 | N202: 0.9 | R202: =IF(B202-E202>0,B202-E202,"") -> 
A203: =+A202+1 -> 2017-07-14 | D203: 0 | L203: 0 | M203: 0 | N203: =N202 -> 0.9
... 171 more rows

Sheet Cl2 Dose Summary (hidden)

Sheet Cl2 Residual Summary (hidden)

Sheet Cl2 Dose and Residual Summary (hidden)

Sheet Cl2 Demand Summary (hidden)

Sheet DataEntryPaste(CT) (hidden)
B4: Instruction to users: Paste plant data into the data entry area below. The
B5: data entry area will hold 366 days of data. Following data input, transfer data to the
B6: database by clicking on the data TRANSFER button. Go to the DataEntryValues
B7: worksheet to enter the plant name and performance goals.
K10: Using this button will transfer data from this worksheet to the DataEntryValues
K11: worksheet. All existing data in the DataEntryValues will be overwritten.
A14: Data Entry Area for Posting Data Sets
C15: =CONCATENATE("Segment 1 - ",'DataEntryValues(CT)'!$F$6) -> Segment 1 - | F15: =CONCATENATE("Segment 2 - ",'DataEntryValues(CT)'!$F$9) -> Segment 2 - | I15: =CONCATENATE("Segment 3 - ",'DataEntryValues(CT)'!$F$12) -> Segment 3 - | L15: =CONCATENATE("Segment 4 - ",'DataEntryValues(CT)'!$F$15) -> Segment 4 - | O15: =CONCATENATE("Segment 5 - ",$F$17) -> Segment 5 - mg/L
A16: Date | B16: Flow | C16: Residual | D16: pH | E16: Temp. | F16: Residual | G16: pH | H16: Temp. | I16: Residual | J16: pH | K16: Temp. | L16: Residual | M16: pH | N16: Temp. | O16: Depth | P16: Residual | Q16: pH | R16: Temp.
B17: gpm | C17: mg/L | E17: C | F17: mg/L | H17: C | I17: mg/L | K17: C | L17: mg/L | N17: C | O17: ft | P17: mg/L | R17: C
A18: 2017-01-01 | B18: 4128.486111 | C18: 1.15 | D18: 7.13 | E18: 5.5 | F18: 0.64 | G18: 7.06 | H18: 5.2 | O18: 13.7 | P18: 0.71 | Q18: 7.2 | R18: 4.9
A19: =A18+1 -> 2017-01-02 | B19: 3944.661111 | C19: 1.59 | D19: 7.05 | E19: 6.1 | F19: 0.7 | G19: 7.11 | H19: 6.2 | O19: 13.6 | P19: 0.87 | Q19: 7.3 | R19: 5.2
A20: =A19+1 -> 2017-01-03 | B20: 3980.718056 | C20: 1.34 | D20: 6.95 | E20: 5.2 | F20: 0.76 | G20: 7.06 | H20: 5.3 | O20: 13.3 | P20: 0.75 | Q20: 7.2 | R20: 5.6
A21: 2017-01-04 | B21: 3847.956944 | C21: 1.64 | D21: 7.09 | E21: 5.6 | F21: 0.88 | G21: 7.1 | H21: 5.6 | O21: 11.4 | P21: 0.8 | Q21: 7.1 | R21: 5.8
A22: 2017-01-05 | B22: 4073.475694 | C22: 1.6 | D22: 6.9 | E22: 5.5 | F22: 0.5 | G22: 6.8 | H22: 5.5 | O22: 13.7 | P22: 0.8 | Q22: 7.1 | R22: 5.5
A23: 2017-01-06 | B23: 3936.129167 | C23: 1.4 | D23: 7.17 | E23: 6.2 | F23: 0.77 | G23: 7.09 | H23: 6 | O23: 14.5 | P23: 0.7 | Q23: 7.2 | R23: 4.7
A24: 2017-01-07 | B24: 3894.01875 | C24: 1.6 | D24: 7.07 | E24: 5.4 | F24: 0.77 | G24: 7.09 | H24: 5.6 | O24: 13.4 | P24: 0.8 | Q24: 7.1 | R24: 4.6
A25: 2017-01-08 | B25: 4003.784028 | C25: 1.01 | D25: 7.09 | E25: 4.8 | F25: 0.85 | G25: 7.09 | H25: 5.6 | O25: 14.2 | P25: 0.7 | Q25: 7.1 | R25: 4.8
A26: 2017-01-09 | B26: 4317.316667 | C26: 1.17 | D26: 7.09 | E26: 5 | F26: 1.03 | G26: 7.08 | H26: 5 | O26: 13 | P26: 0.7 | Q26: 7.2 | R26: 4.7
A27: 2017-01-10 | B27: 3821.268056 | C27: 1.47 | D27: 7.17 | E27: 4.8 | F27: 0.36 | G27: 7.16 | H27: 4.9 | O27: 12.9 | P27: 0.7 | Q27: 7.2 | R27: 4.9
A28: 2017-01-11 | B28: 4111.103472 | C28: 1.18 | D28: 7.04 | E28: 5.1 | F28: 0.82 | G28: 7.1 | H28: 5.9 | O28: 13.3 | P28: 0.8 | Q28: 7.2 | R28: 4.8
A29: 2017-01-12 | B29: 4337.779167 | C29: 1.5 | D29: 7.16 | E29: 5.1 | F29: 0.9 | G29: 7.16 | H29: 4.7 | O29: 13.5 | P29: 0.78 | Q29: 7.2 | R29: 4.7
A30: 2017-01-13 | B30: 4042.003472 | C30: 1.5 | D30: 7.16 | E30: 5 | F30: 0.75 | G30: 7.11 | H30: 4.8 | O30: 13 | P30: 0.89 | Q30: 7.2 | R30: 4.7
A31: 2017-01-14 | B31: 3733.132639 | C31: 1.6 | D31: 7.14 | E31: 5.1 | F31: 0.83 | G31: 7.15 | H31: 4.7 | O31: 13 | P31: 0.7 | Q31: 7.3 | R31: 4.9
A32: 2017-01-15 | B32: 3739.243056 | C32: 0.94 | D32: 6.93 | E32: 5.1 | F32: 0.82 | G32: 7.05 | H32: 4.7 | O32: 12 | P32: 0.7 | Q32: 7.1 | R32: 5
A33: 2017-01-16 | B33: 3603.48125 | C33: 1.31 | D33: 7.08 | E33: 5.5 | F33: 1.26 | G33: 7.04 | H33: 5.3 | O33: 13.5 | P33: 0.85 | Q33: 7.1 | R33: 5.2
A34: 2017-01-17 | B34: 3260.036111 | C34: 1.38 | D34: 7.05 | E34: 4.9 | F34: 0.88 | G34: 7.07 | H34: 5 | O34: 11.8 | P34: 0.79 | Q34: 7.1 | R34: 4.5
A35: 2017-01-18 | B35: 3466.543056 | C35: 1.34 | D35: 7.14 | E35: 5.1 | F35: 0.93 | G35: 7.1 | H35: 5.1 | O35: 13 | P35: 0.89 | Q35: 7.2 | R35: 4.9
A36: 2017-01-19 | B36: 3810.491667 | C36: 1.29 | D36: 7.09 | E36: 5.1 | F36: 0.99 | G36: 7.1 | H36: 5.1 | O36: 12.5 | P36: 0.84 | Q36: 7.2 | R36: 5.2
A37: 2017-01-20 | B37: 3611.130556 | C37: 1.1 | D37: 7.08 | E37: 6.9 | F37: 0.98 | G37: 7 | H37: 5.4 | O37: 14.2 | P37: 0.8 | Q37: 7.1 | R37: 4.4
A38: 2017-01-21 | B38: 3617.304861 | C38: 1.6 | D38: 7.06 | E38: 5.3 | F38: 0.53 | G38: 7.09 | H38: 5.5 | O38: 12.9 | P38: 0.9 | Q38: 7.1 | R38: 5.2
A39: 2017-01-22 | B39: 3808.382639 | C39: 1.45 | D39: 7.1 | E39: 5.9 | F39: 1.04 | G39: 7.11 | H39: 5.8 | O39: 11.9 | P39: 0.87 | Q39: 7.1 | R39: 5.2
A40: 2017-01-23 | B40: 3783.951389 | C40: 1.43 | D40: 7.06 | E40: 6 | F40: 0.98 | G40: 7.07 | H40: 5.9 | O40: 11.9 | P40: 0.9 | Q40: 7.2 | R40: 5.5
A41: 2017-01-24 | B41: 3483.565278 | C41: 1.24 | D41: 7.17 | E41: 5.7 | F41: 0.9 | G41: 7.16 | H41: 5.4 | O41: 12.5 | P41: 0.9 | Q41: 7.2 | R41: 5.4
A42: 2017-01-25 | B42: 3413.754167 | C42: 1.24 | D42: 7.18 | E42: 5.2 | F42: 0.96 | G42: 7.23 | H42: 5.3 | O42: 12.5 | P42: 0.9 | Q42: 7.2 | R42: 5.1
A43: 2017-01-26 | B43: 3520.397917 | C43: 1.05 | D43: 7.25 | E43: 5.5 | F43: 0.87 | G43: 7.09 | H43: 5.3 | O43: 13.2 | P43: 0.9 | Q43: 7.1 | R43: 5.3
A44: 2017-01-27 | B44: 3542.250694 | C44: 1.16 | D44: 7.16 | E44: 6.1 | F44: 0.79 | G44: 7.04 | H44: 6.2 | O44: 13.6 | P44: 0.87 | Q44: 7.3 | R44: 6
A45: 2017-01-28 | B45: 3506.236111 | C45: 1.17 | D45: 7.05 | E45: 6 | F45: 0.9 | G45: 7.02 | H45: 6.1 | O45: 14.2 | P45: 0.9 | Q45: 7.2 | R45: 6.4
A46: 2017-01-29 | B46: 3442.1125 | C46: 0.95 | D46: 6.92 | E46: 5.9 | F46: 0.9 | G46: 7 | H46: 6 | O46: 12.8 | P46: 0.8 | Q46: 7.1 | R46: 6
A47: 2017-01-30 | B47: 3596.729167 | C47: 1.08 | D47: 7.13 | E47: 6.4 | F47: 0.85 | G47: 7.13 | H47: 6.4 | O47: 13.2 | P47: 0.86 | Q47: 7.2 | R47: 6.1
A48: 2017-01-31 | B48: 3623.089583 | C48: 1.18 | D48: 7.17 | E48: 5.9 | F48: 0.7 | G48: 7.01 | H48: 5.7 | O48: 12.4 | P48: 0.9 | Q48: 7.2 | R48: 6.1
A49: 2017-02-01 | B49: 3619.421906 | C49: 1.62 | D49: 7.26 | E49: 5.8 | F49: 1.2 | G49: 7 | H49: 6 | O49: 11.3 | P49: 1.7 | Q49: 7.1 | R49: 5.4
A50: 2017-02-02 | B50: 4143.126569 | C50: 1.88 | D50: 7.13 | E50: 5.7 | F50: 1.52 | G50: 7.15 | H50: 5.7 | O50: 14.3 | P50: 1.67 | Q50: 7.2 | R50: 5.8
A51: 2017-02-03 | B51: 4134.095616 | C51: 1.8 | D51: 7.06 | E51: 6.4 | F51: 1.19 | G51: 7.08 | H51: 5.9 | O51: 13.6 | P51: 1.82 | Q51: 7.1 | R51: 6.8
A52: 2017-02-04 | B52: 3394.561276 | C52: 1.63 | D52: 7.1 | E52: 5.7 | F52: 1.49 | G52: 7.05 | H52: 5.5 | O52: 13.9 | P52: 1.65 | Q52: 7.2 | R52: 6.3
A53: 2017-02-05 | B53: 3814.279328 | C53: 1.72 | D53: 7.07 | E53: 6.8 | F53: 1.24 | G53: 7.09 | H53: 7 | O53: 13.6 | P53: 1.1 | Q53: 7.3 | R53: 6.3
A54: 2017-02-06 | B54: 3449.389533 | C54: 1.4 | D54: 7.12 | E54: 6.4 | F54: 1 | G54: 7.12 | H54: 6.8 | O54: 13.9 | P54: 1 | Q54: 7.1 | R54: 6.9
A55: 2017-02-07 | B55: 3326.790407 | C55: 1.32 | D55: 7.13 | E55: 6.8 | F55: 1.21 | G55: 7.15 | H55: 7.6 | O55: 13.9 | P55: 1.02 | Q55: 7.2 | R55: 7.6
A56: 2017-02-08 | B56: 4267.06233 | C56: 1.12 | D56: 7.11 | E56: 10.7 | F56: 0.96 | G56: 6.94 | H56: 8.3 | O56: 13.9 | P56: 0.8 | Q56: 7.2 | R56: 8.5
A57: 2017-02-09 | B57: 4255.497369 | C57: 1.43 | D57: 7.08 | E57: 8.8 | F57: 1.11 | G57: 7.08 | H57: 8.4 | O57: 13 | P57: 1 | Q57: 7.2 | R57: 8.4
A58: 2017-02-10 | B58: 3327.167109 | C58: 1.19 | D58: 7.15 | E58: 8 | F58: 0.8 | G58: 7.04 | H58: 8.2 | O58: 14.4 | P58: 1.2 | Q58: 7.2 | R58: 8.3
A59: 2017-02-11 | B59: 3707.064789 | C59: 1.2 | D59: 7.18 | E59: 8.2 | F59: 0.8 | G59: 7.08 | H59: 8.1 | O59: 14.5 | P59: 1.2 | Q59: 7.2 | R59: 8.2
A60: 2017-02-12 | B60: 4253.919224 | C60: 1.32 | D60: 7.12 | E60: 9.2 | F60: 0.96 | G60: 7.1 | H60: 8.9 | O60: 15.1 | P60: 1.2 | Q60: 7.2 | R60: 8.8
A61: 2017-02-13 | B61: 4244.244646 | C61: 1.32 | D61: 7.14 | E61: 9.8 | F61: 0.92 | G61: 7.06 | H61: 9.1 | O61: 14.3 | P61: 1.04 | Q61: 7.1 | R61: 9.1
A62: 2017-02-14 | B62: 3822.9018 | C62: 1.22 | D62: 7.12 | E62: 9.1 | F62: 0.76 | G62: 7.1 | H62: 9.2 | O62: 14.7 | P62: 1.11 | Q62: 7.2 | R62: 9.9
A63: 2017-02-15 | B63: 3959.599098 | C63: 1.28 | D63: 6.89 | E63: 10.3 | F63: 0.87 | G63: 6.98 | H63: 9.6 | O63: 13.6 | P63: 1.22 | Q63: 7.1 | R63: 10.7
A64: 2017-02-16 | B64: 3268.028112 | C64: 1.42 | D64: 7.11 | E64: 9.8 | F64: 0.8 | G64: 7.13 | H64: 9.9 | O64: 11.7 | P64: 1.23 | Q64: 7.2 | R64: 9.3
A65: 2017-02-17 | B65: 3316.77972 | C65: 1.2 | D65: 7.06 | E65: 10.1 | F65: 0.92 | G65: 7.09 | H65: 10 | O65: 13.4 | P65: 1.3 | Q65: 7.1 | R65: 9
A66: 2017-02-18 | B66: 4130.393407 | C66: 1.3 | D66: 7.02 | E66: 10.6 | F66: 0.8 | G66: 7.04 | H66: 10.3 | O66: 13.7 | P66: 1.3 | Q66: 7.1 | R66: 9.9
A67: 2017-02-19 | B67: 3963.563482 | C67: 1.31 | D67: 7.07 | E67: 10.1 | F67: 0.88 | G67: 7.06 | H67: 10.3 | O67: 10.1 | P67: 0.8 | Q67: 7.2 | R67: 8.9
A68: 2017-02-20 | B68: 3436.337763 | C68: 1.22 | D68: 7.12 | E68: 10.6 | F68: 0.98 | G68: 7.14 | H68: 10.6 | O68: 10.6 | P68: 0.87 | Q68: 7.1 | R68: 10.4
A69: 2017-02-21 | B69: 3622.250812 | C69: 0.82 | D69: 7.14 | E69: 10.8 | F69: 0.81 | G69: 7.18 | H69: 10.7 | O69: 13.7 | P69: 0.8 | Q69: 7.2 | R69: 10.4
A70: 2017-02-22 | B70: 3680.365047 | C70: 1.39 | D70: 7.14 | E70: 11.9 | F70: 1.05 | G70: 7.07 | H70: 11.1 | O70: 12.4 | P70: 0.6 | Q70: 7.1 | R70: 10.8
A71: 2017-02-23 | B71: 4337.695881 | C71: 1.55 | D71: 7.25 | E71: 12.5 | F71: 0.84 | G71: 7.27 | H71: 12.3 | O71: 13 | P71: 0.87 | Q71: 7.2 | R71: 11.3
A72: 2017-02-24 | B72: 3283.657777 | C72: 1.2 | D72: 7.12 | E72: 10.8 | F72: 0.94 | G72: 7.05 | H72: 10.9 | O72: 11.6 | P72: 0.97 | Q72: 7.1 | R72: 11.4
A73: 2017-02-25 | B73: 4026.263711 | C73: 1.12 | D73: 7.05 | E73: 10.1 | F73: 0.99 | G73: 7.08 | H73: 9.9 | O73: 9.6 | P73: 0.8 | Q73: 7.1 | R73: 11.2
A74: 2017-02-26 | B74: 4006.009803 | C74: 0.75 | D74: 7.04 | E74: 11.8 | F74: 0.55 | G74: 6.68 | H74: 10.8 | O74: 10 | P74: 0.69 | Q74: 7.1 | R74: 11.3
A75: 2017-02-27 | B75: 3594.705304 | C75: 1 | D75: 7.13 | E75: 11 | F75: 0.73 | G75: 7.14 | H75: 10.9 | O75: 14 | P75: 0.9 | Q75: 7.1 | R75: 10.9
A76: 2017-02-28 | B76: 4318.440845 | C76: 1.03 | D76: 7.13 | E76: 11.7 | F76: 0.6 | G76: 7.13 | H76: 11.2 | O76: 13.9 | P76: 0.92 | Q76: 7.2 | R76: 11
A77: 2017-03-01 | B77: 3627.90052 | C77: 1.08 | D77: 7.06 | E77: 12.1 | F77: 0.79 | G77: 7.05 | H77: 12.1 | O77: 14.5 | P77: 1 | Q77: 7.1 | R77: 11.9
A78: 2017-03-02 | B78: 3855.302171 | C78: 1.28 | D78: 7.08 | E78: 13 | F78: 0.79 | G78: 7.08 | H78: 12.9 | O78: 13.3 | P78: 0.86 | Q78: 7.1 | R78: 12.4
A79: 2017-03-03 | B79: 4010.898454 | C79: 1.7 | D79: 7.05 | E79: 11.9 | F79: 0.7 | G79: 7.05 | H79: 12 | O79: 14.1 | P79: 1 | Q79: 7.1 | R79: 12.1
A80: 2017-03-04 | B80: 3430.953076 | C80: 1.3 | D80: 7.14 | E80: 12.3 | F80: 0.6 | G80: 7.05 | H80: 13.7 | O80: 14.5 | P80: 0.96 | Q80: 7.1 | R80: 13.6
A81: 2017-03-05 | B81: 3814.505002 | C81: 0.92 | D81: 7.05 | E81: 14.7 | F81: 0.48 | G81: 7.07 | H81: 14.8 | O81: 10.9 | P81: 0.97 | Q81: 7.2 | R81: 14
A82: 2017-03-06 | B82: 3733.032558 | C82: 1.4 | D82: 6.9 | E82: 14.7 | F82: 0.7 | G82: 6.99 | H82: 14.5 | O82: 10.8 | P82: 1.02 | Q82: 7.1 | R82: 14
A83: 2017-03-07 | B83: 3941.962477 | C83: 0.64 | D83: 7.13 | E83: 13.7 | F83: 0.87 | G83: 7 | H83: 13.7 | O83: 11.2 | P83: 0.89 | Q83: 7.2 | R83: 12.6
A84: =A83+1 -> 2017-03-08 | B84: 4007.202428 | C84: 1.2 | D84: 7.09 | E84: 14.2 | F84: 0.61 | G84: 7.1 | H84: 13.8 | O84: 13.9 | P84: 0.96 | Q84: 7.1 | R84: 15.3
A85: 2017-03-09 | B85: 3434.30105 | C85: 0.84 | D85: 7.1 | E85: 14.3 | F85: 0.47 | G85: 7.03 | H85: 14.5 | O85: 13.7 | P85: 0.92 | Q85: 7.1 | R85: 14.2
A86: 2017-03-10 | B86: 3617.790272 | C86: 1.1 | D86: 7.1 | E86: 15.4 | F86: 0.38 | G86: 7.08 | H86: 15.2 | O86: 12.3 | P86: 0.97 | Q86: 7.1 | R86: 14
A87: 2017-03-11 | B87: 4297.929258 | C87: 1.2 | D87: 7.06 | E87: 15 | F87: 0.52 | G87: 7.12 | H87: 15 | O87: 13 | P87: 1 | Q87: 7.1 | R87: 14.4
A88: 2017-03-12 | B88: 4198.643423 | C88: 1.2 | D88: 7.08 | E88: 15.1 | F88: 0.78 | G88: 7.09 | H88: 15.1 | O88: 11.9 | P88: 0.99 | Q88: 7.1 | R88: 14.5
A89: 2017-03-13 | B89: 3880.038257 | C89: 1.06 | D89: 6.92 | E89: 14.5 | F89: 0.54 | G89: 6.97 | H89: 14.7 | O89: 9.2 | P89: 1.05 | Q89: 7.1 | R89: 14.5
A90: 2017-03-14 | B90: 4224.078012 | C90: 1.03 | D90: 7.13 | E90: 14.9 | F90: 0.65 | G90: 7.08 | H90: 14.6 | O90: 9 | P90: 0.92 | Q90: 7.1 | R90: 14.6
A91: 2017-03-15 | B91: 4171.095746 | C91: 0.88 | D91: 6.97 | E91: 15.8 | F91: 0.47 | G91: 6.99 | H91: 15.7 | O91: 12.6 | P91: 0.98 | Q91: 7 | R91: 14.6
A92: 2017-03-16 | B92: 3751.424515 | C92: 1.04 | D92: 6.98 | E92: 15.1 | F92: 0.4 | G92: 7.02 | H92: 15.1 | O92: 9.9 | P92: 0.99 | Q92: 7.1 | R92: 14.6
A93: 2017-03-17 | B93: 3744.619932 | C93: 0.93 | D93: 7.04 | E93: 15.5 | F93: 0.52 | G93: 7.08 | H93: 15.6 | O93: 11.9 | P93: 0.91 | Q93: 7.2 | R93: 15.4
A94: 2017-03-18 | B94: 3934.085367 | C94: 0.7 | D94: 7.1 | E94: 15.2 | F94: 0.49 | G94: 7.14 | H94: 15.2 | O94: 11.5 | P94: 0.9 | Q94: 7.2 | R94: 15.8
A95: 2017-03-19 | B95: 3275.319266 | C95: 0.7 | D95: 7.04 | E95: 15.2 | F95: 0.39 | G95: 7.04 | H95: 16.3 | O95: 11.6 | P95: 0.91 | Q95: 7.1 | R95: 15.6
A96: 2017-03-20 | B96: 3968.599319 | C96: 0.58 | D96: 7.13 | E96: 15.8 | F96: 0.31 | G96: 7.2 | H96: 15.9 | O96: 11.6 | P96: 0.89 | Q96: 7.2 | R96: 16.1
A97: 2017-03-21 | B97: 4276.627657 | C97: 0.58 | D97: 7.27 | E97: 16.3 | F97: 0.37 | G97: 7.19 | H97: 15.8 | O97: 10.3 | P97: 0.93 | Q97: 7.1 | R97: 16.3
A98: 2017-03-22 | B98: 4226.108022 | C98: 0.48 | D98: 7.12 | E98: 15.7 | F98: 0.3 | G98: 7.1 | H98: 16 | O98: 12.9 | P98: 0.97 | Q98: 7.1 | R98: 16.1
A99: 2017-03-23 | B99: 3975.177604 | C99: 0.76 | D99: 7.18 | E99: 16.5 | F99: 0.36 | G99: 7.22 | H99: 16.3 | O99: 11.9 | P99: 0.95 | Q99: 7.3 | R99: 16
A100: 2017-03-24 | B100: 3461.78114 | C100: 0.72 | D100: 7.12 | E100: 16.9 | F100: 0.3 | G100: 7.09 | H100: 16.9 | O100: 13.9 | P100: 1.1 | Q100: 7.1 | R100: 16
A101: 2017-03-25 | B101: 4202.56182 | C101: 0.86 | D101: 7.11 | E101: 16.9 | F101: 0.3 | G101: 7.1 | H101: 17 | O101: 14.4 | P101: 1.05 | Q101: 7.1 | R101: 15
A102: 2017-03-26 | B102: 3718.233713 | C102: 0.85 | D102: 7.02 | E102: 16.7 | F102: 0.45 | G102: 7.11 | H102: 16.8 | O102: 13.4 | P102: 0.82 | Q102: 7.1 | R102: 16.6
A103: 2017-03-27 | B103: 4021.056168 | C103: 0.26 | D103: 6.97 | E103: 16.7 | F103: 0.09 | G103: 6.98 | H103: 16.9 | O103: 13.6 | P103: 0.94 | Q103: 7.1 | R103: 17
A104: 2017-03-28 | B104: 3459.980974 | C104: 1.02 | D104: 7.05 | E104: 16.6 | F104: 0.3 | G104: 7.14 | H104: 16.7 | O104: 9.7 | P104: 1.02 | Q104: 7.1 | R104: 16.8
A105: 2017-03-29 | B105: 3939.843623 | C105: 0.85 | D105: 7.02 | E105: 17.2 | F105: 0.31 | G105: 7.09 | H105: 17 | O105: 10.5 | P105: 0.98 | Q105: 7.1 | R105: 16.7
A106: 2017-03-30 | B106: 3428.951684 | C106: 1.35 | D106: 7.04 | E106: 16.9 | F106: 0.76 | G106: 7.06 | H106: 16.9 | O106: 10.6 | P106: 1.01 | Q106: 7.1 | R106: 16.1
A107: 2017-03-31 | B107: 3354.918794 | C107: 1.1 | D107: 7.09 | E107: 17.2 | F107: 0.39 | G107: 7.09 | H107: 17 | O107: 10.8 | P107: 1.03 | Q107: 7.1 | R107: 16.6
A108: 2017-04-01 | B108: 4311.64997 | C108: 1.2 | D108: 7.05 | E108: 16.7 | F108: 0.39 | G108: 7.11 | H108: 16.8 | O108: 13.3 | P108: 0.9 | Q108: 7.1 | R108: 15.6
A109: 2017-04-02 | B109: 4224.191285 | C109: 1.16 | D109: 7.05 | E109: 17.3 | F109: 0.69 | G109: 6.97 | H109: 17.1 | O109: 12.5 | P109: 0.92 | Q109: 7.1 | R109: 17
A110: 2017-04-03 | B110: 3877.259495 | C110: 0.86 | D110: 7.17 | E110: 17.2 | F110: 0.57 | G110: 7.18 | H110: 17.3 | O110: 11.6 | P110: 0.88 | Q110: 7.2 | R110: 16.7
A111: 2017-04-04 | B111: 3914.198347 | C111: 0.98 | D111: 7.13 | E111: 16.3 | F111: 0.53 | G111: 7.05 | H111: 16.6 | O111: 11 | P111: 0.87 | Q111: 7.1 | R111: 17
A112: 2017-04-05 | B112: 4295.814957 | C112: 1.06 | D112: 7.03 | E112: 17.3 | F112: 0.77 | G112: 7.05 | H112: 17.4 | O112: 11 | P112: 1 | Q112: 7.1 | R112: 17
A113: 2017-04-06 | B113: 3531.749821 | C113: 0.84 | D113: 7.2 | E113: 17 | F113: 0.57 | G113: 7.09 | H113: 17.1 | O113: 13.7 | P113: 1 | Q113: 7.1 | R113: 16.7
A114: 2017-04-07 | B114: 4141.663333 | C114: 0.65 | D114: 7.05 | E114: 16.5 | F114: 0.38 | G114: 7.01 | H114: 16.7 | O114: 11.9 | P114: 0.97 | Q114: 7.1 | R114: 16.8
A115: 2017-04-08 | B115: 3358.358872 | C115: 0.82 | D115: 7.07 | E115: 16.4 | F115: 0.57 | G115: 7.03 | H115: 16.4 | O115: 10 | P115: 0.89 | Q115: 7.1 | R115: 17.2
A116: 2017-04-09 | B116: 3794.86153 | C116: 0.89 | D116: 7.06 | E116: 16.6 | F116: 0.47 | G116: 7.01 | H116: 16.6 | O116: 11.3 | P116: 1 | Q116: 7.1 | R116: 16.9
A117: 2017-04-10 | B117: 3621.057666 | C117: 0.9 | D117: 7.02 | E117: 17 | F117: 0.52 | G117: 7.08 | H117: 17.2 | O117: 14.2 | P117: 0.88 | Q117: 7.1 | R117: 16.6
A118: 2017-04-11 | B118: 3829.780888 | C118: 0.59 | D118: 7.17 | E118: 17.4 | F118: 0.12 | G118: 7.08 | H118: 17.5 | O118: 11.3 | P118: 1 | Q118: 7.1 | R118: 17.3
A119: 2017-04-12 | B119: 3900.839169 | C119: 1.14 | D119: 7.05 | E119: 17.7 | F119: 0.43 | G119: 7 | H119: 17.5 | O119: 14.8 | P119: 1 | Q119: 7.1 | R119: 17.3
A120: 2017-04-13 | B120: 4266.955518 | C120: 0.65 | D120: 6.95 | E120: 18.3 | F120: 0.32 | G120: 7.1 | H120: 18 | O120: 12.2 | P120: 0.71 | Q120: 7.1 | R120: 18.1
A121: 2017-04-14 | B121: 3998.198576 | C121: 0.83 | D121: 7.11 | E121: 17.2 | F121: 0.3 | G121: 7.05 | H121: 17 | O121: 13.2 | P121: 0.8 | Q121: 7.1 | R121: 17.6
A122: 2017-04-15 | B122: 3646.838818 | C122: 1.03 | D122: 7.1 | E122: 17.8 | F122: 0.3 | G122: 7.03 | H122: 17.4 | O122: 12.4 | P122: 0.8 | Q122: 7.1 | R122: 17.8
A123: 2017-04-16 | B123: 4253.436527 | C123: 1.05 | D123: 7.04 | E123: 17.6 | F123: 0.27 | G123: 7.04 | H123: 17.7 | O123: 11.5 | P123: 0.71 | Q123: 7 | R123: 17.4
A124: 2017-04-17 | B124: 3770.022696 | C124: 0.54 | D124: 7.02 | E124: 18.2 | F124: 0.29 | G124: 7.03 | H124: 18.8 | O124: 12.7 | P124: 0.72 | Q124: 7.1 | R124: 18.1
A125: 2017-04-18 | B125: 4146.172448 | C125: 0.88 | D125: 6.88 | E125: 17.8 | F125: 0.34 | G125: 6.86 | H125: 18 | O125: 12.7 | P125: 0.72 | Q125: 7.1 | R125: 17.8
A126: 2017-04-19 | B126: 3545.223381 | C126: 1.25 | D126: 7.05 | E126: 17.5 | F126: 0.43 | G126: 6.97 | H126: 17.9 | O126: 11.3 | P126: 0.68 | Q126: 7 | R126: 17.6
A127: 2017-04-20 | B127: 3806.608297 | C127: 1 | D127: 7 | E127: 17.5 | F127: 0.3 | G127: 7.01 | H127: 17.6 | O127: 12.4 | P127: 0.92 | Q127: 7.1 | R127: 18
A128: 2017-04-21 | B128: 3609.322405 | C128: 0.8 | D128: 7.03 | E128: 18 | F128: 0.49 | G128: 7.05 | H128: 18 | O128: 13.9 | P128: 1.14 | Q128: 7.1 | R128: 17.6
A129: 2017-04-22 | B129: 3913.590628 | C129: 0.9 | D129: 7.03 | E129: 17.7 | F129: 0.3 | G129: 7.05 | H129: 17.9 | O129: 12.6 | P129: 1.17 | Q129: 7 | R129: 17.4
A130: 2017-04-23 | B130: 3478.42152 | C130: 0.96 | D130: 7.17 | E130: 18 | F130: 0.4 | G130: 7.19 | H130: 18.1 | O130: 10.9 | P130: 1.1 | Q130: 7.1 | R130: 17.7
A131: 2017-04-24 | B131: 4040.043618 | C131: 0.72 | D131: 7.56 | E131: 18 | F131: 0.67 | G131: 7.16 | H131: 18.8 | O131: 11.9 | P131: 1.05 | Q131: 7.4 | R131: 18.1
A132: 2017-04-25 | B132: 4225.110847 | C132: 1.07 | D132: 7.42 | E132: 18.1 | F132: 0.39 | G132: 7.38 | H132: 19 | O132: 11.5 | P132: 1.2 | Q132: 7.4 | R132: 18.5
A133: 2017-04-26 | B133: 3962.645348 | C133: 0.62 | D133: 7.55 | E133: 18.1 | F133: 0.29 | G133: 7.48 | H133: 18.5 | O133: 10.2 | P133: 1.22 | Q133: 7.4 | R133: 18.3
A134: 2017-04-27 | B134: 3987.795346 | C134: 0.79 | D134: 7.63 | E134: 18.6 | F134: 0.47 | G134: 7.59 | H134: 18.3 | O134: 14 | P134: 1.17 | Q134: 7.6 | R134: 18.2
A135: 2017-04-28 | B135: 3452.366866 | C135: 0.68 | D135: 7.5 | E135: 18.2 | F135: 0.32 | G135: 7.48 | H135: 18.3 | O135: 12.1 | P135: 1.17 | Q135: 7.5 | R135: 18.8
A136: 2017-04-29 | B136: 3720.678165 | C136: 0.52 | D136: 7.48 | E136: 18.5 | F136: 0.42 | G136: 7.47 | H136: 18.5 | O136: 9.9 | P136: 1.13 | Q136: 7.5 | R136: 18.8
A137: 2017-04-30 | B137: 3885.808246 | C137: 0.47 | D137: 7.52 | E137: 18.4 | F137: 0.2 | G137: 7.6 | H137: 18.6 | O137: 9.2 | P137: 1.2 | Q137: 7.5 | R137: 18.9
A138: 2017-05-01 | B138: 4157.07422 | C138: 0.71 | D138: 7.4 | E138: 18.4 | F138: 0.39 | G138: 7.38 | H138: 18.5 | O138: 10.5 | P138: 1.2 | Q138: 7.4 | R138: 18.4
A139: 2017-05-02 | B139: 3809.102405 | C139: 0.41 | D139: 7.46 | E139: 19.3 | F139: 0.22 | G139: 7.48 | H139: 19.3 | O139: 13.4 | P139: 1.11 | Q139: 7.4 | R139: 18.9
A140: 2017-05-03 | B140: 3279.753219 | C140: 0.77 | D140: 7.49 | E140: 18.9 | F140: 0.48 | G140: 7.43 | H140: 18.9 | O140: 14.1 | P140: 1.24 | Q140: 7.4 | R140: 18.7
A141: 2017-05-04 | B141: 3345.576945 | C141: 0.6 | D141: 7.43 | E141: 19.5 | F141: 0.47 | G141: 7.39 | H141: 19.5 | O141: 12.5 | P141: 1.24 | Q141: 7.4 | R141: 19
A142: 2017-05-05 | B142: 3831.602024 | C142: 0.62 | D142: 7.57 | E142: 19.7 | F142: 0.4 | G142: 7.55 | H142: 19.5 | O142: 14.9 | P142: 1.18 | Q142: 7.4 | R142: 19.5
A143: 2017-05-06 | B143: 4068.440627 | C143: 0.98 | D143: 7.57 | E143: 19.9 | F143: 0.3 | G143: 7.54 | H143: 20.2 | O143: 11.8 | P143: 1.15 | Q143: 7.4 | R143: 20.2
A144: 2017-05-07 | B144: 3298.338978 | C144: 0.7 | D144: 7.46 | E144: 20.4 | F144: 0.2 | G144: 7.51 | H144: 20.3 | O144: 9.6 | P144: 1.14 | Q144: 7.4 | R144: 20.1
A145: 2017-05-08 | B145: 4111.107169 | C145: 1.13 | D145: 7.45 | E145: 20.4 | F145: 0.58 | G145: 7.42 | H145: 20.6 | O145: 11.2 | P145: 1.24 | Q145: 7.4 | R145: 20.4
A146: 2017-05-09 | B146: 3650.139751 | C146: 0.54 | D146: 7.41 | E146: 20.8 | F146: 0.29 | G146: 7.41 | H146: 20.8 | O146: 11.6 | P146: 1.2 | Q146: 7.4 | R146: 21.1
A147: 2017-05-10 | B147: 3575.942541 | C147: 0.26 | D147: 7.57 | E147: 22 | F147: 0.2 | G147: 7.4 | H147: 21.8 | O147: 13 | P147: 0.93 | Q147: 7.5 | R147: 21.3
A148: =A147+1 -> 2017-05-11 | B148: 4211.143228 | C148: 0.63 | D148: 7.31 | E148: 21.4 | F148: 0.17 | G148: 7.3 | H148: 21.5 | O148: 9.6 | P148: 1.74 | Q148: 7.4 | R148: 21.2
A149: 2017-05-12 | B149: 3533.862819 | C149: 0.989 | D149: 7.5 | E149: 21.4 | F149: 0.19 | G149: 7.49 | H149: 21.5 | O149: 13 | P149: 1.85 | Q149: 7.4 | R149: 21.4
A150: 2017-05-13 | B150: 4174.122263 | C150: 0.31 | D150: 7.4 | E150: 21.4 | F150: 0.46 | G150: 7.43 | H150: 21.5 | O150: 9.3 | P150: 1.93 | Q150: 7.4 | R150: 22
A151: 2017-05-14 | B151: 3916.849057 | C151: 0.52 | D151: 7.54 | E151: 22.5 | F151: 0.2 | G151: 7.52 | H151: 22.6 | O151: 9.3 | P151: 1.76 | Q151: 7.5 | R151: 21.6
A152: 2017-05-15 | B152: 4344.359091 | C152: 0.65 | D152: 7.27 | E152: 22.4 | F152: 0.4 | G152: 7.27 | H152: 22.2 | O152: 11.6 | P152: 1.62 | Q152: 7.4 | R152: 22.4
A153: 2017-05-16 | B153: 3357.458798 | C153: 0.72 | D153: 7.33 | E153: 21.9 | F153: 0.32 | G153: 7.3 | H153: 22.3 | O153: 10.1 | P153: 1.7 | Q153: 7.4 | R153: 22.3
A154: 2017-05-17 | B154: 3274.647705 | C154: 0.52 | D154: 7.51 | E154: 22.7 | F154: 0.14 | G154: 7.55 | H154: 22.8 | O154: 14.9 | P154: 1.27 | Q154: 7.6 | R154: 22.7
A155: 2017-05-18 | B155: 3775.262985 | C155: 0.33 | D155: 7.36 | E155: 22.8 | F155: 0.21 | G155: 7.36 | H155: 22.9 | O155: 12.6 | P155: 1.47 | Q155: 7.4 | R155: 22.8
A156: 2017-05-19 | B156: 3371.372901 | C156: 0.4 | D156: 7.32 | E156: 22.3 | F156: 0.19 | G156: 7.48 | H156: 23 | O156: 14.9 | P156: 1.44 | Q156: 7.4 | R156: 22.6
A157: 2017-05-20 | B157: 4281.000811 | C157: 0.3 | D157: 7.37 | E157: 22.5 | F157: 0.37 | G157: 7.43 | H157: 22.9 | O157: 11.1 | P157: 1.5 | Q157: 7.4 | R157: 23.1
A158: 2017-05-21 | B158: 3872.630841 | C158: 0.48 | D158: 7.34 | E158: 23.4 | F158: 0.27 | G158: 7.35 | H158: 23.5 | O158: 13.1 | P158: 1.46 | Q158: 7.4 | R158: 23.3
A159: 2017-05-22 | B159: 3587.308337 | C159: 0.56 | D159: 7.38 | E159: 24.6 | F159: 0.39 | G159: 7.5 | H159: 24.2 | O159: 11 | P159: 1.2 | Q159: 7.4 | R159: 24.3
A160: 2017-05-23 | B160: 3766.844331 | C160: 0.27 | D160: 7.42 | E160: 24.6 | F160: 0.13 | G160: 7.42 | H160: 24.4 | O160: 11.3 | P160: 1.2 | Q160: 7.4 | R160: 24
A161: 2017-05-24 | B161: 3763.916874 | C161: 0.68 | D161: 7.46 | E161: 23.5 | F161: 0.29 | G161: 7.43 | H161: 23.9 | O161: 11.7 | P161: 1.2 | Q161: 7.5 | R161: 23.9
A162: 2017-05-25 | B162: 3409.203935 | C162: 0.54 | D162: 7.44 | E162: 24 | F162: 0.18 | G162: 7.43 | H162: 24.2 | O162: 12.3 | P162: 1.2 | Q162: 7.5 | R162: 24.4
A163: 2017-05-26 | B163: 4188.535733 | C163: 0.58 | D163: 7.43 | E163: 24.4 | F163: 0.29 | G163: 7.43 | H163: 24.3 | O163: 12.6 | P163: 1.16 | Q163: 7.5 | R163: 24.5
A164: 2017-05-27 | B164: 4195.601935 | C164: 0.45 | D164: 7.41 | E164: 24.9 | F164: 0.2 | G164: 7.43 | H164: 25 | O164: 13.9 | P164: 1.15 | Q164: 7.4 | R164: 25
A165: 2017-05-28 | B165: 3293.575993 | C165: 0.68 | D165: 7.35 | E165: 25 | F165: 0.28 | G165: 7.46 | H165: 24.4 | O165: 11.8 | P165: 1.2 | Q165: 7.5 | R165: 24.4
A166: 2017-05-29 | B166: 3841.43073 | C166: 0.29 | D166: 7.33 | E166: 25.8 | F166: 0.08 | G166: 7.36 | H166: 25.7 | O166: 12.6 | P166: 1.17 | Q166: 7.4 | R166: 25.5
A167: 2017-05-30 | B167: 4166.939747 | C167: 0.54 | D167: 7.49 | E167: 25 | F167: 0.36 | G167: 7.48 | H167: 25.9 | O167: 13.9 | P167: 1.19 | Q167: 7.7 | R167: 25.8
A168: 2017-05-31 | B168: 3876.62516 | C168: 0.99 | D168: 7.58 | E168: 25.9 | F168: 0.36 | G168: 7.48 | H168: 26.2 | O168: 11.7 | P168: 1.15 | Q168: 7.6 | R168: 26.3
A169: 2017-06-01 | B169: 3316.654273 | C169: 0.73 | D169: 7.42 | E169: 25.8 | F169: 0.48 | G169: 7.35 | H169: 26.5 | O169: 10.5 | P169: 1.06 | Q169: 7.5 | R169: 26.6
A170: 2017-06-02 | B170: 3498.916841 | C170: 0.3 | D170: 7.42 | E170: 25.6 | F170: 0.41 | G170: 7.39 | H170: 26 | O170: 10.7 | P170: 1.12 | Q170: 7.4 | R170: 25.8
A171: 2017-06-03 | B171: 3716.536242 | C171: 0.2 | D171: 7.39 | E171: 25.7 | F171: 0.21 | G171: 7.39 | H171: 25.6 | O171: 10.9 | P171: 1.15 | Q171: 7.4 | R171: 25.6
A172: 2017-06-04 | B172: 3784.321308 | C172: 0.4 | D172: 7.43 | E172: 25.2 | F172: 0.24 | G172: 7.36 | H172: 25.3 | O172: 13.4 | P172: 1.29 | Q172: 7.4 | R172: 25.2
A173: 2017-06-05 | B173: 3841.668934 | C173: 1.51 | D173: 7.36 | E173: 27.6 | F173: 0.62 | G173: 7.06 | H173: 26.7 | O173: 9.6 | P173: 1.13 | Q173: 7.5 | R173: 25.9
A174: 2017-06-06 | B174: 3765.213892 | C174: 0.74 | D174: 7.32 | E174: 25.6 | F174: 0.34 | G174: 7.39 | H174: 26.3 | O174: 11.4 | P174: 1.12 | Q174: 7.4 | R174: 25.8
A175: 2017-06-07 | B175: 3878.046986 | C175: 0.78 | D175: 7.48 | E175: 25.8 | F175: 0.36 | G175: 7.41 | H175: 26.3 | O175: 11 | P175: 1.15 | Q175: 7.6 | R175: 26.2
A176: 2017-06-08 | B176: 3479.706513 | C176: 0.85 | D176: 7.75 | E176: 23.6 | F176: 0.15 | G176: 7.4 | H176: 26.4 | O176: 14.5 | P176: 1.07 | Q176: 7.6 | R176: 26.2
A177: 2017-06-09 | B177: 3826.857956 | C177: 0.18 | D177: 7.48 | E177: 25.8 | F177: 0.32 | G177: 7.53 | H177: 26 | O177: 11.8 | P177: 1.06 | Q177: 7.5 | R177: 26.4
A178: 2017-06-10 | B178: 3290.363771 | C178: 0.85 | D178: 7.69 | E178: 26 | F178: 0.39 | G178: 7.54 | H178: 26.1 | O178: 10.6 | P178: 1.18 | Q178: 7.6 | R178: 26.3
A179: 2017-06-11 | B179: 3723.340714 | C179: 1.112 | D179: 7.54 | E179: 26.5 | F179: 0.39 | G179: 7.44 | H179: 26.4 | O179: 10.9 | P179: 1.21 | Q179: 7.5 | R179: 26.4
A180: 2017-06-12 | B180: 3885.865238 | C180: 1.35 | D180: 7.44 | E180: 26.5 | F180: 0.34 | G180: 7.46 | H180: 26.6 | O180: 11.9 | P180: 1.2 | Q180: 7.5 | R180: 26.6
A181: 2017-06-13 | B181: 4013.03365 | C181: 0.76 | D181: 7.36 | E181: 26.9 | F181: 0.13 | G181: 7.41 | H181: 26.9 | O181: 12.6 | P181: 1.18 | Q181: 7.4 | R181: 26.2
A182: 2017-06-14 | B182: 3593.913254 | C182: 1.38 | D182: 7.4 | E182: 26.5 | F182: 0.63 | G182: 7.42 | H182: 26.6 | O182: 12.6 | P182: 1.3 | Q182: 7.4 | R182: 26.5
A183: 2017-06-15 | B183: 4094.429163 | C183: 1.3 | D183: 7.57 | E183: 27 | F183: 0.51 | G183: 7.52 | H183: 27 | O183: 10.4 | P183: 1.5 | Q183: 7.5 | R183: 26.9
A184: 2017-06-16 | B184: 3446.140599 | C184: 0.7 | D184: 7.41 | E184: 26.9 | F184: 0.4 | G184: 7.54 | H184: 26.8 | O184: 12.9 | P184: 1.4 | Q184: 7.5 | R184: 26.9
A185: 2017-06-17 | B185: 3304.19282 | C185: 1.5 | D185: 7.41 | E185: 26.8 | F185: 0.4 | G185: 7.54 | H185: 27.1 | O185: 13.6 | P185: 1.4 | Q185: 7.4 | R185: 26.8
A186: 2017-06-18 | B186: 4231.831667 | C186: 1.09 | D186: 7.52 | E186: 26.7 | F186: 0.58 | G186: 7.48 | H186: 26.8 | O186: 14.8 | P186: 1.39 | Q186: 7.5 | R186: 27.8
A187: 2017-06-19 | B187: 4139.680662 | C187: 0.96 | D187: 7.59 | E187: 27.6 | F187: 0.54 | G187: 7.52 | H187: 27.4 | O187: 10.7 | P187: 1.33 | Q187: 7.6 | R187: 27
A188: 2017-06-20 | B188: 3312.73678 | C188: 0.66 | D188: 7.52 | E188: 26.8 | F188: 0.21 | G188: 7.5 | H188: 27 | O188: 15.1 | P188: 1.3 | Q188: 7.6 | R188: 27.4
A189: 2017-06-21 | B189: 3435.407781 | C189: 0.3 | D189: 7.45 | E189: 27.3 | F189: 0.34 | G189: 7.47 | H189: 27.6 | O189: 14.8 | P189: 1.33 | Q189: 7.5 | R189: 27.5
A190: 2017-06-22 | B190: 3281.043402 | C190: 0.48 | D190: 7.59 | E190: 27.8 | F190: 0.23 | G190: 7.54 | H190: 27.8 | O190: 12.5 | P190: 1.58 | Q190: 7.5 | R190: 27.3
A191: 2017-06-23 | B191: 4005.095594 | C191: 0.29 | D191: 7.42 | E191: 27.5 | F191: 0.15 | G191: 7.44 | H191: 27.6 | O191: 12.2 | P191: 1.68 | Q191: 7.4 | R191: 27.4
A192: 2017-06-24 | B192: 3312.419353 | C192: 0.81 | D192: 7.29 | E192: 27.1 | F192: 0.09 | G192: 7.39 | H192: 22.5 | O192: 16.1 | P192: 1.73 | Q192: 7.5 | R192: 27.4
A193: 2017-06-25 | B193: 3994.0154 | C193: 0.9 | D193: 7.36 | E193: 27.8 | F193: 0.18 | G193: 7.41 | H193: 28.1 | O193: 13.3 | P193: 1.62 | Q193: 7.4 | R193: 27.8
A194: 2017-06-26 | B194: 3950.341461 | C194: 1.36 | D194: 7.55 | E194: 27.5 | F194: 0.3 | G194: 7.5 | H194: 28 | O194: 12.6 | P194: 1.76 | Q194: 7.4 | R194: 27.8
A195: 2017-06-27 | B195: 3912.600455 | C195: 1.05 | D195: 7.5 | E195: 27.4 | F195: 0.29 | G195: 7.43 | H195: 28.1 | O195: 13.5 | P195: 1.62 | Q195: 7.4 | R195: 28.1
A196: 2017-06-28 | B196: 3931.778304 | C196: 1.05 | D196: 7.54 | E196: 27 | F196: 0.27 | G196: 7.32 | H196: 28.1 | O196: 13.5 | P196: 1.65 | Q196: 7.4 | R196: 27.9
A197: 2017-06-29 | B197: 3919.008908 | C197: 1.44 | D197: 7.49 | E197: 28.4 | F197: 0.33 | G197: 7.44 | H197: 28.2 | O197: 12 | P197: 1.62 | Q197: 7.4 | R197: 27.5
A198: 2017-06-30 | B198: 3521.548192 | C198: 1.02 | D198: 7.47 | E198: 27.4 | F198: 0.56 | G198: 7.4 | H198: 28.2 | O198: 14 | P198: 1.64 | Q198: 7.4 | R198: 27.6
A199: 2017-07-01 | B199: 3288.816476 | C199: 1.04 | D199: 7.43 | E199: 28 | F199: 0.2 | G199: 7.41 | H199: 27.8 | O199: 12 | P199: 0.66 | Q199: 7.4 | R199: 27.9
A200: 2017-07-02 | B200: 4096.553961 | C200: 3.2 | D200: 7.42 | E200: 27.6 | F200: 1.441 | G200: 7.41 | H200: 27.5 | O200: 9.4 | P200: 0.86 | Q200: 7.4 | R200: 27.7
A201: 2017-07-03 | B201: 3798.052197 | C201: 1.26 | D201: 7.38 | E201: 27.9 | F201: 0.55 | G201: 7.42 | H201: 27.8 | O201: 13.2 | P201: 1.56 | Q201: 7.4 | R201: 27.9
A202: 2017-07-04 | B202: 3321.19197 | C202: 1.24 | D202: 7.37 | E202: 27.4 | F202: 0.57 | G202: 7.39 | H202: 27.9 | O202: 10.8 | P202: 1.66 | Q202: 7.4 | R202: 27.7
A203: 2017-07-05 | B203: 3682.820416 | C203: 0.5 | D203: 7.92 | E203: 27.7 | F203: 0.18 | G203: 7.36 | H203: 27.9 | O203: 13.7 | P203: 1.68 | Q203: 7.4 | R203: 27.6
A204: 2017-07-06 | B204: 4137.767977 | C204: 1.5 | D204: 7.37 | E204: 27.2 | F204: 0.59 | G204: 7.33 | H204: 27.6 | O204: 11.4 | P204: 1.7 | Q204: 7.4 | R204: 27.2
A205: 2017-07-07 | B205: 4244.295677 | C205: 0.59 | D205: 7.47 | E205: 26.5 | F205: 0.22 | G205: 7.44 | H205: 27.5 | O205: 12.1 | P205: 1.69 | Q205: 7.4 | R205: 27.2
A206: 2017-07-08 | B206: 4074.825876 | C206: 0.51 | D206: 7.46 | E206: 26.9 | F206: 0.23 | G206: 7.47 | H206: 27.8 | O206: 12.6 | P206: 1.7 | Q206: 7.4 | R206: 27.6
A207: 2017-07-09 | B207: 3558.245573 | C207: 0.74 | D207: 7.34 | E207: 27 | F207: 0.59 | G207: 7.35 | H207: 27 | O207: 11.7 | P207: 1.61 | Q207: 7.3 | R207: 27.7
... 177 more rows

Sheet DataEntryValues(CT) (hidden)
B3: Plant Name | F3: Watertown | O3: T10/T factors >>>>>>>>>>>
B4: Giardia Inactivation Requirement (log)
B5: Giardia Inactivation Goal/Target (log)
B6: Segment 1 Name
B7: Segment 1 Volume (gal)
B8: Segment 1 Factor
B9: Segment 2 Name
B10: Segment 2 Volume (gal)
B11: Segment 2 Factor
B12: Segment 3 Name
B13: Segment 3 Volume (gal)
B14: Segment 3 Factor
B15: Segment 4 Name
B16: Segment 4 Volume (gal)
B17: Segment 4 Factor
B18: Segment 5 Name
B19: Segment 5 Volume (gal/ft)
B20: Segment 5 Factor
B22: Instruction to users: Input plant name, inactivation target, basin volumes, and baffle factors above. Input start date
B23: and data below. The database will hold 366 days of data. Following data input, update the summary report by clicking
B24: the UPDATE button.
A27: Data Entry Area for Posting Individual Values | AU27: Log Inact | AV27: Goal | AX27: M/R | AY27: M/R
C28: =CONCATENATE("Segment 1 - ",$F$6) -> Segment 1 - | F28: =CONCATENATE("Segment 2 - ",$F$9) -> Segment 2 - | I28: =CONCATENATE("Segment 3 - ",$F$12) -> Segment 3 - | L28: =CONCATENATE("Segment 4 - ",$F$15) -> Segment 4 - | O28: =CONCATENATE("Segment 5 - ",$F$18) -> Segment 5 - | AM28: Plotting Values | AQ28: No Function | AU28: Req'd | AV28: (log inact) | AX28: Req'd | AY28: Goal
A29: Date | B29: Flow | C29: Residual | D29: pH | E29: Temp. | F29: Residual | G29: pH | H29: Temp. | I29: Residual | J29: pH | K29: Temp. | L29: Residual | M29: pH | N29: Temp. | O29: Depth | P29: Residual | Q29: pH | R29: Temp. | U29: Seg1 CT-M | V29: Seg1 CT-R | W29: Seg1 Ratio | X29: Seg2 CT-M | Y29: Seg2 CT-R | Z29: Seg2 Ratio | AA29: Seg3 CT-M | AB29: Seg3 CT-R | AC29: Seg3 Ratio | AD29: Seg4 CT M | AE29: Seg4 CT R | AF29: Seg4 Ratio | AG29: Seg5 CT M | AH29: Seg5 CT R | AI29: Seg5 Ratio | AJ29: Total Ratio | AK29: Total Inact. | AM29: Inactivation Ratio | AN29: Giardia Inactivation | AQ29: CombSort | AS29: Comb% | AU29: =+Target -> 0 | AV29: =IF($F$5>0,$F$5,2*AU29) -> 0 | AX29: =+AU29/Target ->  | AY29: =+AV29/Target -> 
B30: gpm | C30: mg/L | E30: C | F30: mg/L | H30: C | I30: mg/L | K30: C | L30: mg/L | N30: C | O30: ft | P30: mg/L | R30: C | U30: mg/L-min | V30: mg/L-min | W30: M/R | X30: mg/L-min | Y30: mg/L-min | Z30: M/R | AA30: mg/L-min | AB30: mg/L-min | AC30: M/R | AD30: mg/L-min | AE30: mg/L-min | AF30: M/R | AG30: mg/L-min | AH30: mg/L-min | AI30: M/R | AJ30: M/R | AK30: Log | AM30: M/R | AN30: Log
A31: 2017-01-01 | T31: 1 | U31: =IF(B31="",,Seg1Vol*Seg1Fac/B31*C31) -> 0 | V31: =Target*0.2828*D31^2.69*C31^0.15*0.933^(E31-5) -> 0 | W31: =IF(V31=0,,U31/V31) -> 0 | X31: =IF(B31="",,Seg2Vol*Seg2Fac/B31*F31) -> 0 | Y31: =Target*0.2828*G31^2.69*F31^0.15*0.933^(H31-5) -> 0 | Z31: =IF(Y31=0,,X31/Y31) -> 0 | AA31: =IF(B31="",,Seg3Vol*Seg3Fac/B31*I31) -> 0 | AB31: =Target*0.2828*J31^2.69*I31^0.15*0.933^(K31-5) -> 0 | AC31: =IF(AB31=0,,AA31/AB31) -> 0 | AD31: =IF(B31="",,Seg4Vol*Seg4Fac/B31*L31) -> 0 | AE31: =Target*0.2828*M31^2.69*L31^0.15*0.933^(N31-5) -> 0 | AF31: =IF(AE31=0,,AD31/AE31) -> 0 | AG31: =IF(B31="",,Seg5Vol*O31*Seg5Fac/B31*P31) -> 0 | AH31: =Target*0.2828*Q31^2.69*P31^0.15*0.933^(R31-5) -> 0 | AI31: =IF(AH31=0,,AG31/AH31) -> 0 | AJ31: =W31+Z31+AC31+AF31+AI31 -> 0 | AK31: =AJ31*Target -> 0 | AM31: 4.264476084 | AN31: 4.264476084 | AQ31: 18.78294941 | AR31: 98 | AS31: =100*COUNT($AQ$31:AQ31)/$AQ$397 -> 0.3236245955 | AU31: =$AU$29 -> 0 | AV31: =+$AV$29 -> 0 | AX31: =$AX$29 ->  | AY31: =+$AY$29 -> 
A32: =A31+1 -> 2017-01-02 | T32: =T31+1 -> 2 | U32: =IF(B32="",,Seg1Vol*Seg1Fac/B32*C32) -> 0 | V32: =Target*0.2828*D32^2.69*C32^0.15*0.933^(E32-5) -> 0 | W32: =IF(V32=0,,U32/V32) -> 0 | X32: =IF(B32="",,Seg2Vol*Seg2Fac/B32*F32) -> 0 | Y32: =Target*0.2828*G32^2.69*F32^0.15*0.933^(H32-5) -> 0 | Z32: =IF(Y32=0,,X32/Y32) -> 0 | AA32: =IF(B32="",,Seg3Vol*Seg3Fac/B32*I32) -> 0 | AB32: =Target*0.2828*J32^2.69*I32^0.15*0.933^(K32-5) -> 0 | AC32: =IF(AB32=0,,AA32/AB32) -> 0 | AD32: =IF(B32="",,Seg4Vol*Seg4Fac/B32*L32) -> 0 | AE32: =Target*0.2828*M32^2.69*L32^0.15*0.933^(N32-5) -> 0 | AF32: =IF(AE32=0,,AD32/AE32) -> 0 | AG32: =IF(B32="",,Seg5Vol*O32*Seg5Fac/B32*P32) -> 0 | AH32: =Target*0.2828*Q32^2.69*P32^0.15*0.933^(R32-5) -> 0 | AI32: =IF(AH32=0,,AG32/AH32) -> 0 | AJ32: =W32+Z32+AC32+AF32+AI32 -> 0 | AK32: =AJ32*Target -> 0 | AM32: 5.514769996 | AN32: 5.514769996 | AQ32: 12.9342576 | AR32: 50 | AS32: =100*COUNT($AQ$31:AQ32)/$AQ$397 -> 0.6472491909 | AU32: =$AU$29 -> 0 | AV32: =+$AV$29 -> 0 | AX32: =$AX$29 ->  | AY32: =+$AY$29 -> 
A33: 2017-01-03 | T33: 3 | U33: 0 | V33: 0 | W33: 0 | X33: 0 | Y33: 0 | Z33: 0 | AA33: 0 | AB33: 0 | AC33: 0 | AD33: 0 | AE33: 0 | AF33: 0 | AG33: 0 | AH33: 0 | AI33: 0 | AJ33: 0 | AK33: 0 | AM33: 4.893506324 | AN33: 4.893506324 | AQ33: 11.86715752 | AR33: 291 | AS33: =100*COUNT($AQ$31:AQ33)/$AQ$397 -> 0.9708737864 | AU33: 0 | AV33: 0 | AX33: =$AX$29 ->  | AY33: =+$AY$29 -> 
A34: 2017-01-04 | T34: 4 | U34: 0 | V34: 0 | W34: 0 | X34: 0 | Y34: 0 | Z34: 0 | AA34: 0 | AB34: 0 | AC34: 0 | AD34: 0 | AE34: 0 | AF34: 0 | AG34: 0 | AH34: 0 | AI34: 0 | AJ34: 0 | AK34: 0 | AM34: 5.167157625 | AN34: 5.167157625 | AQ34: 5.49834716 | AR34: 181 | AS34: =100*COUNT($AQ$31:AQ34)/$AQ$397 -> 1.294498382 | AU34: 0 | AV34: 0
A35: 2017-01-05 | T35: 5 | U35: 0 | V35: 0 | W35: 0 | X35: 0 | Y35: 0 | Z35: 0 | AA35: 0 | AB35: 0 | AC35: 0 | AD35: 0 | AE35: 0 | AF35: 0 | AG35: 0 | AH35: 0 | AI35: 0 | AJ35: 0 | AK35: 0 | AM35: 5.479173736 | AN35: 5.479173736 | AQ35: 5.461371199 | AR35: 343 | AS35: =100*COUNT($AQ$31:AQ35)/$AQ$397 -> 1.618122977 | AU35: 0 | AV35: 0
A36: 2017-01-06 | T36: 6 | U36: 0 | V36: 0 | W36: 0 | X36: 0 | Y36: 0 | Z36: 0 | AA36: 0 | AB36: 0 | AC36: 0 | AD36: 0 | AE36: 0 | AF36: 0 | AG36: 0 | AH36: 0 | AI36: 0 | AJ36: 0 | AK36: 0 | AM36: 4.875824259 | AN36: 4.875824259 | AQ36: 5.431769357 | AR36: 47 | AS36: =100*COUNT($AQ$31:AQ36)/$AQ$397 -> 1.941747573 | AU36: 0 | AV36: 0
A37: 2017-01-07 | T37: 7 | U37: 0 | V37: 0 | W37: 0 | X37: 0 | Y37: 0 | Z37: 0 | AA37: 0 | AB37: 0 | AC37: 0 | AD37: 0 | AE37: 0 | AF37: 0 | AG37: 0 | AH37: 0 | AI37: 0 | AJ37: 0 | AK37: 0 | AM37: 5.308446595 | AN37: 5.308446595 | AQ37: 5.311492697 | AR37: 99 | AS37: =100*COUNT($AQ$31:AQ37)/$AQ$397 -> 2.265372168 | AU37: 0 | AV37: 0
A38: 2017-01-08 | T38: 8 | U38: 0 | V38: 0 | W38: 0 | X38: 0 | Y38: 0 | Z38: 0 | AA38: 0 | AB38: 0 | AC38: 0 | AD38: 0 | AE38: 0 | AF38: 0 | AG38: 0 | AH38: 0 | AI38: 0 | AJ38: 0 | AK38: 0 | AM38: 4.410173437 | AN38: 4.410173437 | AQ38: 5.286644541 | AR38: 208 | AS38: =100*COUNT($AQ$31:AQ38)/$AQ$397 -> 2.588996764 | AU38: 0 | AV38: 0
A39: 2017-01-09 | T39: 9 | U39: 0 | V39: 0 | W39: 0 | X39: 0 | Y39: 0 | Z39: 0 | AA39: 0 | AB39: 0 | AC39: 0 | AD39: 0 | AE39: 0 | AF39: 0 | AG39: 0 | AH39: 0 | AI39: 0 | AJ39: 0 | AK39: 0 | AM39: 3.88325789 | AN39: 3.88325789 | AQ39: 5.237571363 | AR39: 125 | AS39: =100*COUNT($AQ$31:AQ39)/$AQ$397 -> 2.912621359 | AU39: 0 | AV39: 0
A40: 2017-01-10 | T40: 10 | U40: 0 | V40: 0 | W40: 0 | X40: 0 | Y40: 0 | Z40: 0 | AA40: 0 | AB40: 0 | AC40: 0 | AD40: 0 | AE40: 0 | AF40: 0 | AG40: 0 | AH40: 0 | AI40: 0 | AJ40: 0 | AK40: 0 | AM40: 4.572993801 | AN40: 4.572993801 | AQ40: 5.158839834 | AR40: 143 | AS40: =100*COUNT($AQ$31:AQ40)/$AQ$397 -> 3.236245955 | AU40: 0 | AV40: 0
A41: 2017-01-11 | T41: 11 | U41: 0 | V41: 0 | W41: 0 | X41: 0 | Y41: 0 | Z41: 0 | AA41: 0 | AB41: 0 | AC41: 0 | AD41: 0 | AE41: 0 | AF41: 0 | AG41: 0 | AH41: 0 | AI41: 0 | AJ41: 0 | AK41: 0 | AM41: 4.532421297 | AN41: 4.532421297 | AQ41: 5.152543526 | AR41: 43 | AS41: =100*COUNT($AQ$31:AQ41)/$AQ$397 -> 3.55987055 | AU41: 0 | AV41: 0
A42: 2017-01-12 | T42: 12 | U42: 0 | V42: 0 | W42: 0 | X42: 0 | Y42: 0 | Z42: 0 | AA42: 0 | AB42: 0 | AC42: 0 | AD42: 0 | AE42: 0 | AF42: 0 | AG42: 0 | AH42: 0 | AI42: 0 | AJ42: 0 | AK42: 0 | AM42: 4.465246448 | AN42: 4.465246448 | AQ42: 4.921546219 | AR42: 187 | AS42: =100*COUNT($AQ$31:AQ42)/$AQ$397 -> 3.883495146 | AU42: 0 | AV42: 0
A43: 2017-01-13 | T43: 13 | U43: 0 | V43: 0 | W43: 0 | X43: 0 | Y43: 0 | Z43: 0 | AA43: 0 | AB43: 0 | AC43: 0 | AD43: 0 | AE43: 0 | AF43: 0 | AG43: 0 | AH43: 0 | AI43: 0 | AJ43: 0 | AK43: 0 | AM43: 5.018167161 | AN43: 5.018167161 | AQ43: 4.898164686 | AR43: 211 | AS43: =100*COUNT($AQ$31:AQ43)/$AQ$397 -> 4.207119741 | AU43: 0 | AV43: 0
A44: 2017-01-14 | T44: 14 | U44: 0 | V44: 0 | W44: 0 | X44: 0 | Y44: 0 | Z44: 0 | AA44: 0 | AB44: 0 | AC44: 0 | AD44: 0 | AE44: 0 | AF44: 0 | AG44: 0 | AH44: 0 | AI44: 0 | AJ44: 0 | AK44: 0 | AM44: 4.804426162 | AN44: 4.804426162 | AQ44: 4.875825197 | AR44: 162 | AS44: =100*COUNT($AQ$31:AQ44)/$AQ$397 -> 4.530744337 | AU44: 0 | AV44: 0
A45: 2017-01-15 | T45: 15 | U45: 0 | V45: 0 | W45: 0 | X45: 0 | Y45: 0 | Z45: 0 | AA45: 0 | AB45: 0 | AC45: 0 | AD45: 0 | AE45: 0 | AF45: 0 | AG45: 0 | AH45: 0 | AI45: 0 | AJ45: 0 | AK45: 0 | AM45: 4.249581066 | AN45: 4.249581066 | AQ45: 4.864313391 | AR45: 228 | AS45: =100*COUNT($AQ$31:AQ45)/$AQ$397 -> 4.854368932 | AU45: 0 | AV45: 0
A46: 2017-01-16 | T46: 16 | U46: 0 | V46: 0 | W46: 0 | X46: 0 | Y46: 0 | Z46: 0 | AA46: 0 | AB46: 0 | AC46: 0 | AD46: 0 | AE46: 0 | AF46: 0 | AG46: 0 | AH46: 0 | AI46: 0 | AJ46: 0 | AK46: 0 | AM46: 5.870102317 | AN46: 5.870102317 | AQ46: 4.852822822 | AR46: 191 | AS46: =100*COUNT($AQ$31:AQ46)/$AQ$397 -> 5.177993528 | AU46: 0 | AV46: 0
A47: 2017-01-17 | T47: 17 | U47: 0 | V47: 0 | W47: 0 | X47: 0 | Y47: 0 | Z47: 0 | AA47: 0 | AB47: 0 | AC47: 0 | AD47: 0 | AE47: 0 | AF47: 0 | AG47: 0 | AH47: 0 | AI47: 0 | AJ47: 0 | AK47: 0 | AM47: 5.48891381 | AN47: 5.48891381 | AQ47: 4.83268645 | AR47: 116 | AS47: =100*COUNT($AQ$31:AQ47)/$AQ$397 -> 5.501618123 | AU47: 0 | AV47: 0
A48: 2017-01-18 | T48: 18 | U48: 0 | V48: 0 | W48: 0 | X48: 0 | Y48: 0 | Z48: 0 | AA48: 0 | AB48: 0 | AC48: 0 | AD48: 0 | AE48: 0 | AF48: 0 | AG48: 0 | AH48: 0 | AI48: 0 | AJ48: 0 | AK48: 0 | AM48: 5.782651858 | AN48: 5.782651858 | AQ48: 4.795177857 | AR48: 325 | AS48: =100*COUNT($AQ$31:AQ48)/$AQ$397 -> 5.825242718 | AU48: 0 | AV48: 0
A49: 2017-01-19 | T49: 19 | U49: 0 | V49: 0 | W49: 0 | X49: 0 | Y49: 0 | Z49: 0 | AA49: 0 | AB49: 0 | AC49: 0 | AD49: 0 | AE49: 0 | AF49: 0 | AG49: 0 | AH49: 0 | AI49: 0 | AJ49: 0 | AK49: 0 | AM49: 5.004640337 | AN49: 5.004640337 | AQ49: 4.724889272 | AR49: 108 | AS49: =100*COUNT($AQ$31:AQ49)/$AQ$397 -> 6.148867314 | AU49: 0 | AV49: 0
A50: 2017-01-20 | T50: 20 | U50: 0 | V50: 0 | W50: 0 | X50: 0 | Y50: 0 | Z50: 0 | AA50: 0 | AB50: 0 | AC50: 0 | AD50: 0 | AE50: 0 | AF50: 0 | AG50: 0 | AH50: 0 | AI50: 0 | AJ50: 0 | AK50: 0 | AM50: 5.530727966 | AN50: 5.530727966 | AQ50: 4.688332774 | AR50: 249 | AS50: =100*COUNT($AQ$31:AQ50)/$AQ$397 -> 6.472491909 | AU50: 0 | AV50: 0
A51: 2017-01-21 | T51: 21 | U51: 0 | V51: 0 | W51: 0 | X51: 0 | Y51: 0 | Z51: 0 | AA51: 0 | AB51: 0 | AC51: 0 | AD51: 0 | AE51: 0 | AF51: 0 | AG51: 0 | AH51: 0 | AI51: 0 | AJ51: 0 | AK51: 0 | AM51: 6.093570073 | AN51: 6.093570073 | AQ51: 4.686327813 | AR51: 10 | AS51: =100*COUNT($AQ$31:AQ51)/$AQ$397 -> 6.796116505 | AU51: 0 | AV51: 0
A52: 2017-01-22 | T52: 22 | U52: 0 | V52: 0 | W52: 0 | X52: 0 | Y52: 0 | Z52: 0 | AA52: 0 | AB52: 0 | AC52: 0 | AD52: 0 | AE52: 0 | AF52: 0 | AG52: 0 | AH52: 0 | AI52: 0 | AJ52: 0 | AK52: 0 | AM52: 5.320556043 | AN52: 5.320556043 | AQ52: 4.635395738 | AR52: 86 | AS52: =100*COUNT($AQ$31:AQ52)/$AQ$397 -> 7.1197411 | AU52: 0 | AV52: 0
A53: 2017-01-23 | T53: 23 | U53: 0 | V53: 0 | W53: 0 | X53: 0 | Y53: 0 | Z53: 0 | AA53: 0 | AB53: 0 | AC53: 0 | AD53: 0 | AE53: 0 | AF53: 0 | AG53: 0 | AH53: 0 | AI53: 0 | AJ53: 0 | AK53: 0 | AM53: 5.412979064 | AN53: 5.412979064 | AQ53: 4.635342562 | AR53: 364 | AS53: =100*COUNT($AQ$31:AQ53)/$AQ$397 -> 7.443365696 | AU53: 0 | AV53: 0
A54: 2017-01-24 | T54: 24 | U54: 0 | V54: 0 | W54: 0 | X54: 0 | Y54: 0 | Z54: 0 | AA54: 0 | AB54: 0 | AC54: 0 | AD54: 0 | AE54: 0 | AF54: 0 | AG54: 0 | AH54: 0 | AI54: 0 | AJ54: 0 | AK54: 0 | AM54: 5.714295247 | AN54: 5.714295247 | AQ54: 4.584899743 | AR54: 69 | AS54: =100*COUNT($AQ$31:AQ54)/$AQ$397 -> 7.766990291 | AU54: 0 | AV54: 0
A55: 2017-01-25 | T55: 25 | U55: 0 | V55: 0 | W55: 0 | X55: 0 | Y55: 0 | Z55: 0 | AA55: 0 | AB55: 0 | AC55: 0 | AD55: 0 | AE55: 0 | AF55: 0 | AG55: 0 | AH55: 0 | AI55: 0 | AJ55: 0 | AK55: 0 | AM55: 5.686963502 | AN55: 5.686963502 | AQ55: 4.516761543 | AR55: 304 | AS55: =100*COUNT($AQ$31:AQ55)/$AQ$397 -> 8.090614887 | AU55: 0 | AV55: 0
A56: 2017-01-26 | T56: 26 | U56: 0 | V56: 0 | W56: 0 | X56: 0 | Y56: 0 | Z56: 0 | AA56: 0 | AB56: 0 | AC56: 0 | AD56: 0 | AE56: 0 | AF56: 0 | AG56: 0 | AH56: 0 | AI56: 0 | AJ56: 0 | AK56: 0 | AM56: 5.743770759 | AN56: 5.743770759 | AQ56: 4.487386174 | AR56: 122 | AS56: =100*COUNT($AQ$31:AQ56)/$AQ$397 -> 8.414239482 | AU56: 0 | AV56: 0
A57: 2017-01-27 | T57: 27 | U57: 0 | V57: 0 | W57: 0 | X57: 0 | Y57: 0 | Z57: 0 | AA57: 0 | AB57: 0 | AC57: 0 | AD57: 0 | AE57: 0 | AF57: 0 | AG57: 0 | AH57: 0 | AI57: 0 | AJ57: 0 | AK57: 0 | AM57: 5.825922614 | AN57: 5.825922614 | AQ57: 4.487386174 | AR57: 223 | AS57: =100*COUNT($AQ$31:AQ57)/$AQ$397 -> 8.737864078 | AU57: 0 | AV57: 0
A58: 2017-01-28 | T58: 28 | U58: 0 | V58: 0 | W58: 0 | X58: 0 | Y58: 0 | Z58: 0 | AA58: 0 | AB58: 0 | AC58: 0 | AD58: 0 | AE58: 0 | AF58: 0 | AG58: 0 | AH58: 0 | AI58: 0 | AJ58: 0 | AK58: 0 | AM58: 6.586828336 | AN58: 6.586828336 | AQ58: 4.478693678 | AR58: 247 | AS58: =100*COUNT($AQ$31:AQ58)/$AQ$397 -> 9.061488673 | AU58: 0 | AV58: 0
A59: 2017-01-29 | T59: 29 | U59: 0 | V59: 0 | W59: 0 | X59: 0 | Y59: 0 | Z59: 0 | AA59: 0 | AB59: 0 | AC59: 0 | AD59: 0 | AE59: 0 | AF59: 0 | AG59: 0 | AH59: 0 | AI59: 0 | AJ59: 0 | AK59: 0 | AM59: 5.626098141 | AN59: 5.626098141 | AQ59: 4.45678817 | AR59: 315 | AS59: =100*COUNT($AQ$31:AQ59)/$AQ$397 -> 9.385113269 | AU59: 0 | AV59: 0
A60: 2017-01-30 | T60: 30 | U60: 0 | V60: 0 | W60: 0 | X60: 0 | Y60: 0 | Z60: 0 | AA60: 0 | AB60: 0 | AC60: 0 | AD60: 0 | AE60: 0 | AF60: 0 | AG60: 0 | AH60: 0 | AI60: 0 | AJ60: 0 | AK60: 0 | AM60: 5.716887387 | AN60: 5.716887387 | AQ60: 4.452256575 | AR60: 230 | AS60: =100*COUNT($AQ$31:AQ60)/$AQ$397 -> 9.708737864 | AU60: 0 | AV60: 0
A61: 2017-01-31 | T61: 31 | U61: 0 | V61: 0 | W61: 0 | X61: 0 | Y61: 0 | Z61: 0 | AA61: 0 | AB61: 0 | AC61: 0 | AD61: 0 | AE61: 0 | AF61: 0 | AG61: 0 | AH61: 0 | AI61: 0 | AJ61: 0 | AK61: 0 | AM61: 5.602201003 | AN61: 5.602201003 | AQ61: 4.417264159 | AR61: 9 | AS61: =100*COUNT($AQ$31:AQ61)/$AQ$397 -> 10.03236246 | AU61: 0 | AV61: 0
A62: 2017-02-01 | T62: 32 | U62: 0 | V62: 0 | W62: 0 | X62: 0 | Y62: 0 | Z62: 0 | AA62: 0 | AB62: 0 | AC62: 0 | AD62: 0 | AE62: 0 | AF62: 0 | AG62: 0 | AH62: 0 | AI62: 0 | AJ62: 0 | AK62: 0 | AM62: 8.252612218 | AN62: 8.252612218 | AQ62: 4.368482588 | AR62: 40 | AS62: =100*COUNT($AQ$31:AQ62)/$AQ$397 -> 10.35598706 | AU62: 0 | AV62: 0
A63: 2017-02-02 | T63: 33 | U63: 0 | V63: 0 | W63: 0 | X63: 0 | Y63: 0 | Z63: 0 | AA63: 0 | AB63: 0 | AC63: 0 | AD63: 0 | AE63: 0 | AF63: 0 | AG63: 0 | AH63: 0 | AI63: 0 | AJ63: 0 | AK63: 0 | AM63: 8.804509977 | AN63: 8.804509977 | AQ63: 4.364616565 | AR63: 27 | AS63: =100*COUNT($AQ$31:AQ63)/$AQ$397 -> 10.67961165 | AU63: 0 | AV63: 0
A64: 2017-02-03 | T64: 34 | U64: 0 | V64: 0 | W64: 0 | X64: 0 | Y64: 0 | Z64: 0 | AA64: 0 | AB64: 0 | AC64: 0 | AD64: 0 | AE64: 0 | AF64: 0 | AG64: 0 | AH64: 0 | AI64: 0 | AJ64: 0 | AK64: 0 | AM64: 9.821585979 | AN64: 9.821585979 | AQ64: 4.364616565 | AR64: 227 | AS64: =100*COUNT($AQ$31:AQ64)/$AQ$397 -> 11.00323625 | AU64: 0 | AV64: 0
A65: 2017-02-04 | T65: 35 | U65: 0 | V65: 0 | W65: 0 | X65: 0 | Y65: 0 | Z65: 0 | AA65: 0 | AB65: 0 | AC65: 0 | AD65: 0 | AE65: 0 | AF65: 0 | AG65: 0 | AH65: 0 | AI65: 0 | AJ65: 0 | AK65: 0 | AM65: 10.46916231 | AN65: 10.46916231 | AQ65: 4.349971879 | AR65: 302 | AS65: =100*COUNT($AQ$31:AQ65)/$AQ$397 -> 11.32686084 | AU65: 0 | AV65: 0
A66: 2017-02-05 | T66: 36 | U66: 0 | V66: 0 | W66: 0 | X66: 0 | Y66: 0 | Z66: 0 | AA66: 0 | AB66: 0 | AC66: 0 | AD66: 0 | AE66: 0 | AF66: 0 | AG66: 0 | AH66: 0 | AI66: 0 | AJ66: 0 | AK66: 0 | AM66: 7.148136955 | AN66: 7.148136955 | AQ66: 4.347523963 | AR66: 354 | AS66: =100*COUNT($AQ$31:AQ66)/$AQ$397 -> 11.65048544 | AU66: 0 | AV66: 0
A67: 2017-02-06 | T67: 37 | U67: 0 | V67: 0 | W67: 0 | X67: 0 | Y67: 0 | Z67: 0 | AA67: 0 | AB67: 0 | AC67: 0 | AD67: 0 | AE67: 0 | AF67: 0 | AG67: 0 | AH67: 0 | AI67: 0 | AJ67: 0 | AK67: 0 | AM67: 7.726118943 | AN67: 7.726118943 | AQ67: 4.347523963 | AR67: 70 | AS67: =100*COUNT($AQ$31:AQ67)/$AQ$397 -> 11.97411003 | AU67: 0 | AV67: 0
A68: 2017-02-07 | T68: 38 | U68: 0 | V68: 0 | W68: 0 | X68: 0 | Y68: 0 | Z68: 0 | AA68: 0 | AB68: 0 | AC68: 0 | AD68: 0 | AE68: 0 | AF68: 0 | AG68: 0 | AH68: 0 | AI68: 0 | AJ68: 0 | AK68: 0 | AM68: 8.151395453 | AN68: 8.151395453 | AQ68: 4.275469599 | AR68: 355 | AS68: =100*COUNT($AQ$31:AQ68)/$AQ$397 -> 12.29773463 | AU68: 0 | AV68: 0
A69: 2017-02-08 | T69: 39 | U69: 0 | V69: 0 | W69: 0 | X69: 0 | Y69: 0 | Z69: 0 | AA69: 0 | AB69: 0 | AC69: 0 | AD69: 0 | AE69: 0 | AF69: 0 | AG69: 0 | AH69: 0 | AI69: 0 | AJ69: 0 | AK69: 0 | AM69: 5.932841434 | AN69: 5.932841434 | AQ69: 4.269182464 | AR69: 270 | AS69: =100*COUNT($AQ$31:AQ69)/$AQ$397 -> 12.62135922 | AU69: 0 | AV69: 0
A70: 2017-02-09 | T70: 40 | U70: 0 | V70: 0 | W70: 0 | X70: 0 | Y70: 0 | Z70: 0 | AA70: 0 | AB70: 0 | AC70: 0 | AD70: 0 | AE70: 0 | AF70: 0 | AG70: 0 | AH70: 0 | AI70: 0 | AJ70: 0 | AK70: 0 | AM70: 6.620763362 | AN70: 6.620763362 | AQ70: 4.221587873 | AR70: 182 | AS70: =100*COUNT($AQ$31:AQ70)/$AQ$397 -> 12.94498382 | AU70: 0 | AV70: 0
A71: 2017-02-10 | T71: 41 | U71: 0 | V71: 0 | W71: 0 | X71: 0 | Y71: 0 | Z71: 0 | AA71: 0 | AB71: 0 | AC71: 0 | AD71: 0 | AE71: 0 | AF71: 0 | AG71: 0 | AH71: 0 | AI71: 0 | AJ71: 0 | AK71: 0 | AM71: 9.611903657 | AN71: 9.611903657 | AQ71: 4.167142289 | AR71: 159 | AS71: =100*COUNT($AQ$31:AQ71)/$AQ$397 -> 13.26860841 | AU71: 0 | AV71: 0
A72: 2017-02-11 | T72: 42 | U72: 0 | V72: 0 | W72: 0 | X72: 0 | Y72: 0 | Z72: 0 | AA72: 0 | AB72: 0 | AC72: 0 | AD72: 0 | AE72: 0 | AF72: 0 | AG72: 0 | AH72: 0 | AI72: 0 | AJ72: 0 | AK72: 0 | AM72: 8.641455776 | AN72: 8.641455776 | AQ72: 4.131632467 | AR72: 348 | AS72: =100*COUNT($AQ$31:AQ72)/$AQ$397 -> 13.59223301 | AU72: 0 | AV72: 0
A73: 2017-02-12 | T73: 43 | U73: 0 | V73: 0 | W73: 0 | X73: 0 | Y73: 0 | Z73: 0 | AA73: 0 | AB73: 0 | AC73: 0 | AD73: 0 | AE73: 0 | AF73: 0 | AG73: 0 | AH73: 0 | AI73: 0 | AJ73: 0 | AK73: 0 | AM73: 8.340683092 | AN73: 8.340683092 | AQ73: 4.129385812 | AR73: 58 | AS73: =100*COUNT($AQ$31:AQ73)/$AQ$397 -> 13.91585761 | AU73: 0 | AV73: 0
A74: 2017-02-13 | T74: 44 | U74: 0 | V74: 0 | W74: 0 | X74: 0 | Y74: 0 | Z74: 0 | AA74: 0 | AB74: 0 | AC74: 0 | AD74: 0 | AE74: 0 | AF74: 0 | AG74: 0 | AH74: 0 | AI74: 0 | AJ74: 0 | AK74: 0 | AM74: 7.701773457 | AN74: 7.701773457 | AQ74: 4.126597369 | AR74: 128 | AS74: =100*COUNT($AQ$31:AQ74)/$AQ$397 -> 14.2394822 | AU74: 0 | AV74: 0
A75: 2017-02-14 | T75: 45 | U75: 0 | V75: 0 | W75: 0 | X75: 0 | Y75: 0 | Z75: 0 | AA75: 0 | AB75: 0 | AC75: 0 | AD75: 0 | AE75: 0 | AF75: 0 | AG75: 0 | AH75: 0 | AI75: 0 | AJ75: 0 | AK75: 0 | AM75: 9.002777992 | AN75: 9.002777992 | AQ75: 4.123395879 | AR75: 240 | AS75: =100*COUNT($AQ$31:AQ75)/$AQ$397 -> 14.5631068 | AU75: 0 | AV75: 0
A76: 2017-02-15 | T76: 46 | U76: 0 | V76: 0 | W76: 0 | X76: 0 | Y76: 0 | Z76: 0 | AA76: 0 | AB76: 0 | AC76: 0 | AD76: 0 | AE76: 0 | AF76: 0 | AG76: 0 | AH76: 0 | AI76: 0 | AJ76: 0 | AK76: 0 | AM76: 9.815607781 | AN76: 9.815607781 | AQ76: 3.987329855 | AR76: 306 | AS76: =100*COUNT($AQ$31:AQ76)/$AQ$397 -> 14.88673139 | AU76: 0 | AV76: 0
A77: 2017-02-16 | T77: 47 | U77: 0 | V77: 0 | W77: 0 | X77: 0 | Y77: 0 | Z77: 0 | AA77: 0 | AB77: 0 | AC77: 0 | AD77: 0 | AE77: 0 | AF77: 0 | AG77: 0 | AH77: 0 | AI77: 0 | AJ77: 0 | AK77: 0 | AM77: 9.58722359 | AN77: 9.58722359 | AQ77: 3.978791525 | AR77: 264 | AS77: =100*COUNT($AQ$31:AQ77)/$AQ$397 -> 15.21035599 | AU77: 0 | AV77: 0
A78: 2017-02-17 | T78: 48 | U78: 0 | V78: 0 | W78: 0 | X78: 0 | Y78: 0 | Z78: 0 | AA78: 0 | AB78: 0 | AC78: 0 | AD78: 0 | AE78: 0 | AF78: 0 | AG78: 0 | AH78: 0 | AI78: 0 | AJ78: 0 | AK78: 0 | AM78: 10.71297216 | AN78: 10.71297216 | AQ78: 3.932542197 | AR78: 139 | AS78: =100*COUNT($AQ$31:AQ78)/$AQ$397 -> 15.53398058 | AU78: 0 | AV78: 0
A79: 2017-02-18 | T79: 49 | U79: 0 | V79: 0 | W79: 0 | X79: 0 | Y79: 0 | Z79: 0 | AA79: 0 | AB79: 0 | AC79: 0 | AD79: 0 | AE79: 0 | AF79: 0 | AG79: 0 | AH79: 0 | AI79: 0 | AJ79: 0 | AK79: 0 | AM79: 9.413427225 | AN79: 9.413427225 | AQ79: 3.913548942 | AR79: 33 | AS79: =100*COUNT($AQ$31:AQ79)/$AQ$397 -> 15.85760518 | AU79: 0 | AV79: 0
A80: 2017-02-19 | T80: 50 | U80: 0 | V80: 0 | W80: 0 | X80: 0 | Y80: 0 | Z80: 0 | AA80: 0 | AB80: 0 | AC80: 0 | AD80: 0 | AE80: 0 | AF80: 0 | AG80: 0 | AH80: 0 | AI80: 0 | AJ80: 0 | AK80: 0 | AM80: 5.476786856 | AN80: 5.476786856 | AQ80: 3.911382593 | AR80: 178 | AS80: =100*COUNT($AQ$31:AQ80)/$AQ$397 -> 16.18122977 | AU80: 0 | AV80: 0
A81: 2017-02-20 | T81: 51 | U81: 0 | V81: 0 | W81: 0 | X81: 0 | Y81: 0 | Z81: 0 | AA81: 0 | AB81: 0 | AC81: 0 | AD81: 0 | AE81: 0 | AF81: 0 | AG81: 0 | AH81: 0 | AI81: 0 | AJ81: 0 | AK81: 0 | AM81: 7.363435467 | AN81: 7.363435467 | AQ81: 3.899849584 | AR81: 29 | AS81: =100*COUNT($AQ$31:AQ81)/$AQ$397 -> 16.50485437 | AU81: 0 | AV81: 0
A82: 2017-02-21 | T82: 52 | U82: 0 | V82: 0 | W82: 0 | X82: 0 | Y82: 0 | Z82: 0 | AA82: 0 | AB82: 0 | AC82: 0 | AD82: 0 | AE82: 0 | AF82: 0 | AG82: 0 | AH82: 0 | AI82: 0 | AJ82: 0 | AK82: 0 | AM82: 7.106064198 | AN82: 7.106064198 | AQ82: 3.89514789 | AR82: 214 | AS82: =100*COUNT($AQ$31:AQ82)/$AQ$397 -> 16.82847896 | AU82: 0 | AV82: 0
A83: 2017-02-22 | T83: 53 | U83: 0 | V83: 0 | W83: 0 | X83: 0 | Y83: 0 | Z83: 0 | AA83: 0 | AB83: 0 | AC83: 0 | AD83: 0 | AE83: 0 | AF83: 0 | AG83: 0 | AH83: 0 | AI83: 0 | AJ83: 0 | AK83: 0 | AM83: 6.774425291 | AN83: 6.774425291 | AQ83: 3.887217497 | AR83: 51 | AS83: =100*COUNT($AQ$31:AQ83)/$AQ$397 -> 17.15210356 | AU83: 0 | AV83: 0
A84: 2017-02-23 | T84: 54 | U84: 0 | V84: 0 | W84: 0 | X84: 0 | Y84: 0 | Z84: 0 | AA84: 0 | AB84: 0 | AC84: 0 | AD84: 0 | AE84: 0 | AF84: 0 | AG84: 0 | AH84: 0 | AI84: 0 | AJ84: 0 | AK84: 0 | AM84: 7.43535313 | AN84: 7.43535313 | AQ84: 3.878818394 | AR84: 61 | AS84: =100*COUNT($AQ$31:AQ84)/$AQ$397 -> 17.47572816 | AU84: 0 | AV84: 0
A85: 2017-02-24 | T85: 55 | U85: 0 | V85: 0 | W85: 0 | X85: 0 | Y85: 0 | Z85: 0 | AA85: 0 | AB85: 0 | AC85: 0 | AD85: 0 | AE85: 0 | AF85: 0 | AG85: 0 | AH85: 0 | AI85: 0 | AJ85: 0 | AK85: 0 | AM85: 9.195303066 | AN85: 9.195303066 | AQ85: 3.846736455 | AR85: 4 | AS85: =100*COUNT($AQ$31:AQ85)/$AQ$397 -> 17.79935275 | AU85: 0 | AV85: 0
A86: 2017-02-25 | T86: 56 | U86: 0 | V86: 0 | W86: 0 | X86: 0 | Y86: 0 | Z86: 0 | AA86: 0 | AB86: 0 | AC86: 0 | AD86: 0 | AE86: 0 | AF86: 0 | AG86: 0 | AH86: 0 | AI86: 0 | AJ86: 0 | AK86: 0 | AM86: 5.672582908 | AN86: 5.672582908 | AQ86: 3.83296727 | AR86: 310 | AS86: =100*COUNT($AQ$31:AQ86)/$AQ$397 -> 18.12297735 | AU86: 0 | AV86: 0
A87: 2017-02-26 | T87: 57 | U87: 0 | V87: 0 | W87: 0 | X87: 0 | Y87: 0 | Z87: 0 | AA87: 0 | AB87: 0 | AC87: 0 | AD87: 0 | AE87: 0 | AF87: 0 | AG87: 0 | AH87: 0 | AI87: 0 | AJ87: 0 | AK87: 0 | AM87: 5.035803243 | AN87: 5.035803243 | AQ87: 3.82741557 | AR87: 166 | AS87: =100*COUNT($AQ$31:AQ87)/$AQ$397 -> 18.44660194 | AU87: 0 | AV87: 0
A88: 2017-02-27 | T88: 58 | U88: 0 | V88: 0 | W88: 0 | X88: 0 | Y88: 0 | Z88: 0 | AA88: 0 | AB88: 0 | AC88: 0 | AD88: 0 | AE88: 0 | AF88: 0 | AG88: 0 | AH88: 0 | AI88: 0 | AJ88: 0 | AK88: 0 | AM88: 8.650913962 | AN88: 8.650913962 | AQ88: 3.782373278 | AR88: 326 | AS88: =100*COUNT($AQ$31:AQ88)/$AQ$397 -> 18.77022654 | AU88: 0 | AV88: 0
A89: 2017-02-28 | T89: 59 | U89: 0 | V89: 0 | W89: 0 | X89: 0 | Y89: 0 | Z89: 0 | AA89: 0 | AB89: 0 | AC89: 0 | AD89: 0 | AE89: 0 | AF89: 0 | AG89: 0 | AH89: 0 | AI89: 0 | AJ89: 0 | AK89: 0 | AM89: 7.204309267 | AN89: 7.204309267 | AQ89: 3.768894233 | AR89: 250 | AS89: =100*COUNT($AQ$31:AQ89)/$AQ$397 -> 19.09385113 | AU89: 0 | AV89: 0
A90: 2017-03-01 | T90: 60 | U90: 0 | V90: 0 | W90: 0 | X90: 0 | Y90: 0 | Z90: 0 | AA90: 0 | AB90: 0 | AC90: 0 | AD90: 0 | AE90: 0 | AF90: 0 | AG90: 0 | AH90: 0 | AI90: 0 | AJ90: 0 | AK90: 0 | AM90: 10.3482797 | AN90: 10.3482797 | AQ90: 3.749279293 | AR90: 349 | AS90: =100*COUNT($AQ$31:AQ90)/$AQ$397 -> 19.41747573 | AU90: 0 | AV90: 0
A91: 2017-03-02 | T91: 61 | U91: 0 | V91: 0 | W91: 0 | X91: 0 | Y91: 0 | Z91: 0 | AA91: 0 | AB91: 0 | AC91: 0 | AD91: 0 | AE91: 0 | AF91: 0 | AG91: 0 | AH91: 0 | AI91: 0 | AJ91: 0 | AK91: 0 | AM91: 8.956614572 | AN91: 8.956614572 | AQ91: 3.736628267 | AR91: 234 | AS91: =100*COUNT($AQ$31:AQ91)/$AQ$397 -> 19.74110032 | AU91: 0 | AV91: 0
A92: 2017-03-03 | T92: 62 | U92: 0 | V92: 0 | W92: 0 | X92: 0 | Y92: 0 | Z92: 0 | AA92: 0 | AB92: 0 | AC92: 0 | AD92: 0 | AE92: 0 | AF92: 0 | AG92: 0 | AH92: 0 | AI92: 0 | AJ92: 0 | AK92: 0 | AM92: 10.15605273 | AN92: 10.15605273 | AQ92: 3.732656869 | AR92: 263 | AS92: =100*COUNT($AQ$31:AQ92)/$AQ$397 -> 20.06472492 | AU92: 0 | AV92: 0
A93: 2017-03-04 | T93: 63 | U93: 0 | V93: 0 | W93: 0 | X93: 0 | Y93: 0 | Z93: 0 | AA93: 0 | AB93: 0 | AC93: 0 | AD93: 0 | AE93: 0 | AF93: 0 | AG93: 0 | AH93: 0 | AI93: 0 | AJ93: 0 | AK93: 0 | AM93: 12.01740904 | AN93: 12.01740904 | AQ93: 3.724459467 | AR93: 340 | AS93: =100*COUNT($AQ$31:AQ93)/$AQ$397 -> 20.38834951 | AU93: 0 | AV93: 0
A94: 2017-03-05 | T94: 64 | U94: 0 | V94: 0 | W94: 0 | X94: 0 | Y94: 0 | Z94: 0 | AA94: 0 | AB94: 0 | AC94: 0 | AD94: 0 | AE94: 0 | AF94: 0 | AG94: 0 | AH94: 0 | AI94: 0 | AJ94: 0 | AK94: 0 | AM94: 8.516361926 | AN94: 8.516361926 | AQ94: 3.717458497 | AR94: 11 | AS94: =100*COUNT($AQ$31:AQ94)/$AQ$397 -> 20.71197411 | AU94: 0 | AV94: 0
A95: 2017-03-06 | T95: 65 | U95: 0 | V95: 0 | W95: 0 | X95: 0 | Y95: 0 | Z95: 0 | AA95: 0 | AB95: 0 | AC95: 0 | AD95: 0 | AE95: 0 | AF95: 0 | AG95: 0 | AH95: 0 | AI95: 0 | AJ95: 0 | AK95: 0 | AM95: 10.36162127 | AN95: 10.36162127 | AQ95: 3.694246584 | AR95: 174 | AS95: =100*COUNT($AQ$31:AQ95)/$AQ$397 -> 21.03559871 | AU95: 0 | AV95: 0
A96: =A95+1 -> 2017-03-07 | T96: =T95+1 -> 66 | U96: =IF(B96="",,Seg1Vol*Seg1Fac/B96*C96) -> 0 | V96: =Target*0.2828*D96^2.69*C96^0.15*0.933^(E96-5) -> 0 | W96: =IF(V96=0,,U96/V96) -> 0 | X96: =IF(B96="",,Seg2Vol*Seg2Fac/B96*F96) -> 0 | Y96: =Target*0.2828*G96^2.69*F96^0.15*0.933^(H96-5) -> 0 | Z96: =IF(Y96=0,,X96/Y96) -> 0 | AA96: =IF(B96="",,Seg3Vol*Seg3Fac/B96*I96) -> 0 | AB96: =Target*0.2828*J96^2.69*I96^0.15*0.933^(K96-5) -> 0 | AC96: =IF(AB96=0,,AA96/AB96) -> 0 | AD96: =IF(B96="",,Seg4Vol*Seg4Fac/B96*L96) -> 0 | AE96: =Target*0.2828*M96^2.69*L96^0.15*0.933^(N96-5) -> 0 | AF96: =IF(AE96=0,,AD96/AE96) -> 0 | AG96: =IF(B96="",,Seg5Vol*O96*Seg5Fac/B96*P96) -> 0 | AH96: =Target*0.2828*Q96^2.69*P96^0.15*0.933^(R96-5) -> 0 | AI96: =IF(AH96=0,,AG96/AH96) -> 0 | AJ96: =W96+Z96+AC96+AF96+AI96 -> 0 | AK96: =AJ96*Target -> 0 | AM96: 6.773462178 | AN96: 6.773462178 | AQ96: 3.686647932 | AR96: 5 | AS96: =100*COUNT($AQ$31:AQ96)/$AQ$397 -> 21.3592233 | AU96: =$AU$29 -> 0 | AV96: =+$AV$29 -> 0
A97: 2017-03-08 | T97: 67 | U97: 0 | V97: 0 | W97: 0 | X97: 0 | Y97: 0 | Z97: 0 | AA97: 0 | AB97: 0 | AC97: 0 | AD97: 0 | AE97: 0 | AF97: 0 | AG97: 0 | AH97: 0 | AI97: 0 | AJ97: 0 | AK97: 0 | AM97: 11.10782992 | AN97: 11.10782992 | AQ97: 3.681114337 | AR97: 309 | AS97: =100*COUNT($AQ$31:AQ97)/$AQ$397 -> 21.6828479 | AU97: 0 | AV97: 0 | AX97: =$AX$29 ->  | AY97: =+$AY$29 -> 
A98: 2017-03-09 | T98: 68 | U98: 0 | V98: 0 | W98: 0 | X98: 0 | Y98: 0 | Z98: 0 | AA98: 0 | AB98: 0 | AC98: 0 | AD98: 0 | AE98: 0 | AF98: 0 | AG98: 0 | AH98: 0 | AI98: 0 | AJ98: 0 | AK98: 0 | AM98: 11.00600542 | AN98: 11.00600542 | AQ98: 3.662399482 | AR98: 279 | AS98: =100*COUNT($AQ$31:AQ98)/$AQ$397 -> 22.00647249 | AU98: 0 | AV98: 0
A99: 2017-03-10 | T99: 69 | U99: 0 | V99: 0 | W99: 0 | X99: 0 | Y99: 0 | Z99: 0 | AA99: 0 | AB99: 0 | AC99: 0 | AD99: 0 | AE99: 0 | AF99: 0 | AG99: 0 | AH99: 0 | AI99: 0 | AJ99: 0 | AK99: 0 | AM99: 10.55347665 | AN99: 10.55347665 | AQ99: 3.646462997 | AR99: 172 | AS99: =100*COUNT($AQ$31:AQ99)/$AQ$397 -> 22.33009709 | AU99: 0 | AV99: 0
A100: 2017-03-11 | T100: 70 | U100: 0 | V100: 0 | W100: 0 | X100: 0 | Y100: 0 | Z100: 0 | AA100: 0 | AB100: 0 | AC100: 0 | AD100: 0 | AE100: 0 | AF100: 0 | AG100: 0 | AH100: 0 | AI100: 0 | AJ100: 0 | AK100: 0 | AM100: 9.795109421 | AN100: 9.795109421 | AQ100: 3.64124354 | AR100: 189 | AS100: =100*COUNT($AQ$31:AQ100)/$AQ$397 -> 22.65372168 | AU100: 0 | AV100: 0
A101: 2017-03-12 | T101: 71 | U101: 0 | V101: 0 | W101: 0 | X101: 0 | Y101: 0 | Z101: 0 | AA101: 0 | AB101: 0 | AC101: 0 | AD101: 0 | AE101: 0 | AF101: 0 | AG101: 0 | AH101: 0 | AI101: 0 | AJ101: 0 | AK101: 0 | AM101: 9.425797739 | AN101: 9.425797739 | AQ101: 3.596472795 | AR101: 198 | AS101: =100*COUNT($AQ$31:AQ101)/$AQ$397 -> 22.97734628 | AU101: 0 | AV101: 0
A102: 2017-03-13 | T102: 72 | U102: 0 | V102: 0 | W102: 0 | X102: 0 | Y102: 0 | Z102: 0 | AA102: 0 | AB102: 0 | AC102: 0 | AD102: 0 | AE102: 0 | AF102: 0 | AG102: 0 | AH102: 0 | AI102: 0 | AJ102: 0 | AK102: 0 | AM102: 8.570807792 | AN102: 8.570807792 | AQ102: 3.585237816 | AR102: 321 | AS102: =100*COUNT($AQ$31:AQ102)/$AQ$397 -> 23.30097087 | AU102: 0 | AV102: 0
A103: 2017-03-14 | T103: 73 | U103: 0 | V103: 0 | W103: 0 | X103: 0 | Y103: 0 | Z103: 0 | AA103: 0 | AB103: 0 | AC103: 0 | AD103: 0 | AE103: 0 | AF103: 0 | AG103: 0 | AH103: 0 | AI103: 0 | AJ103: 0 | AK103: 0 | AM103: 7.05785511 | AN103: 7.05785511 | AQ103: 3.583175717 | AR103: 131 | AS103: =100*COUNT($AQ$31:AQ103)/$AQ$397 -> 23.62459547 | AU103: 0 | AV103: 0
A104: 2017-03-15 | T104: 74 | U104: 0 | V104: 0 | W104: 0 | X104: 0 | Y104: 0 | Z104: 0 | AA104: 0 | AB104: 0 | AC104: 0 | AD104: 0 | AE104: 0 | AF104: 0 | AG104: 0 | AH104: 0 | AI104: 0 | AJ104: 0 | AK104: 0 | AM104: 9.712204366 | AN104: 9.712204366 | AQ104: 3.57973454 | AR104: 3 | AS104: =100*COUNT($AQ$31:AQ104)/$AQ$397 -> 23.94822006 | AU104: 0 | AV104: 0
A105: 2017-03-16 | T105: 75 | U105: 0 | V105: 0 | W105: 0 | X105: 0 | Y105: 0 | Z105: 0 | AA105: 0 | AB105: 0 | AC105: 0 | AD105: 0 | AE105: 0 | AF105: 0 | AG105: 0 | AH105: 0 | AI105: 0 | AJ105: 0 | AK105: 0 | AM105: 9.036854789 | AN105: 9.036854789 | AQ105: 3.574716688 | AR105: 8 | AS105: =100*COUNT($AQ$31:AQ105)/$AQ$397 -> 24.27184466 | AU105: 0 | AV105: 0
A106: 2017-03-17 | T106: 76 | U106: 0 | V106: 0 | W106: 0 | X106: 0 | Y106: 0 | Z106: 0 | AA106: 0 | AB106: 0 | AC106: 0 | AD106: 0 | AE106: 0 | AF106: 0 | AG106: 0 | AH106: 0 | AI106: 0 | AJ106: 0 | AK106: 0 | AM106: 9.73072076 | AN106: 9.73072076 | AQ106: 3.57216899 | AR106: 288 | AS106: =100*COUNT($AQ$31:AQ106)/$AQ$397 -> 24.59546926 | AU106: 0 | AV106: 0
A107: 2017-03-18 | T107: 77 | U107: 0 | V107: 0 | W107: 0 | X107: 0 | Y107: 0 | Z107: 0 | AA107: 0 | AB107: 0 | AC107: 0 | AD107: 0 | AE107: 0 | AF107: 0 | AG107: 0 | AH107: 0 | AI107: 0 | AJ107: 0 | AK107: 0 | AM107: 8.578213861 | AN107: 8.578213861 | AQ107: 3.544575632 | AR107: 142 | AS107: =100*COUNT($AQ$31:AQ107)/$AQ$397 -> 24.91909385 | AU107: 0 | AV107: 0
A108: 2017-03-19 | T108: 78 | U108: 0 | V108: 0 | W108: 0 | X108: 0 | Y108: 0 | Z108: 0 | AA108: 0 | AB108: 0 | AC108: 0 | AD108: 0 | AE108: 0 | AF108: 0 | AG108: 0 | AH108: 0 | AI108: 0 | AJ108: 0 | AK108: 0 | AM108: 10.69049659 | AN108: 10.69049659 | AQ108: 3.521111565 | AR108: 77 | AS108: =100*COUNT($AQ$31:AQ108)/$AQ$397 -> 25.24271845 | AU108: 0 | AV108: 0
A109: 2017-03-20 | T109: 79 | U109: 0 | V109: 0 | W109: 0 | X109: 0 | Y109: 0 | Z109: 0 | AA109: 0 | AB109: 0 | AC109: 0 | AD109: 0 | AE109: 0 | AF109: 0 | AG109: 0 | AH109: 0 | AI109: 0 | AJ109: 0 | AK109: 0 | AM109: 8.405891234 | AN109: 8.405891234 | AQ109: 3.511953975 | AR109: 149 | AS109: =100*COUNT($AQ$31:AQ109)/$AQ$397 -> 25.56634304 | AU109: 0 | AV109: 0
A110: 2017-03-21 | T110: 80 | U110: 0 | V110: 0 | W110: 0 | X110: 0 | Y110: 0 | Z110: 0 | AA110: 0 | AB110: 0 | AC110: 0 | AD110: 0 | AE110: 0 | AF110: 0 | AG110: 0 | AH110: 0 | AI110: 0 | AJ110: 0 | AK110: 0 | AM110: 7.59715751 | AN110: 7.59715751 | AQ110: 3.497428452 | AR110: 144 | AS110: =100*COUNT($AQ$31:AQ110)/$AQ$397 -> 25.88996764 | AU110: 0 | AV110: 0
A111: 2017-03-22 | T111: 81 | U111: 0 | V111: 0 | W111: 0 | X111: 0 | Y111: 0 | Z111: 0 | AA111: 0 | AB111: 0 | AC111: 0 | AD111: 0 | AE111: 0 | AF111: 0 | AG111: 0 | AH111: 0 | AI111: 0 | AJ111: 0 | AK111: 0 | AM111: 9.24140089 | AN111: 9.24140089 | AQ111: 3.493967967 | AR111: 320 | AS111: =100*COUNT($AQ$31:AQ111)/$AQ$397 -> 26.21359223 | AU111: 0 | AV111: 0
A112: 2017-03-23 | T112: 82 | U112: 0 | V112: 0 | W112: 0 | X112: 0 | Y112: 0 | Z112: 0 | AA112: 0 | AB112: 0 | AC112: 0 | AD112: 0 | AE112: 0 | AF112: 0 | AG112: 0 | AH112: 0 | AI112: 0 | AJ112: 0 | AK112: 0 | AM112: 9.101161367 | AN112: 9.101161367 | AQ112: 3.469187226 | AR112: 12 | AS112: =100*COUNT($AQ$31:AQ112)/$AQ$397 -> 26.53721683 | AU112: 0 | AV112: 0
A113: 2017-03-24 | T113: 83 | U113: 0 | V113: 0 | W113: 0 | X113: 0 | Y113: 0 | Z113: 0 | AA113: 0 | AB113: 0 | AC113: 0 | AD113: 0 | AE113: 0 | AF113: 0 | AG113: 0 | AH113: 0 | AI113: 0 | AJ113: 0 | AK113: 0 | AM113: 13.92509564 | AN113: 13.92509564 | AQ113: 3.468333813 | AR113: 238 | AS113: =100*COUNT($AQ$31:AQ113)/$AQ$397 -> 26.86084142 | AU113: 0 | AV113: 0
A114: 2017-03-25 | T114: 84 | U114: 0 | V114: 0 | W114: 0 | X114: 0 | Y114: 0 | Z114: 0 | AA114: 0 | AB114: 0 | AC114: 0 | AD114: 0 | AE114: 0 | AF114: 0 | AG114: 0 | AH114: 0 | AI114: 0 | AJ114: 0 | AK114: 0 | AM114: 11.09981121 | AN114: 11.09981121 | AQ114: 3.457761473 | AR114: 52 | AS114: =100*COUNT($AQ$31:AQ114)/$AQ$397 -> 27.18446602 | AU114: 0 | AV114: 0
A115: 2017-03-26 | T115: 85 | U115: 0 | V115: 0 | W115: 0 | X115: 0 | Y115: 0 | Z115: 0 | AA115: 0 | AB115: 0 | AC115: 0 | AD115: 0 | AE115: 0 | AF115: 0 | AG115: 0 | AH115: 0 | AI115: 0 | AJ115: 0 | AK115: 0 | AM115: 11.01705094 | AN115: 11.01705094 | AQ115: 3.453592383 | AR115: 248 | AS115: =100*COUNT($AQ$31:AQ115)/$AQ$397 -> 27.50809061 | AU115: 0 | AV115: 0
A116: 2017-03-27 | T116: 86 | U116: 0 | V116: 0 | W116: 0 | X116: 0 | Y116: 0 | Z116: 0 | AA116: 0 | AB116: 0 | AC116: 0 | AD116: 0 | AE116: 0 | AF116: 0 | AG116: 0 | AH116: 0 | AI116: 0 | AJ116: 0 | AK116: 0 | AM116: 10.04603309 | AN116: 10.04603309 | AQ116: 3.453592383 | AR116: 215 | AS116: =100*COUNT($AQ$31:AQ116)/$AQ$397 -> 27.83171521 | AU116: 0 | AV116: 0
A117: 2017-03-28 | T117: 87 | U117: 0 | V117: 0 | W117: 0 | X117: 0 | Y117: 0 | Z117: 0 | AA117: 0 | AB117: 0 | AC117: 0 | AD117: 0 | AE117: 0 | AF117: 0 | AG117: 0 | AH117: 0 | AI117: 0 | AJ117: 0 | AK117: 0 | AM117: 11.13374797 | AN117: 11.13374797 | AQ117: 3.448553135 | AR117: 164 | AS117: =100*COUNT($AQ$31:AQ117)/$AQ$397 -> 28.15533981 | AU117: 0 | AV117: 0
A118: 2017-03-29 | T118: 88 | U118: 0 | V118: 0 | W118: 0 | X118: 0 | Y118: 0 | Z118: 0 | AA118: 0 | AB118: 0 | AC118: 0 | AD118: 0 | AE118: 0 | AF118: 0 | AG118: 0 | AH118: 0 | AI118: 0 | AJ118: 0 | AK118: 0 | AM118: 9.801085114 | AN118: 9.801085114 | AQ118: 3.445872859 | AR118: 311 | AS118: =100*COUNT($AQ$31:AQ118)/$AQ$397 -> 28.4789644 | AU118: 0 | AV118: 0
A119: 2017-03-30 | T119: 89 | U119: 0 | V119: 0 | W119: 0 | X119: 0 | Y119: 0 | Z119: 0 | AA119: 0 | AB119: 0 | AC119: 0 | AD119: 0 | AE119: 0 | AF119: 0 | AG119: 0 | AH119: 0 | AI119: 0 | AJ119: 0 | AK119: 0 | AM119: 12.50806584 | AN119: 12.50806584 | AQ119: 3.44433354 | AR119: 45 | AS119: =100*COUNT($AQ$31:AQ119)/$AQ$397 -> 28.802589 | AU119: 0 | AV119: 0
A120: 2017-03-31 | T120: 90 | U120: 0 | V120: 0 | W120: 0 | X120: 0 | Y120: 0 | Z120: 0 | AA120: 0 | AB120: 0 | AC120: 0 | AD120: 0 | AE120: 0 | AF120: 0 | AG120: 0 | AH120: 0 | AI120: 0 | AJ120: 0 | AK120: 0 | AM120: 12.68923562 | AN120: 12.68923562 | AQ120: 3.442366643 | AR120: 71 | AS120: =100*COUNT($AQ$31:AQ120)/$AQ$397 -> 29.12621359 | AU120: 0 | AV120: 0
A121: 2017-04-01 | T121: 91 | U121: 0 | V121: 0 | W121: 0 | X121: 0 | Y121: 0 | Z121: 0 | AA121: 0 | AB121: 0 | AC121: 0 | AD121: 0 | AE121: 0 | AF121: 0 | AG121: 0 | AH121: 0 | AI121: 0 | AJ121: 0 | AK121: 0 | AM121: 10.19547696 | AN121: 10.19547696 | AQ121: 3.422329438 | AR121: 105 | AS121: =100*COUNT($AQ$31:AQ121)/$AQ$397 -> 29.44983819 | AU121: 0 | AV121: 0
A122: 2017-04-02 | T122: 92 | U122: 0 | V122: 0 | W122: 0 | X122: 0 | Y122: 0 | Z122: 0 | AA122: 0 | AB122: 0 | AC122: 0 | AD122: 0 | AE122: 0 | AF122: 0 | AG122: 0 | AH122: 0 | AI122: 0 | AJ122: 0 | AK122: 0 | AM122: 10.912485 | AN122: 10.912485 | AQ122: 3.421197369 | AR122: 317 | AS122: =100*COUNT($AQ$31:AQ122)/$AQ$397 -> 29.77346278 | AU122: 0 | AV122: 0
A123: 2017-04-03 | T123: 93 | U123: 0 | V123: 0 | W123: 0 | X123: 0 | Y123: 0 | Z123: 0 | AA123: 0 | AB123: 0 | AC123: 0 | AD123: 0 | AE123: 0 | AF123: 0 | AG123: 0 | AH123: 0 | AI123: 0 | AJ123: 0 | AK123: 0 | AM123: 9.67651271 | AN123: 9.67651271 | AQ123: 3.412632688 | AR123: 190 | AS123: =100*COUNT($AQ$31:AQ123)/$AQ$397 -> 30.09708738 | AU123: 0 | AV123: 0
A124: 2017-04-04 | T124: 94 | U124: 0 | V124: 0 | W124: 0 | X124: 0 | Y124: 0 | Z124: 0 | AA124: 0 | AB124: 0 | AC124: 0 | AD124: 0 | AE124: 0 | AF124: 0 | AG124: 0 | AH124: 0 | AI124: 0 | AJ124: 0 | AK124: 0 | AM124: 9.698165452 | AN124: 9.698165452 | AQ124: 3.386339222 | AR124: 197 | AS124: =100*COUNT($AQ$31:AQ124)/$AQ$397 -> 30.42071197 | AU124: 0 | AV124: 0
A125: 2017-04-05 | T125: 95 | U125: 0 | V125: 0 | W125: 0 | X125: 0 | Y125: 0 | Z125: 0 | AA125: 0 | AB125: 0 | AC125: 0 | AD125: 0 | AE125: 0 | AF125: 0 | AG125: 0 | AH125: 0 | AI125: 0 | AJ125: 0 | AK125: 0 | AM125: 10.122751 | AN125: 10.122751 | AQ125: 3.341236397 | AR125: 258 | AS125: =100*COUNT($AQ$31:AQ125)/$AQ$397 -> 30.74433657 | AU125: 0 | AV125: 0
A126: 2017-04-06 | T126: 96 | U126: 0 | V126: 0 | W126: 0 | X126: 0 | Y126: 0 | Z126: 0 | AA126: 0 | AB126: 0 | AC126: 0 | AD126: 0 | AE126: 0 | AF126: 0 | AG126: 0 | AH126: 0 | AI126: 0 | AJ126: 0 | AK126: 0 | AM126: 13.43097134 | AN126: 13.43097134 | AQ126: 3.34116932 | AR126: 204 | AS126: =100*COUNT($AQ$31:AQ126)/$AQ$397 -> 31.06796117 | AU126: 0 | AV126: 0
A127: 2017-04-07 | T127: 97 | U127: 0 | V127: 0 | W127: 0 | X127: 0 | Y127: 0 | Z127: 0 | AA127: 0 | AB127: 0 | AC127: 0 | AD127: 0 | AE127: 0 | AF127: 0 | AG127: 0 | AH127: 0 | AI127: 0 | AJ127: 0 | AK127: 0 | AM127: 9.683034194 | AN127: 9.683034194 | AQ127: 3.321444449 | AR127: 123 | AS127: =100*COUNT($AQ$31:AQ127)/$AQ$397 -> 31.39158576 | AU127: 0 | AV127: 0
A128: 2017-04-08 | T128: 98 | U128: 0 | V128: 0 | W128: 0 | X128: 0 | Y128: 0 | Z128: 0 | AA128: 0 | AB128: 0 | AC128: 0 | AD128: 0 | AE128: 0 | AF128: 0 | AG128: 0 | AH128: 0 | AI128: 0 | AJ128: 0 | AK128: 0 | AM128: 10.48146314 | AN128: 10.48146314 | AQ128: 3.315615324 | AR128: 59 | AS128: =100*COUNT($AQ$31:AQ128)/$AQ$397 -> 31.71521036 | AU128: 0 | AV128: 0
A129: 2017-04-09 | T129: 99 | U129: 0 | V129: 0 | W129: 0 | X129: 0 | Y129: 0 | Z129: 0 | AA129: 0 | AB129: 0 | AC129: 0 | AD129: 0 | AE129: 0 | AF129: 0 | AG129: 0 | AH129: 0 | AI129: 0 | AJ129: 0 | AK129: 0 | AM129: 11.00091327 | AN129: 11.00091327 | AQ129: 3.297766155 | AR129: 256 | AS129: =100*COUNT($AQ$31:AQ129)/$AQ$397 -> 32.03883495 | AU129: 0 | AV129: 0
A130: 2017-04-10 | T130: 100 | U130: 0 | V130: 0 | W130: 0 | X130: 0 | Y130: 0 | Z130: 0 | AA130: 0 | AB130: 0 | AC130: 0 | AD130: 0 | AE130: 0 | AF130: 0 | AG130: 0 | AH130: 0 | AI130: 0 | AJ130: 0 | AK130: 0 | AM130: 12.60034844 | AN130: 12.60034844 | AQ130: 3.289946812 | AR130: 146 | AS130: =100*COUNT($AQ$31:AQ130)/$AQ$397 -> 32.36245955 | AU130: 0 | AV130: 0
A131: 2017-04-11 | T131: 101 | U131: 0 | V131: 0 | W131: 0 | X131: 0 | Y131: 0 | Z131: 0 | AA131: 0 | AB131: 0 | AC131: 0 | AD131: 0 | AE131: 0 | AF131: 0 | AG131: 0 | AH131: 0 | AI131: 0 | AJ131: 0 | AK131: 0 | AM131: 10.3789634 | AN131: 10.3789634 | AQ131: 3.274975246 | AR131: 342 | AS131: =100*COUNT($AQ$31:AQ131)/$AQ$397 -> 32.68608414 | AU131: 0 | AV131: 0
A132: 2017-04-12 | T132: 102 | U132: 0 | V132: 0 | W132: 0 | X132: 0 | Y132: 0 | Z132: 0 | AA132: 0 | AB132: 0 | AC132: 0 | AD132: 0 | AE132: 0 | AF132: 0 | AG132: 0 | AH132: 0 | AI132: 0 | AJ132: 0 | AK132: 0 | AM132: 14.35371258 | AN132: 14.35371258 | AQ132: 3.271516561 | AR132: 103 | AS132: =100*COUNT($AQ$31:AQ132)/$AQ$397 -> 33.00970874 | AU132: 0 | AV132: 0
A133: 2017-04-13 | T133: 103 | U133: 0 | V133: 0 | W133: 0 | X133: 0 | Y133: 0 | Z133: 0 | AA133: 0 | AB133: 0 | AC133: 0 | AD133: 0 | AE133: 0 | AF133: 0 | AG133: 0 | AH133: 0 | AI133: 0 | AJ133: 0 | AK133: 0 | AM133: 8.617291009 | AN133: 8.617291009 | AQ133: 3.245884567 | AR133: 192 | AS133: =100*COUNT($AQ$31:AQ133)/$AQ$397 -> 33.33333333 | AU133: 0 | AV133: 0
A134: 2017-04-14 | T134: 104 | U134: 0 | V134: 0 | W134: 0 | X134: 0 | Y134: 0 | Z134: 0 | AA134: 0 | AB134: 0 | AC134: 0 | AD134: 0 | AE134: 0 | AF134: 0 | AG134: 0 | AH134: 0 | AI134: 0 | AJ134: 0 | AK134: 0 | AM134: 10.44384159 | AN134: 10.44384159 | AQ134: 3.195873286 | AR134: 356 | AS134: =100*COUNT($AQ$31:AQ134)/$AQ$397 -> 33.65695793 | AU134: 0 | AV134: 0
A135: 2017-04-15 | T135: 105 | U135: 0 | V135: 0 | W135: 0 | X135: 0 | Y135: 0 | Z135: 0 | AA135: 0 | AB135: 0 | AC135: 0 | AD135: 0 | AE135: 0 | AF135: 0 | AG135: 0 | AH135: 0 | AI135: 0 | AJ135: 0 | AK135: 0 | AM135: 11.65889207 | AN135: 11.65889207 | AQ135: 3.188473967 | AR135: 218 | AS135: =100*COUNT($AQ$31:AQ135)/$AQ$397 -> 33.98058252 | AU135: 0 | AV135: 0
A136: 2017-04-16 | T136: 106 | U136: 0 | V136: 0 | W136: 0 | X136: 0 | Y136: 0 | Z136: 0 | AA136: 0 | AB136: 0 | AC136: 0 | AD136: 0 | AE136: 0 | AF136: 0 | AG136: 0 | AH136: 0 | AI136: 0 | AJ136: 0 | AK136: 0 | AM136: 8.941832199 | AN136: 8.941832199 | AQ136: 3.188473967 | AR136: 57 | AS136: =100*COUNT($AQ$31:AQ136)/$AQ$397 -> 34.30420712 | AU136: 0 | AV136: 0
A137: 2017-04-17 | T137: 107 | U137: 0 | V137: 0 | W137: 0 | X137: 0 | Y137: 0 | Z137: 0 | AA137: 0 | AB137: 0 | AC137: 0 | AD137: 0 | AE137: 0 | AF137: 0 | AG137: 0 | AH137: 0 | AI137: 0 | AJ137: 0 | AK137: 0 | AM137: 9.767012344 | AN137: 9.767012344 | AQ137: 3.187536387 | AR137: 212 | AS137: =100*COUNT($AQ$31:AQ137)/$AQ$397 -> 34.62783172 | AU137: 0 | AV137: 0
A138: 2017-04-18 | T138: 108 | U138: 0 | V138: 0 | W138: 0 | X138: 0 | Y138: 0 | Z138: 0 | AA138: 0 | AB138: 0 | AC138: 0 | AD138: 0 | AE138: 0 | AF138: 0 | AG138: 0 | AH138: 0 | AI138: 0 | AJ138: 0 | AK138: 0 | AM138: 9.665459631 | AN138: 9.665459631 | AQ138: 3.185114543 | AR138: 285 | AS138: =100*COUNT($AQ$31:AQ138)/$AQ$397 -> 34.95145631 | AU138: 0 | AV138: 0
A139: 2017-04-19 | T139: 109 | U139: 0 | V139: 0 | W139: 0 | X139: 0 | Y139: 0 | Z139: 0 | AA139: 0 | AB139: 0 | AC139: 0 | AD139: 0 | AE139: 0 | AF139: 0 | AG139: 0 | AH139: 0 | AI139: 0 | AJ139: 0 | AK139: 0 | AM139: 10.95319378 | AN139: 10.95319378 | AQ139: 3.185114543 | AR139: 148 | AS139: =100*COUNT($AQ$31:AQ139)/$AQ$397 -> 35.27508091 | AU139: 0 | AV139: 0
A140: 2017-04-20 | T140: 110 | U140: 0 | V140: 0 | W140: 0 | X140: 0 | Y140: 0 | Z140: 0 | AA140: 0 | AB140: 0 | AC140: 0 | AD140: 0 | AE140: 0 | AF140: 0 | AG140: 0 | AH140: 0 | AI140: 0 | AJ140: 0 | AK140: 0 | AM140: 12.3040545 | AN140: 12.3040545 | AQ140: 3.185114543 | AR140: 177 | AS140: =100*COUNT($AQ$31:AQ140)/$AQ$397 -> 35.5987055 | AU140: 0 | AV140: 0
A141: 2017-04-21 | T141: 111 | U141: 0 | V141: 0 | W141: 0 | X141: 0 | Y141: 0 | Z141: 0 | AA141: 0 | AB141: 0 | AC141: 0 | AD141: 0 | AE141: 0 | AF141: 0 | AG141: 0 | AH141: 0 | AI141: 0 | AJ141: 0 | AK141: 0 | AM141: 15.56902409 | AN141: 15.56902409 | AQ141: 3.15689648 | AR141: 65 | AS141: =100*COUNT($AQ$31:AQ141)/$AQ$397 -> 35.9223301 | AU141: 0 | AV141: 0
A142: 2017-04-22 | T142: 112 | U142: 0 | V142: 0 | W142: 0 | X142: 0 | Y142: 0 | Z142: 0 | AA142: 0 | AB142: 0 | AC142: 0 | AD142: 0 | AE142: 0 | AF142: 0 | AG142: 0 | AH142: 0 | AI142: 0 | AJ142: 0 | AK142: 0 | AM142: 13.92169633 | AN142: 13.92169633 | AQ142: 3.137874738 | AR142: 333 | AS142: =100*COUNT($AQ$31:AQ142)/$AQ$397 -> 36.24595469 | AU142: 0 | AV142: 0
A143: 2017-04-23 | T143: 113 | U143: 0 | V143: 0 | W143: 0 | X143: 0 | Y143: 0 | Z143: 0 | AA143: 0 | AB143: 0 | AC143: 0 | AD143: 0 | AE143: 0 | AF143: 0 | AG143: 0 | AH143: 0 | AI143: 0 | AJ143: 0 | AK143: 0 | AM143: 13.30541521 | AN143: 13.30541521 | AQ143: 3.137367784 | AR143: 60 | AS143: =100*COUNT($AQ$31:AQ143)/$AQ$397 -> 36.56957929 | AU143: 0 | AV143: 0
A144: 2017-04-24 | T144: 114 | U144: 0 | V144: 0 | W144: 0 | X144: 0 | Y144: 0 | Z144: 0 | AA144: 0 | AB144: 0 | AC144: 0 | AD144: 0 | AE144: 0 | AF144: 0 | AG144: 0 | AH144: 0 | AI144: 0 | AJ144: 0 | AK144: 0 | AM144: 10.37606726 | AN144: 10.37606726 | AQ144: 3.136521147 | AR144: 82 | AS144: =100*COUNT($AQ$31:AQ144)/$AQ$397 -> 36.89320388 | AU144: 0 | AV144: 0
A145: 2017-04-25 | T145: 115 | U145: 0 | V145: 0 | W145: 0 | X145: 0 | Y145: 0 | Z145: 0 | AA145: 0 | AB145: 0 | AC145: 0 | AD145: 0 | AE145: 0 | AF145: 0 | AG145: 0 | AH145: 0 | AI145: 0 | AJ145: 0 | AK145: 0 | AM145: 11.59318662 | AN145: 11.59318662 | AQ145: 3.117572521 | AR145: 206 | AS145: =100*COUNT($AQ$31:AQ145)/$AQ$397 -> 37.21682848 | AU145: 0 | AV145: 0
A146: 2017-04-26 | T146: 116 | U146: 0 | V146: 0 | W146: 0 | X146: 0 | Y146: 0 | Z146: 0 | AA146: 0 | AB146: 0 | AC146: 0 | AD146: 0 | AE146: 0 | AF146: 0 | AG146: 0 | AH146: 0 | AI146: 0 | AJ146: 0 | AK146: 0 | AM146: 10.18997385 | AN146: 10.18997385 | AQ146: 2.944931544 | AR146: 83 | AS146: =100*COUNT($AQ$31:AQ146)/$AQ$397 -> 37.54045307 | AU146: 0 | AV146: 0
A147: 2017-04-27 | T147: 117 | U147: 0 | V147: 0 | W147: 0 | X147: 0 | Y147: 0 | Z147: 0 | AA147: 0 | AB147: 0 | AC147: 0 | AD147: 0 | AE147: 0 | AF147: 0 | AG147: 0 | AH147: 0 | AI147: 0 | AJ147: 0 | AK147: 0 | AM147: 12.42935374 | AN147: 12.42935374 | AQ147: 2.938223629 | AR147: 284 | AS147: =100*COUNT($AQ$31:AQ147)/$AQ$397 -> 37.86407767 | AU147: 0 | AV147: 0
A148: 2017-04-28 | T148: 118 | U148: 0 | V148: 0 | W148: 0 | X148: 0 | Y148: 0 | Z148: 0 | AA148: 0 | AB148: 0 | AC148: 0 | AD148: 0 | AE148: 0 | AF148: 0 | AG148: 0 | AH148: 0 | AI148: 0 | AJ148: 0 | AK148: 0 | AM148: 13.30298324 | AN148: 13.30298324 | AQ148: 2.888833364 | AR148: 327 | AS148: =100*COUNT($AQ$31:AQ148)/$AQ$397 -> 38.18770227 | AU148: 0 | AV148: 0
A149: 2017-04-29 | T149: 119 | U149: 0 | V149: 0 | W149: 0 | X149: 0 | Y149: 0 | Z149: 0 | AA149: 0 | AB149: 0 | AC149: 0 | AD149: 0 | AE149: 0 | AF149: 0 | AG149: 0 | AH149: 0 | AI149: 0 | AJ149: 0 | AK149: 0 | AM149: 9.88518161 | AN149: 9.88518161 | AQ149: 2.871747462 | AR149: 134 | AS149: =100*COUNT($AQ$31:AQ149)/$AQ$397 -> 38.51132686 | AU149: 0 | AV149: 0
A150: 2017-04-30 | T150: 120 | U150: 0 | V150: 0 | W150: 0 | X150: 0 | Y150: 0 | Z150: 0 | AA150: 0 | AB150: 0 | AC150: 0 | AD150: 0 | AE150: 0 | AF150: 0 | AG150: 0 | AH150: 0 | AI150: 0 | AJ150: 0 | AK150: 0 | AM150: 9.152984529 | AN150: 9.152984529 | AQ150: 2.868882277 | AR150: 316 | AS150: =100*COUNT($AQ$31:AQ150)/$AQ$397 -> 38.83495146 | AU150: 0 | AV150: 0
A151: 2017-05-01 | T151: 121 | U151: 0 | V151: 0 | W151: 0 | X151: 0 | Y151: 0 | Z151: 0 | AA151: 0 | AB151: 0 | AC151: 0 | AD151: 0 | AE151: 0 | AF151: 0 | AG151: 0 | AH151: 0 | AI151: 0 | AJ151: 0 | AK151: 0 | AM151: 10.23068648 | AN151: 10.23068648 | AQ151: 2.844788284 | AR151: 141 | AS151: =100*COUNT($AQ$31:AQ151)/$AQ$397 -> 39.15857605 | AU151: 0 | AV151: 0
A152: 2017-05-02 | T152: 122 | U152: 0 | V152: 0 | W152: 0 | X152: 0 | Y152: 0 | Z152: 0 | AA152: 0 | AB152: 0 | AC152: 0 | AD152: 0 | AE152: 0 | AF152: 0 | AG152: 0 | AH152: 0 | AI152: 0 | AJ152: 0 | AK152: 0 | AM152: 12.58440507 | AN152: 12.58440507 | AQ152: 2.843443172 | AR152: 100 | AS152: =100*COUNT($AQ$31:AQ152)/$AQ$397 -> 39.48220065 | AU152: 0 | AV152: 0
A153: 2017-05-03 | T153: 123 | U153: 0 | V153: 0 | W153: 0 | X153: 0 | Y153: 0 | Z153: 0 | AA153: 0 | AB153: 0 | AC153: 0 | AD153: 0 | AE153: 0 | AF153: 0 | AG153: 0 | AH153: 0 | AI153: 0 | AJ153: 0 | AK153: 0 | AM153: 17.47899065 | AN153: 17.47899065 | AQ153: 2.816426648 | AR153: 56 | AS153: =100*COUNT($AQ$31:AQ153)/$AQ$397 -> 39.80582524 | AU153: 0 | AV153: 0
A154: 2017-05-04 | T154: 124 | U154: 0 | V154: 0 | W154: 0 | X154: 0 | Y154: 0 | Z154: 0 | AA154: 0 | AB154: 0 | AC154: 0 | AD154: 0 | AE154: 0 | AF154: 0 | AG154: 0 | AH154: 0 | AI154: 0 | AJ154: 0 | AK154: 0 | AM154: 15.41928986 | AN154: 15.41928986 | AQ154: 2.798831745 | AR154: 194 | AS154: =100*COUNT($AQ$31:AQ154)/$AQ$397 -> 40.12944984 | AU154: 0 | AV154: 0
A155: 2017-05-05 | T155: 125 | U155: 0 | V155: 0 | W155: 0 | X155: 0 | Y155: 0 | Z155: 0 | AA155: 0 | AB155: 0 | AC155: 0 | AD155: 0 | AE155: 0 | AF155: 0 | AG155: 0 | AH155: 0 | AI155: 0 | AJ155: 0 | AK155: 0 | AM155: 15.53736632 | AN155: 15.53736632 | AQ155: 2.793959244 | AR155: 183 | AS155: =100*COUNT($AQ$31:AQ155)/$AQ$397 -> 40.45307443 | AU155: 0 | AV155: 0
A156: 2017-05-06 | T156: 126 | U156: 0 | V156: 0 | W156: 0 | X156: 0 | Y156: 0 | Z156: 0 | AA156: 0 | AB156: 0 | AC156: 0 | AD156: 0 | AE156: 0 | AF156: 0 | AG156: 0 | AH156: 0 | AI156: 0 | AJ156: 0 | AK156: 0 | AM156: 13.07851401 | AN156: 13.07851401 | AQ156: 2.778587575 | AR156: 26 | AS156: =100*COUNT($AQ$31:AQ156)/$AQ$397 -> 40.77669903 | AU156: 0 | AV156: 0
A157: 2017-05-07 | T157: 127 | U157: 0 | V157: 0 | W157: 0 | X157: 0 | Y157: 0 | Z157: 0 | AA157: 0 | AB157: 0 | AC157: 0 | AD157: 0 | AE157: 0 | AF157: 0 | AG157: 0 | AH157: 0 | AI157: 0 | AJ157: 0 | AK157: 0 | AM157: 12.95294132 | AN157: 12.95294132 | AQ157: 2.774469228 | AR157: 161 | AS157: =100*COUNT($AQ$31:AQ157)/$AQ$397 -> 41.10032362 | AU157: 0 | AV157: 0
A158: 2017-05-08 | T158: 128 | U158: 0 | V158: 0 | W158: 0 | X158: 0 | Y158: 0 | Z158: 0 | AA158: 0 | AB158: 0 | AC158: 0 | AD158: 0 | AE158: 0 | AF158: 0 | AG158: 0 | AH158: 0 | AI158: 0 | AJ158: 0 | AK158: 0 | AM158: 13.83152797 | AN158: 13.83152797 | AQ158: 2.746345459 | AR158: 193 | AS158: =100*COUNT($AQ$31:AQ158)/$AQ$397 -> 41.42394822 | AU158: 0 | AV158: 0
A159: 2017-05-09 | T159: 129 | U159: 0 | V159: 0 | W159: 0 | X159: 0 | Y159: 0 | Z159: 0 | AA159: 0 | AB159: 0 | AC159: 0 | AD159: 0 | AE159: 0 | AF159: 0 | AG159: 0 | AH159: 0 | AI159: 0 | AJ159: 0 | AK159: 0 | AM159: 14.64841318 | AN159: 14.64841318 | AQ159: 2.737626533 | AR159: 357 | AS159: =100*COUNT($AQ$31:AQ159)/$AQ$397 -> 41.74757282 | AU159: 0 | AV159: 0
A160: =A159+1 -> 2017-05-10 | T160: =T159+1 -> 130 | U160: =IF(B160="",,Seg1Vol*Seg1Fac/B160*C160) -> 0 | V160: =Target*0.2828*D160^2.69*C160^0.15*0.933^(E160-5) -> 0 | W160: =IF(V160=0,,U160/V160) -> 0 | X160: =IF(B160="",,Seg2Vol*Seg2Fac/B160*F160) -> 0 | Y160: =Target*0.2828*G160^2.69*F160^0.15*0.933^(H160-5) -> 0 | Z160: =IF(Y160=0,,X160/Y160) -> 0 | AA160: =IF(B160="",,Seg3Vol*Seg3Fac/B160*I160) -> 0 | AB160: =Target*0.2828*J160^2.69*I160^0.15*0.933^(K160-5) -> 0 | AC160: =IF(AB160=0,,AA160/AB160) -> 0 | AD160: =IF(B160="",,Seg4Vol*Seg4Fac/B160*L160) -> 0 | AE160: =Target*0.2828*M160^2.69*L160^0.15*0.933^(N160-5) -> 0 | AF160: =IF(AE160=0,,AD160/AE160) -> 0 | AG160: =IF(B160="",,Seg5Vol*O160*Seg5Fac/B160*P160) -> 0 | AH160: =Target*0.2828*Q160^2.69*P160^0.15*0.933^(R160-5) -> 0 | AI160: =IF(AH160=0,,AG160/AH160) -> 0 | AJ160: =W160+Z160+AC160+AF160+AI160 -> 0 | AK160: =AJ160*Target -> 0 | AM160: 12.52839057 | AN160: 12.52839057 | AQ160: 2.736626542 | AR160: 109 | AS160: =100*COUNT($AQ$31:AQ160)/$AQ$397 -> 42.07119741 | AU160: =$AU$29 -> 0 | AV160: =+$AV$29 -> 0
A161: 2017-05-11 | T161: 131 | U161: 0 | V161: 0 | W161: 0 | X161: 0 | Y161: 0 | Z161: 0 | AA161: =IF(B161="",,Seg3Vol*Seg3Fac/B161*I161) -> 0 | AB161: =Target*0.2828*J161^2.69*I161^0.15*0.933^(K161-5) -> 0 | AC161: =IF(AB161=0,,AA161/AB161) -> 0 | AD161: 0 | AE161: 0 | AF161: 0 | AG161: 0 | AH161: 0 | AI161: 0 | AJ161: 0 | AK161: 0 | AM161: 14.63136375 | AN161: 14.63136375 | AQ161: 2.683891226 | AR161: 145 | AS161: =100*COUNT($AQ$31:AQ161)/$AQ$397 -> 42.39482201 | AU161: 0 | AV161: 0 | AX161: =$AX$29 ->  | AY161: =+$AY$29 -> 
A162: 2017-05-12 | T162: 132 | U162: 0 | V162: 0 | W162: 0 | X162: 0 | Y162: 0 | Z162: 0 | AA162: =IF(B162="",,Seg3Vol*Seg3Fac/B162*I162) -> 0 | AB162: =Target*0.2828*J162^2.69*I162^0.15*0.933^(K162-5) -> 0 | AC162: =IF(AB162=0,,AA162/AB162) -> 0 | AD162: 0 | AE162: 0 | AF162: 0 | AG162: 0 | AH162: 0 | AI162: 0 | AJ162: 0 | AK162: 0 | AM162: 25.00487255 | AN162: 25.00487255 | AQ162: 2.664598795 | AR162: 67 | AS162: =100*COUNT($AQ$31:AQ162)/$AQ$397 -> 42.7184466 | AU162: 0 | AV162: 0
A163: 2017-05-13 | T163: 133 | U163: 0 | V163: 0 | W163: 0 | X163: 0 | Y163: 0 | Z163: 0 | AA163: =IF(B163="",,Seg3Vol*Seg3Fac/B163*I163) -> 0 | AB163: =Target*0.2828*J163^2.69*I163^0.15*0.933^(K163-5) -> 0 | AC163: =IF(AB163=0,,AA163/AB163) -> 0 | AD163: 0 | AE163: 0 | AF163: 0 | AG163: 0 | AH163: 0 | AI163: 0 | AJ163: 0 | AK163: 0 | AM163: 15.32331819 | AN163: 15.32331819 | AQ163: 2.662973995 | AR163: 90 | AS163: =100*COUNT($AQ$31:AQ163)/$AQ$397 -> 43.0420712 | AU163: 0 | AV163: 0
A164: 2017-05-14 | T164: 134 | U164: 0 | V164: 0 | W164: 0 | X164: 0 | Y164: 0 | Z164: 0 | AA164: =IF(B164="",,Seg3Vol*Seg3Fac/B164*I164) -> 0 | AB164: =Target*0.2828*J164^2.69*I164^0.15*0.933^(K164-5) -> 0 | AC164: =IF(AB164=0,,AA164/AB164) -> 0 | AD164: 0 | AE164: 0 | AF164: 0 | AG164: 0 | AH164: 0 | AI164: 0 | AJ164: 0 | AK164: 0 | AM164: 14.98514907 | AN164: 14.98514907 | AQ164: 2.657783891 | AR164: 18 | AS164: =100*COUNT($AQ$31:AQ164)/$AQ$397 -> 43.36569579 | AU164: 0 | AV164: 0
A165: 2017-05-15 | T165: 135 | U165: 0 | V165: 0 | W165: 0 | X165: 0 | Y165: 0 | Z165: 0 | AA165: 0 | AB165: 0 | AC165: 0 | AD165: 0 | AE165: 0 | AF165: 0 | AG165: 0 | AH165: 0 | AI165: 0 | AJ165: 0 | AK165: 0 | AM165: 17.33204177 | AN165: 17.33204177 | AQ165: 2.626864714 | AR165: 39 | AS165: =100*COUNT($AQ$31:AQ165)/$AQ$397 -> 43.68932039 | AU165: 0 | AV165: 0
A166: 2017-05-16 | T166: 136 | U166: 0 | V166: 0 | W166: 0 | X166: 0 | Y166: 0 | Z166: 0 | AA166: 0 | AB166: 0 | AC166: 0 | AD166: 0 | AE166: 0 | AF166: 0 | AG166: 0 | AH166: 0 | AI166: 0 | AJ166: 0 | AK166: 0 | AM166: 20.571468 | AN166: 20.571468 | AQ166: 2.626864714 | AR166: 209 | AS166: =100*COUNT($AQ$31:AQ166)/$AQ$397 -> 44.01294498 | AU166: 0 | AV166: 0
A167: 2017-05-17 | T167: 137 | U167: 0 | V167: 0 | W167: 0 | X167: 0 | Y167: 0 | Z167: 0 | AA167: 0 | AB167: 0 | AC167: 0 | AD167: 0 | AE167: 0 | AF167: 0 | AG167: 0 | AH167: 0 | AI167: 0 | AJ167: 0 | AK167: 0 | AM167: 22.08534638 | AN167: 22.08534638 | AQ167: 2.596173994 | AR167: 163 | AS167: =100*COUNT($AQ$31:AQ167)/$AQ$397 -> 44.33656958 | AU167: 0 | AV167: 0
A168: 2017-05-18 | T168: 138 | U168: 0 | V168: 0 | W168: 0 | X168: 0 | Y168: 0 | Z168: 0 | AA168: 0 | AB168: 0 | AC168: 0 | AD168: 0 | AE168: 0 | AF168: 0 | AG168: 0 | AH168: 0 | AI168: 0 | AJ168: 0 | AK168: 0 | AM168: 19.23712664 | AN168: 19.23712664 | AQ168: 2.59552393 | AR168: 253 | AS168: =100*COUNT($AQ$31:AQ168)/$AQ$397 -> 44.66019417 | AU168: 0 | AV168: 0
A169: 2017-05-19 | T169: 139 | U169: 0 | V169: 0 | W169: 0 | X169: 0 | Y169: 0 | Z169: 0 | AA169: 0 | AB169: 0 | AC169: 0 | AD169: 0 | AE169: 0 | AF169: 0 | AG169: 0 | AH169: 0 | AI169: 0 | AJ169: 0 | AK169: 0 | AM169: 24.67984494 | AN169: 24.67984494 | AQ169: 2.592188565 | AR169: 210 | AS169: =100*COUNT($AQ$31:AQ169)/$AQ$397 -> 44.98381877 | AU169: 0 | AV169: 0
A170: 2017-05-20 | T170: 140 | U170: 0 | V170: 0 | W170: 0 | X170: 0 | Y170: 0 | Z170: 0 | AA170: 0 | AB170: 0 | AC170: 0 | AD170: 0 | AE170: 0 | AF170: 0 | AG170: 0 | AH170: 0 | AI170: 0 | AJ170: 0 | AK170: 0 | AM170: 15.54463354 | AN170: 15.54463354 | AQ170: 2.555667348 | AR170: 312 | AS170: =100*COUNT($AQ$31:AQ170)/$AQ$397 -> 45.30744337 | AU170: 0 | AV170: 0
A171: 2017-05-21 | T171: 141 | U171: 0 | V171: 0 | W171: 0 | X171: 0 | Y171: 0 | Z171: 0 | AA171: 0 | AB171: 0 | AC171: 0 | AD171: 0 | AE171: 0 | AF171: 0 | AG171: 0 | AH171: 0 | AI171: 0 | AJ171: 0 | AK171: 0 | AM171: 20.6132065 | AN171: 20.6132065 | AQ171: 2.519696349 | AR171: 332 | AS171: =100*COUNT($AQ$31:AQ171)/$AQ$397 -> 45.63106796 | AU171: 0 | AV171: 0
A172: 2017-05-22 | T172: 142 | U172: 0 | V172: 0 | W172: 0 | X172: 0 | Y172: 0 | Z172: 0 | AA172: 0 | AB172: 0 | AC172: 0 | AD172: 0 | AE172: 0 | AF172: 0 | AG172: 0 | AH172: 0 | AI172: 0 | AJ172: 0 | AK172: 0 | AM172: 18.02180443 | AN172: 18.02180443 | AQ172: 2.394616361 | AR172: 324 | AS172: =100*COUNT($AQ$31:AQ172)/$AQ$397 -> 45.95469256 | AU172: 0 | AV172: 0
A173: 2017-05-23 | T173: 143 | U173: 0 | V173: 0 | W173: 0 | X173: 0 | Y173: 0 | Z173: 0 | AA173: 0 | AB173: 0 | AC173: 0 | AD173: 0 | AE173: 0 | AF173: 0 | AG173: 0 | AH173: 0 | AI173: 0 | AJ173: 0 | AK173: 0 | AM173: 15.97375564 | AN173: 15.97375564 | AQ173: 2.38412434 | AR173: 92 | AS173: =100*COUNT($AQ$31:AQ173)/$AQ$397 -> 46.27831715 | AU173: 0 | AV173: 0
A174: 2017-05-24 | T174: 144 | U174: 0 | V174: 0 | W174: 0 | X174: 0 | Y174: 0 | Z174: 0 | AA174: 0 | AB174: 0 | AC174: 0 | AD174: 0 | AE174: 0 | AF174: 0 | AG174: 0 | AH174: 0 | AI174: 0 | AJ174: 0 | AK174: 0 | AM174: 17.27619442 | AN174: 17.27619442 | AQ174: 2.355551168 | AR174: 44 | AS174: =100*COUNT($AQ$31:AQ174)/$AQ$397 -> 46.60194175 | AU174: 0 | AV174: 0
A175: 2017-05-25 | T175: 145 | U175: 0 | V175: 0 | W175: 0 | X175: 0 | Y175: 0 | Z175: 0 | AA175: 0 | AB175: 0 | AC175: 0 | AD175: 0 | AE175: 0 | AF175: 0 | AG175: 0 | AH175: 0 | AI175: 0 | AJ175: 0 | AK175: 0 | AM175: 20.02071263 | AN175: 20.02071263 | AQ175: 2.32359753 | AR175: 133 | AS175: =100*COUNT($AQ$31:AQ175)/$AQ$397 -> 46.92556634 | AU175: 0 | AV175: 0
A176: 2017-05-26 | T176: 146 | U176: 0 | V176: 0 | W176: 0 | X176: 0 | Y176: 0 | Z176: 0 | AA176: 0 | AB176: 0 | AC176: 0 | AD176: 0 | AE176: 0 | AF176: 0 | AG176: 0 | AH176: 0 | AI176: 0 | AJ176: 0 | AK176: 0 | AM176: 16.55940972 | AN176: 16.55940972 | AQ176: 2.313872519 | AR176: 127 | AS176: =100*COUNT($AQ$31:AQ176)/$AQ$397 -> 47.24919094 | AU176: 0 | AV176: 0
A177: 2017-05-27 | T177: 147 | U177: 0 | V177: 0 | W177: 0 | X177: 0 | Y177: 0 | Z177: 0 | AA177: 0 | AB177: 0 | AC177: 0 | AD177: 0 | AE177: 0 | AF177: 0 | AG177: 0 | AH177: 0 | AI177: 0 | AJ177: 0 | AK177: 0 | AM177: 18.62534008 | AN177: 18.62534008 | AQ177: 2.313259577 | AR177: 104 | AS177: =100*COUNT($AQ$31:AQ177)/$AQ$397 -> 47.57281553 | AU177: 0 | AV177: 0
A178: 2017-05-28 | T178: 148 | U178: 0 | V178: 0 | W178: 0 | X178: 0 | Y178: 0 | Z178: 0 | AA178: 0 | AB178: 0 | AC178: 0 | AD178: 0 | AE178: 0 | AF178: 0 | AG178: 0 | AH178: 0 | AI178: 0 | AJ178: 0 | AK178: 0 | AM178: 20.95405771 | AN178: 20.95405771 | AQ178: 2.294133284 | AR178: 322 | AS178: =100*COUNT($AQ$31:AQ178)/$AQ$397 -> 47.89644013 | AU178: 0 | AV178: 0
A179: 2017-05-29 | T179: 149 | U179: 0 | V179: 0 | W179: 0 | X179: 0 | Y179: 0 | Z179: 0 | AA179: 0 | AB179: 0 | AC179: 0 | AD179: 0 | AE179: 0 | AF179: 0 | AG179: 0 | AH179: 0 | AI179: 0 | AJ179: 0 | AK179: 0 | AM179: 18.92109637 | AN179: 18.92109637 | AQ179: 2.289329586 | AR179: 179 | AS179: =100*COUNT($AQ$31:AQ179)/$AQ$397 -> 48.22006472 | AU179: 0 | AV179: 0
A180: 2017-05-30 | T180: 150 | U180: 0 | V180: 0 | W180: 0 | X180: 0 | Y180: 0 | Z180: 0 | AA180: 0 | AB180: 0 | AC180: 0 | AD180: 0 | AE180: 0 | AF180: 0 | AG180: 0 | AH180: 0 | AI180: 0 | AJ180: 0 | AK180: 0 | AM180: 18.70923302 | AN180: 18.70923302 | AQ180: 2.262846924 | AR180: 254 | AS180: =100*COUNT($AQ$31:AQ180)/$AQ$397 -> 48.54368932 | AU180: 0 | AV180: 0
A181: 2017-05-31 | T181: 151 | U181: 0 | V181: 0 | W181: 0 | X181: 0 | Y181: 0 | Z181: 0 | AA181: 0 | AB181: 0 | AC181: 0 | AD181: 0 | AE181: 0 | AF181: 0 | AG181: 0 | AH181: 0 | AI181: 0 | AJ181: 0 | AK181: 0 | AM181: 19.67674113 | AN181: 19.67674113 | AQ181: 2.244133462 | AR181: 85 | AS181: =100*COUNT($AQ$31:AQ181)/$AQ$397 -> 48.86731392 | AU181: 0 | AV181: 0
A182: 2017-06-01 | T182: 152 | U182: 0 | V182: 0 | W182: 0 | X182: 0 | Y182: 0 | Z182: 0 | AA182: 0 | AB182: 0 | AC182: 0 | AD182: 0 | AE182: 0 | AF182: 0 | AG182: 0 | AH182: 0 | AI182: 0 | AJ182: 0 | AK182: 0 | AM182: 20.09185388 | AN182: 20.09185388 | AQ182: 2.243888137 | AR182: 73 | AS182: =100*COUNT($AQ$31:AQ182)/$AQ$397 -> 49.19093851 | AU182: 0 | AV182: 0
A183: 2017-06-02 | T183: 153 | U183: 0 | V183: 0 | W183: 0 | X183: 0 | Y183: 0 | Z183: 0 | AA183: 0 | AB183: 0 | AC183: 0 | AD183: 0 | AE183: 0 | AF183: 0 | AG183: 0 | AH183: 0 | AI183: 0 | AJ183: 0 | AK183: 0 | AM183: 17.74066272 | AN183: 17.74066272 | AQ183: 2.238627659 | AR183: 72 | AS183: =100*COUNT($AQ$31:AQ183)/$AQ$397 -> 49.51456311 | AU183: 0 | AV183: 0
A184: 2017-06-03 | T184: 154 | U184: 0 | V184: 0 | W184: 0 | X184: 0 | Y184: 0 | Z184: 0 | AA184: 0 | AB184: 0 | AC184: 0 | AD184: 0 | AE184: 0 | AF184: 0 | AG184: 0 | AH184: 0 | AI184: 0 | AJ184: 0 | AK184: 0 | AM184: 16.59324956 | AN184: 16.59324956 | AQ184: 2.238464443 | AR184: 236 | AS184: =100*COUNT($AQ$31:AQ184)/$AQ$397 -> 49.8381877 | AU184: 0 | AV184: 0
A185: 2017-06-04 | T185: 155 | U185: 0 | V185: 0 | W185: 0 | X185: 0 | Y185: 0 | Z185: 0 | AA185: 0 | AB185: 0 | AC185: 0 | AD185: 0 | AE185: 0 | AF185: 0 | AG185: 0 | AH185: 0 | AI185: 0 | AJ185: 0 | AK185: 0 | AM185: 21.9220316 | AN185: 21.9220316 | AQ185: 2.229955163 | AR185: 267 | AS185: =100*COUNT($AQ$31:AQ185)/$AQ$397 -> 50.1618123 | AU185: 0 | AV185: 0
A186: 2017-06-05 | T186: 156 | U186: 0 | V186: 0 | W186: 0 | X186: 0 | Y186: 0 | Z186: 0 | AA186: 0 | AB186: 0 | AC186: 0 | AD186: 0 | AE186: 0 | AF186: 0 | AG186: 0 | AH186: 0 | AI186: 0 | AJ186: 0 | AK186: 0 | AM186: 20.18336258 | AN186: 20.18336258 | AQ186: 2.226131765 | AR186: 244 | AS186: =100*COUNT($AQ$31:AQ186)/$AQ$397 -> 50.48543689 | AU186: 0 | AV186: 0
A187: 2017-06-06 | T187: 157 | U187: 0 | V187: 0 | W187: 0 | X187: 0 | Y187: 0 | Z187: 0 | AA187: 0 | AB187: 0 | AC187: 0 | AD187: 0 | AE187: 0 | AF187: 0 | AG187: 0 | AH187: 0 | AI187: 0 | AJ187: 0 | AK187: 0 | AM187: 19.39941035 | AN187: 19.39941035 | AQ187: 2.191966212 | AR187: 195 | AS187: =100*COUNT($AQ$31:AQ187)/$AQ$397 -> 50.80906149 | AU187: 0 | AV187: 0
A188: 2017-06-07 | T188: 158 | U188: 0 | V188: 0 | W188: 0 | X188: 0 | Y188: 0 | Z188: 0 | AA188: 0 | AB188: 0 | AC188: 0 | AD188: 0 | AE188: 0 | AF188: 0 | AG188: 0 | AH188: 0 | AI188: 0 | AJ188: 0 | AK188: 0 | AM188: 17.99355686 | AN188: 17.99355686 | AQ188: 2.178219169 | AR188: 137 | AS188: =100*COUNT($AQ$31:AQ188)/$AQ$397 -> 51.13268608 | AU188: 0 | AV188: 0
A189: 2017-06-08 | T189: 159 | U189: 0 | V189: 0 | W189: 0 | X189: 0 | Y189: 0 | Z189: 0 | AA189: 0 | AB189: 0 | AC189: 0 | AD189: 0 | AE189: 0 | AF189: 0 | AG189: 0 | AH189: 0 | AI189: 0 | AJ189: 0 | AK189: 0 | AM189: 23.20585752 | AN189: 23.20585752 | AQ189: 2.153421167 | AR189: 237 | AS189: =100*COUNT($AQ$31:AQ189)/$AQ$397 -> 51.45631068 | AU189: 0 | AV189: 0
A190: 2017-06-09 | T190: 160 | U190: 0 | V190: 0 | W190: 0 | X190: 0 | Y190: 0 | Z190: 0 | AA190: 0 | AB190: 0 | AC190: 0 | AD190: 0 | AE190: 0 | AF190: 0 | AG190: 0 | AH190: 0 | AI190: 0 | AJ190: 0 | AK190: 0 | AM190: 16.46953981 | AN190: 16.46953981 | AQ190: 2.137254328 | AR190: 277 | AS190: =100*COUNT($AQ$31:AQ190)/$AQ$397 -> 51.77993528 | AU190: 0 | AV190: 0
A191: 2017-06-10 | T191: 161 | U191: 0 | V191: 0 | W191: 0 | X191: 0 | Y191: 0 | Z191: 0 | AA191: 0 | AB191: 0 | AC191: 0 | AD191: 0 | AE191: 0 | AF191: 0 | AG191: 0 | AH191: 0 | AI191: 0 | AJ191: 0 | AK191: 0 | AM191: 21.12069614 | AN191: 21.12069614 | AQ191: 2.134577392 | AR191: 307 | AS191: =100*COUNT($AQ$31:AQ191)/$AQ$397 -> 52.10355987 | AU191: 0 | AV191: 0
A192: 2017-06-11 | T192: 162 | U192: 0 | V192: 0 | W192: 0 | X192: 0 | Y192: 0 | Z192: 0 | AA192: 0 | AB192: 0 | AC192: 0 | AD192: 0 | AE192: 0 | AF192: 0 | AG192: 0 | AH192: 0 | AI192: 0 | AJ192: 0 | AK192: 0 | AM192: 21.45993861 | AN192: 21.45993861 | AQ192: 2.128392866 | AR192: 202 | AS192: =100*COUNT($AQ$31:AQ192)/$AQ$397 -> 52.42718447 | AU192: 0 | AV192: 0
A193: 2017-06-12 | T193: 163 | U193: 0 | V193: 0 | W193: 0 | X193: 0 | Y193: 0 | Z193: 0 | AA193: 0 | AB193: 0 | AC193: 0 | AD193: 0 | AE193: 0 | AF193: 0 | AG193: 0 | AH193: 0 | AI193: 0 | AJ193: 0 | AK193: 0 | AM193: 23.1643747 | AN193: 23.1643747 | AQ193: 2.122455696 | AR193: 150 | AS193: =100*COUNT($AQ$31:AQ193)/$AQ$397 -> 52.75080906 | AU193: 0 | AV193: 0
A194: 2017-06-13 | T194: 164 | U194: 0 | V194: 0 | W194: 0 | X194: 0 | Y194: 0 | Z194: 0 | AA194: 0 | AB194: 0 | AC194: 0 | AD194: 0 | AE194: 0 | AF194: 0 | AG194: 0 | AH194: 0 | AI194: 0 | AJ194: 0 | AK194: 0 | AM194: 21.24791832 | AN194: 21.24791832 | AQ194: 2.117541999 | AR194: 168 | AS194: =100*COUNT($AQ$31:AQ194)/$AQ$397 -> 53.07443366 | AU194: 0 | AV194: 0
A195: 2017-06-14 | T195: 165 | U195: 0 | V195: 0 | W195: 0 | X195: 0 | Y195: 0 | Z195: 0 | AA195: 0 | AB195: 0 | AC195: 0 | AD195: 0 | AE195: 0 | AF195: 0 | AG195: 0 | AH195: 0 | AI195: 0 | AJ195: 0 | AK195: 0 | AM195: 28.45727049 | AN195: 28.45727049 | AQ195: 1.993495596 | AR195: 151 | AS195: =100*COUNT($AQ$31:AQ195)/$AQ$397 -> 53.39805825 | AU195: 0 | AV195: 0
A196: 2017-06-15 | T196: 166 | U196: 0 | V196: 0 | W196: 0 | X196: 0 | Y196: 0 | Z196: 0 | AA196: 0 | AB196: 0 | AC196: 0 | AD196: 0 | AE196: 0 | AF196: 0 | AG196: 0 | AH196: 0 | AI196: 0 | AJ196: 0 | AK196: 0 | AM196: 23.07782922 | AN196: 23.07782922 | AQ196: 1.981259278 | AR196: 245 | AS196: =100*COUNT($AQ$31:AQ196)/$AQ$397 -> 53.72168285 | AU196: 0 | AV196: 0
A197: 2017-06-16 | T197: 167 | U197: 0 | V197: 0 | W197: 0 | X197: 0 | Y197: 0 | Z197: 0 | AA197: 0 | AB197: 0 | AC197: 0 | AD197: 0 | AE197: 0 | AF197: 0 | AG197: 0 | AH197: 0 | AI197: 0 | AJ197: 0 | AK197: 0 | AM197: 28.52805316 | AN197: 28.52805316 | AQ197: 1.978914136 | AR197: 350 | AS197: =100*COUNT($AQ$31:AQ197)/$AQ$397 -> 54.04530744 | AU197: 0 | AV197: 0
A198: 2017-06-17 | T198: 168 | U198: 0 | V198: 0 | W198: 0 | X198: 0 | Y198: 0 | Z198: 0 | AA198: 0 | AB198: 0 | AC198: 0 | AD198: 0 | AE198: 0 | AF198: 0 | AG198: 0 | AH198: 0 | AI198: 0 | AJ198: 0 | AK198: 0 | AM198: 35.61932949 | AN198: 35.61932949 | AQ198: 1.976258417 | AR198: 235 | AS198: =100*COUNT($AQ$31:AQ198)/$AQ$397 -> 54.36893204 | AU198: 0 | AV198: 0
A199: 2017-06-18 | T199: 169 | U199: 0 | V199: 0 | W199: 0 | X199: 0 | Y199: 0 | Z199: 0 | AA199: 0 | AB199: 0 | AC199: 0 | AD199: 0 | AE199: 0 | AF199: 0 | AG199: 0 | AH199: 0 | AI199: 0 | AJ199: 0 | AK199: 0 | AM199: 28.75815903 | AN199: 28.75815903 | AQ199: 1.969769161 | AR199: 305 | AS199: =100*COUNT($AQ$31:AQ199)/$AQ$397 -> 54.69255663 | AU199: 0 | AV199: 0
A200: 2017-06-19 | T200: 170 | U200: 0 | V200: 0 | W200: 0 | X200: 0 | Y200: 0 | Z200: 0 | AA200: 0 | AB200: 0 | AC200: 0 | AD200: 0 | AE200: 0 | AF200: 0 | AG200: 0 | AH200: 0 | AI200: 0 | AJ200: 0 | AK200: 0 | AM200: 20.09110675 | AN200: 20.09110675 | AQ200: 1.967379654 | AR200: 78 | AS200: =100*COUNT($AQ$31:AQ200)/$AQ$397 -> 55.01618123 | AU200: 0 | AV200: 0
A201: 2017-06-20 | T201: 171 | U201: 0 | V201: 0 | W201: 0 | X201: 0 | Y201: 0 | Z201: 0 | AA201: 0 | AB201: 0 | AC201: 0 | AD201: 0 | AE201: 0 | AF201: 0 | AG201: 0 | AH201: 0 | AI201: 0 | AJ201: 0 | AK201: 0 | AM201: 31.72384747 | AN201: 31.72384747 | AQ201: 1.965153337 | AR201: 303 | AS201: =100*COUNT($AQ$31:AQ201)/$AQ$397 -> 55.33980583 | AU201: 0 | AV201: 0
A202: 2017-06-21 | T202: 172 | U202: 0 | V202: 0 | W202: 0 | X202: 0 | Y202: 0 | Z202: 0 | AA202: 0 | AB202: 0 | AC202: 0 | AD202: 0 | AE202: 0 | AF202: 0 | AG202: 0 | AH202: 0 | AI202: 0 | AJ202: 0 | AK202: 0 | AM202: 30.1626291 | AN202: 30.1626291 | AQ202: 1.962498588 | AR202: 299 | AS202: =100*COUNT($AQ$31:AQ202)/$AQ$397 -> 55.66343042 | AU202: 0 | AV202: 0
A203: 2017-06-22 | T203: 173 | U203: 0 | V203: 0 | W203: 0 | X203: 0 | Y203: 0 | Z203: 0 | AA203: 0 | AB203: 0 | AC203: 0 | AD203: 0 | AE203: 0 | AF203: 0 | AG203: 0 | AH203: 0 | AI203: 0 | AJ203: 0 | AK203: 0 | AM203: 31.439834 | AN203: 31.439834 | AQ203: 1.956932998 | AR203: 335 | AS203: =100*COUNT($AQ$31:AQ203)/$AQ$397 -> 55.98705502 | AU203: 0 | AV203: 0
A204: 2017-06-23 | T204: 174 | U204: 0 | V204: 0 | W204: 0 | X204: 0 | Y204: 0 | Z204: 0 | AA204: 0 | AB204: 0 | AC204: 0 | AD204: 0 | AE204: 0 | AF204: 0 | AG204: 0 | AH204: 0 | AI204: 0 | AJ204: 0 | AK204: 0 | AM204: 26.64670622 | AN204: 26.64670622 | AQ204: 1.949368998 | AR204: 231 | AS204: =100*COUNT($AQ$31:AQ204)/$AQ$397 -> 56.31067961 | AU204: 0 | AV204: 0
A205: 2017-06-24 | T205: 175 | U205: 0 | V205: 0 | W205: 0 | X205: 0 | Y205: 0 | Z205: 0 | AA205: 0 | AB205: 0 | AC205: 0 | AD205: 0 | AE205: 0 | AF205: 0 | AG205: 0 | AH205: 0 | AI205: 0 | AJ205: 0 | AK205: 0 | AM205: 44.26352554 | AN205: 44.26352554 | AQ205: 1.945798898 | AR205: 118 | AS205: =100*COUNT($AQ$31:AQ205)/$AQ$397 -> 56.63430421 | AU205: 0 | AV205: 0
... 193 more rows

Sheet Disinfection Summary (hidden)
C2: =Menu!C5 -> Watertown Waterworks | I2: Disinfection Summary Report
C30: ANNUAL DATA | F30: Avg | G30: Min | H30: Max
C32: Inactivation Ratio (M/R) | F32: =AVERAGE(YearPlotOne) -> 14.68157014 | G32: =MIN(YearPlotOne) -> 2.266055494 | H32: =MAX(YearPlotOne) -> 46.16374853
C33: Giardia Inactivation (log) | F33: =AVERAGE(YearPlotTwo) -> 14.68157014 | G33: =MIN(YearPlotTwo) -> 2.266055494 | H33: =MAX(YearPlotTwo) -> 46.16374853
C36: MONTHLY | D36: Avg Ratio | E36: Min Ratio | F36: Max Ratio | G36: Avg Inact | H36: Min Inact | I36: Max Inact
C37: DATA | D37: M/R | E37: M/R | F37: M/R | G37: Log | H37: Log | I37: Log
C38: 2017-01-01 | D38: 5.240217108 | E38: 3.88325789 | F38: 6.586828336 | G38: 5.240217108 | H38: 3.88325789 | I38: 6.586828336
C39: 2017-02-01 | D39: 8.059640313 | E39: 5.035803243 | F39: 10.71297216 | G39: 8.059640313 | H39: 5.035803243 | I39: 10.71297216
C40: 2017-03-01 | D40: 9.966480976 | E40: 6.773462178 | F40: 13.92509564 | G40: 9.966480976 | H40: 6.773462178 | I40: 13.92509564
C41: 2017-04-01 | D41: 11.15374137 | E41: 8.617291009 | F41: 15.56902409 | G41: 11.15374137 | H41: 8.617291009 | I41: 15.56902409
C42: 2017-05-01 | D42: 17.19474974 | E42: 10.23068648 | F42: 25.00487255 | G42: 17.19474974 | H42: 10.23068648 | I42: 25.00487255
C43: 2017-06-01 | D43: 26.39137969 | E43: 16.46953981 | F43: 44.26352554 | G43: 26.39137969 | H43: 16.46953981 | I43: 44.26352554
C44: 2017-07-01 | D44: 31.47877922 | E44: 20.25358376 | F44: 40.70211057 | G44: 31.47877922 | H44: 20.25358376 | I44: 40.70211057
C45: 2017-08-01 | D45: 27.69227458 | E45: 12.97421192 | F45: 46.16374853 | G45: 27.69227458 | H45: 12.97421192 | I45: 46.16374853
C46: 2017-09-01 | D46: 18.89930383 | E46: 11.9104487 | F46: 26.53957711 | G46: 18.89930383 | H46: 11.9104487 | I46: 26.53957711
C47: 2017-10-01 | D47: 9.219455372 | E47: 6.400479969 | F47: 14.5771861 | G47: 9.219455372 | H47: 6.400479969 | I47: 14.5771861
C48: 2017-11-01 | D48: 6.204041349 | E48: 4.09207517 | F48: 9.672270871 | G48: 6.204041349 | H48: 4.09207517 | I48: 9.672270871
C49: 2017-12-01 | D49: 4.164468293 | E49: 2.266055494 | F49: 5.922243159 | G49: 4.164468293 | H49: 2.266055494 | I49: 5.922243159
C52: ANNUAL DATA | F52: Average | G52: Min | H52: Max | I52: STDEV
C54: ='DataEntryValues(CT)'!C28&" Cl2" -> Segment 1 - Cl2 | F54: =IF(SUM(Seg1Cl2)=0,,AVERAGE(Seg1Cl2)) -> 0 | G54: =MIN(Seg1Cl2) -> 0 | H54: =MAX(Seg1Cl2) -> 0 | I54: =IF(SUM(Seg1Cl2)=0,,STDEV(Seg1Cl2)) -> 0
C55: ='DataEntryValues(CT)'!C28&" pH" -> Segment 1 - pH | F55: =IF(SUM(Seg1pH)=0,,MEDIAN(Seg1pH)) -> 0 | G55: =MIN(Seg1pH) -> 0 | H55: =MAX(Seg1pH) -> 0 | I55: =IF(SUM(Seg1pH)=0,,STDEV(Seg1pH)) -> 0
C56: ='DataEntryValues(CT)'!C28&" Temp." -> Segment 1 - Temp. | F56: =IF(SUM(Seg1Temp)=0,,AVERAGE(Seg1Temp)) -> 0 | G56: =MIN(Seg1Temp) -> 0 | H56: =MAX(Seg1Temp) -> 0 | I56: =IF(SUM(Seg1Temp)=0,,STDEV(Seg1Temp)) -> 0
C57: ='DataEntryValues(CT)'!F28&" Cl2" -> Segment 2 - Cl2 | F57: =IF(SUM(seg2cl2)=0,,AVERAGE(seg2cl2)) -> 0 | G57: =MIN(seg2cl2) -> 0 | H57: =MAX(seg2cl2) -> 0 | I57: =IF(SUM(seg2cl2)=0,,STDEV(seg2cl2)) -> 0
C58: ='DataEntryValues(CT)'!F28&" pH" -> Segment 2 - pH | F58: =IF(SUM(Seg2pH)=0,,MEDIAN(Seg2pH)) -> 0 | G58: =MIN(Seg2pH) -> 0 | H58: =MAX(Seg2pH) -> 0 | I58: =IF(SUM(Seg2pH)=0,,STDEV(Seg2pH)) -> 0
C59: ='DataEntryValues(CT)'!F28&" Temp." -> Segment 2 - Temp. | F59: =IF(SUM(seg2temp)=0,,AVERAGE(seg2temp)) -> 0 | G59: =MIN(seg2temp) -> 0 | H59: =MAX(seg2temp) -> 0 | I59: =IF(SUM(seg2temp)=0,,STDEV(seg2temp)) -> 0
C60: ='DataEntryValues(CT)'!I28&" Cl2" -> Segment 3 - Cl2 | F60: =IF(SUM(seg3cl2)=0,,AVERAGE(seg3cl2)) -> 0 | G60: =MIN(seg3cl2) -> 0 | H60: =MAX(seg3cl2) -> 0 | I60: =IF(SUM(seg3cl2)=0,,STDEV(seg3cl2)) -> 0
C61: ='DataEntryValues(CT)'!I28&" pH" -> Segment 3 - pH | F61: =IF(SUM(seg3ph)=0,,MEDIAN(seg3ph)) -> 0 | G61: =MIN(seg3ph) -> 0 | H61: =MAX(seg3ph) -> 0 | I61: =IF(SUM(seg3ph)=0,,STDEV(seg3ph)) -> 0
C62: ='DataEntryValues(CT)'!I28&" Temp." -> Segment 3 - Temp. | F62: =IF(SUM(seg3temp)=0,,AVERAGE(seg3temp)) -> 0 | G62: =MIN(seg3temp) -> 0 | H62: =MAX(seg3temp) -> 0 | I62: =IF(SUM(seg3temp)=0,,STDEV(seg3temp)) -> 0
C63: ='DataEntryValues(CT)'!L28&" Cl2" -> Segment 4 - Cl2 | F63: =IF(SUM(seg4cl2)=0,,AVERAGE(seg4cl2)) -> 0 | G63: =MIN(seg4cl2) -> 0 | H63: =MAX(seg4cl2) -> 0 | I63: =IF(SUM(seg4cl2)=0,,STDEV(seg4cl2)) -> 0
C64: ='DataEntryValues(CT)'!L28&" pH" -> Segment 4 - pH | F64: =IF(SUM(seg4ph)=0,,MEDIAN(seg4ph)) -> 0 | G64: =MIN(seg4ph) -> 0 | H64: =MAX(seg4ph) -> 0 | I64: =IF(SUM(seg4ph)=0,,STDEV(seg4ph)) -> 0
C65: ='DataEntryValues(CT)'!L28&" Temp." -> Segment 4 - Temp. | F65: =IF(SUM(seg4temp)=0,,AVERAGE(seg4temp)) -> 0 | G65: =MIN(seg4temp) -> 0 | H65: =MAX(seg4temp) -> 0 | I65: =IF(SUM(seg4temp)=0,,STDEV(seg4temp)) -> 0
C66: ='DataEntryValues(CT)'!O28&" Cl2" -> Segment 5 - Cl2 | F66: =IF(SUM(seg5cl2)=0,,AVERAGE(seg5cl2)) -> 0 | G66: =MIN(seg5cl2) -> 0 | H66: =MAX(seg5cl2) -> 0 | I66: =IF(SUM(seg5cl2)=0,,STDEV(seg5cl2)) -> 0
C67: ='DataEntryValues(CT)'!O28&" pH" -> Segment 5 - pH | F67: =IF(SUM(seg5ph)=0,,MEDIAN(seg5ph)) -> 0 | G67: =MIN(seg5ph) -> 0 | H67: =MAX(seg5ph) -> 0 | I67: =IF(SUM(seg5ph)=0,,STDEV(seg5ph)) -> 0
C68: ='DataEntryValues(CT)'!O28&" Temp." -> Segment 5 - Temp. | F68: =IF(SUM(seg5temp)=0,,AVERAGE(seg5temp)) -> 0 | G68: =MIN(seg5temp) -> 0 | H68: =MAX(seg5temp) -> 0 | I68: =IF(SUM(seg5temp)=0,,STDEV(seg5temp)) -> 0

Sheet Total Inact Ratio (hidden)

Sheet Segment Inact Ratio (hidden)

Sheet pH Summary (hidden)

Sheet ChloramineCT (hidden)
C2: CT Values for Inactivation of Giardia Cysts by Chloramine
D4: 1 | E4: 5 | F4: 10 | G4: 15 | H4: 20 | I4: 25
C5: 0.5 | D5: 635 | E5: 365 | F5: 310 | G5: 250 | H5: 185 | I5: 125
C6: 1 | D6: 1270 | E6: 735 | F6: 615 | G6: 500 | H6: 370 | I6: 250
C7: 1.5 | D7: 1900 | E7: 1100 | F7: 930 | G7: 750 | H7: 550 | I7: 375
C8: 2 | D8: 2535 | E8: 1470 | F8: 1230 | G8: 1000 | H8: 735 | I8: 500
C9: 2.5 | D9: 3170 | E9: 1830 | F9: 1540 | G9: 1250 | H9: 915 | I9: 625
C10: 3 | D10: 3800 | E10: 2200 | F10: 1850 | G10: 1500 | H10: 1100 | I10: 750
C12: Inactivation rate (k) values (log/CT)
D13: 1 | E13: 5 | F13: 10 | G13: 15 | H13: 20 | I13: 25
C14: 0.5 | D14: =$C$14/D5 -> 0.0007874015748 | E14: 0.001369863014 | F14: 0.001612903226 | G14: 0.002 | H14: 0.002702702703 | I14: 0.004
C15: 1 | D15: =$C$15/D6 -> 0.0007874015748 | E15: 0.001360544218 | F15: 0.00162601626 | G15: 0.002 | H15: 0.002702702703 | I15: 0.004
C16: 1.5 | D16: =$C$16/D7 -> 0.0007894736842 | E16: 0.001363636364 | F16: 0.001612903226 | G16: 0.002 | H16: 0.002727272727 | I16: 0.004
C17: 2 | D17: =$C$17/D8 -> 0.0007889546351 | E17: 0.001360544218 | F17: 0.00162601626 | G17: 0.002 | H17: 0.002721088435 | I17: 0.004
C18: 2.5 | D18: =$C$18/D9 -> 0.0007886435331 | E18: 0.001366120219 | F18: 0.001623376623 | G18: 0.002 | H18: 0.002732240437 | I18: 0.004
C19: 3 | D19: =$C$19/D10 -> 0.0007894736842 | E19: 0.001363636364 | F19: 0.001621621622 | G19: 0.002 | H19: 0.002727272727 | I19: 0.004
C20: average | D20: =AVERAGE(D14:D19) -> 0.0007885581144 | E20: 0.001364057399 | F20: 0.001620472869 | G20: 0.002 | H20: 0.002718879955 | I20: 0.004
K24: Temp. | L24: Log
K25: 5 | L25: 0.5
K27: CT
K28: =L25/(1.383*10^-9*K25^5-1.033*10^-7*K25^4+3.206*10^-6*K25^3-4.471*10^-5*K25^2+3.278*10^-4*K25+5.024*10^-4) -> 366.5260886

Sheet ClO2-CT (hidden)
B2: CT Values for Inactivation of Giardia Cysts by Chlorine Dioxide
C4: 1 | D4: 5 | E4: 10 | F4: 15 | G4: 20 | H4: 25
B5: 0.5 | C5: 10 | D5: 4.3 | E5: 4 | F5: 3.2 | G5: 2.5 | H5: 2
B6: 1 | C6: 21 | D6: 8.7 | E6: 7.7 | F6: 6.3 | G6: 5 | H6: 3.7
B7: 1.5 | C7: 32 | D7: 13 | E7: 12 | F7: 10 | G7: 7.5 | H7: 5.5
B8: 2 | C8: 42 | D8: 17 | E8: 15 | F8: 13 | G8: 10 | H8: 7.3
B9: 2.5 | C9: 52 | D9: 22 | E9: 19 | F9: 16 | G9: 13 | H9: 9
B10: 3 | C10: 63 | D10: 26 | E10: 23 | F10: 19 | G10: 15 | H10: 11
B12: Inactivation rate (k) values (log/CT)
C13: 1 | D13: 5 | E13: 10 | F13: 15 | G13: 20 | H13: 25
B14: 0.5 | C14: =$B$14/C5 -> 0.05 | D14: 0.1162790698 | E14: 0.125 | F14: 0.15625 | G14: 0.2 | H14: 0.25
B15: 1 | C15: =$B$15/C6 -> 0.04761904762 | D15: 0.1149425287 | E15: 0.1298701299 | F15: 0.1587301587 | G15: 0.2 | H15: 0.2702702703
B16: 1.5 | C16: =$B$16/C7 -> 0.046875 | D16: 0.1153846154 | E16: 0.125 | F16: 0.15 | G16: 0.2 | H16: 0.2727272727
B17: 2 | C17: =$B$17/C8 -> 0.04761904762 | D17: 0.1176470588 | E17: 0.1333333333 | F17: 0.1538461538 | G17: 0.2 | H17: 0.2739726027
B18: 2.5 | C18: =$B$18/C9 -> 0.04807692308 | D18: 0.1136363636 | E18: 0.1315789474 | F18: 0.15625 | G18: 0.1923076923 | H18: 0.2777777778
B19: 3 | C19: =$B$19/C10 -> 0.04761904762 | D19: 0.1153846154 | E19: 0.1304347826 | F19: 0.1578947368 | G19: 0.2 | H19: 0.2727272727
B20: average | C20: =AVERAGE(C14:C19) -> 0.04796817766 | D20: 0.1155457086 | E20: 0.1292028655 | F20: 0.1554951749 | G20: 0.1987179487 | H20: 0.2695791994
J24: Temp. | K24: Log
J25: 5 | K25: 1.5
J27: CT
J28: =K25/(2.913*10^-7*J25^5-2.142*10^-5*J25^4+6.034*10^-4*J25^3-7.739*10^-3*J25^2+4.774*10^-2*J25+7.389*10^-3) -> 12.9800664

Sheet AllDataSort (hidden)
F2: ='DataEntryValues(CT)'!F3 -> Watertown | J2: 2017-02-01
F3: Cell to identify if year is a leap year or not. | J3: =IF(MOD(YEAR(J2)/4,1)=0,1,2) -> 2
E4: Annual Data
G5: Segment 1 | J5: Segment 2 | M5: Segment 3 | P5: Segment 4 | S5: Segment 5
E6: Date | F6: Flow | G6: Residual | H6: pH | I6: Temp. | J6: Residual | K6: pH | L6: Temp. | M6: Residual | N6: pH | O6: Temp. | P6: Residual | Q6: pH | R6: Temp. | S6: Depth | T6: Residual | U6: pH | V6: Temp.
A7: FebValue | B7: FebFind | F7: gpm | G7: mg/L | I7: C | J7: mg/L | L7: C | M7: mg/L | O7: C | P7: mg/L | R7: C | S7: ft | T7: mg/L | V7: C
A8: 0 | B8: =IF(MONTH(E8)=2,"feb",) -> 0 | C8: =MONTH(E8) -> 1 | D8: 1 | E8: 2017-01-01 | F8: 4128.486111 | G8: 1.15 | H8: 7.13 | I8: 5.5 | J8: 0.64 | K8: 7.06 | L8: 5.2 | S8: 13.7 | T8: 0.71 | U8: 7.2 | V8: 4.9
A9: 0 | B9: 0 | C9: =MONTH(E9) -> 1 | D9: 1 | E9: 2017-01-02 | F9: 3944.661111 | G9: 1.59 | H9: 7.05 | I9: 6.1 | J9: 0.7 | K9: 7.11 | L9: 6.2 | S9: 13.6 | T9: 0.87 | U9: 7.3 | V9: 5.2
A10: 0 | B10: 0 | C10: 1 | D10: 1 | E10: 2017-01-03 | F10: 3980.718056 | G10: 1.34 | H10: 6.95 | I10: 5.2 | J10: 0.76 | K10: 7.06 | L10: 5.3 | S10: 13.3 | T10: 0.75 | U10: 7.2 | V10: 5.6
A11: 0 | B11: 0 | C11: 1 | D11: 1 | E11: 2017-01-04 | F11: 3847.956944 | G11: 1.64 | H11: 7.09 | I11: 5.6 | J11: 0.88 | K11: 7.1 | L11: 5.6 | S11: 11.4 | T11: 0.8 | U11: 7.1 | V11: 5.8
A12: 0 | B12: 0 | C12: 1 | D12: 1 | E12: 2017-01-05 | F12: 4073.475694 | G12: 1.6 | H12: 6.9 | I12: 5.5 | J12: 0.5 | K12: 6.8 | L12: 5.5 | S12: 13.7 | T12: 0.8 | U12: 7.1 | V12: 5.5
A13: 0 | B13: 0 | C13: 1 | D13: 1 | E13: 2017-01-06 | F13: 3936.129167 | G13: 1.4 | H13: 7.17 | I13: 6.2 | J13: 0.77 | K13: 7.09 | L13: 6 | S13: 14.5 | T13: 0.7 | U13: 7.2 | V13: 4.7
A14: 0 | B14: 0 | C14: 1 | D14: 1 | E14: 2017-01-07 | F14: 3894.01875 | G14: 1.6 | H14: 7.07 | I14: 5.4 | J14: 0.77 | K14: 7.09 | L14: 5.6 | S14: 13.4 | T14: 0.8 | U14: 7.1 | V14: 4.6
A15: 0 | B15: 0 | C15: 1 | D15: 1 | E15: 2017-01-08 | F15: 4003.784028 | G15: 1.01 | H15: 7.09 | I15: 4.8 | J15: 0.85 | K15: 7.09 | L15: 5.6 | S15: 14.2 | T15: 0.7 | U15: 7.1 | V15: 4.8
A16: 0 | B16: 0 | C16: 1 | D16: 1 | E16: 2017-01-09 | F16: 4317.316667 | G16: 1.17 | H16: 7.09 | I16: 5 | J16: 1.03 | K16: 7.08 | L16: 5 | S16: 13 | T16: 0.7 | U16: 7.2 | V16: 4.7
A17: 0 | B17: 0 | C17: 1 | D17: 1 | E17: 2017-01-10 | F17: 3821.268056 | G17: 1.47 | H17: 7.17 | I17: 4.8 | J17: 0.36 | K17: 7.16 | L17: 4.9 | S17: 12.9 | T17: 0.7 | U17: 7.2 | V17: 4.9
A18: 0 | B18: 0 | C18: 1 | D18: 1 | E18: 2017-01-11 | F18: 4111.103472 | G18: 1.18 | H18: 7.04 | I18: 5.1 | J18: 0.82 | K18: 7.1 | L18: 5.9 | S18: 13.3 | T18: 0.8 | U18: 7.2 | V18: 4.8
A19: 0 | B19: 0 | C19: 1 | D19: 1 | E19: 2017-01-12 | F19: 4337.779167 | G19: 1.5 | H19: 7.16 | I19: 5.1 | J19: 0.9 | K19: 7.16 | L19: 4.7 | S19: 13.5 | T19: 0.78 | U19: 7.2 | V19: 4.7
A20: 0 | B20: 0 | C20: 1 | D20: 1 | E20: 2017-01-13 | F20: 4042.003472 | G20: 1.5 | H20: 7.16 | I20: 5 | J20: 0.75 | K20: 7.11 | L20: 4.8 | S20: 13 | T20: 0.89 | U20: 7.2 | V20: 4.7
A21: 0 | B21: 0 | C21: 1 | D21: 1 | E21: 2017-01-14 | F21: 3733.132639 | G21: 1.6 | H21: 7.14 | I21: 5.1 | J21: 0.83 | K21: 7.15 | L21: 4.7 | S21: 13 | T21: 0.7 | U21: 7.3 | V21: 4.9
A22: 0 | B22: 0 | C22: 1 | D22: 1 | E22: 2017-01-15 | F22: 3739.243056 | G22: 0.94 | H22: 6.93 | I22: 5.1 | J22: 0.82 | K22: 7.05 | L22: 4.7 | S22: 12 | T22: 0.7 | U22: 7.1 | V22: 5
A23: 0 | B23: 0 | C23: 1 | D23: 1 | E23: 2017-01-16 | F23: 3603.48125 | G23: 1.31 | H23: 7.08 | I23: 5.5 | J23: 1.26 | K23: 7.04 | L23: 5.3 | S23: 13.5 | T23: 0.85 | U23: 7.1 | V23: 5.2
A24: 0 | B24: 0 | C24: 1 | D24: 1 | E24: 2017-01-17 | F24: 3260.036111 | G24: 1.38 | H24: 7.05 | I24: 4.9 | J24: 0.88 | K24: 7.07 | L24: 5 | S24: 11.8 | T24: 0.79 | U24: 7.1 | V24: 4.5
A25: 0 | B25: 0 | C25: 1 | D25: 1 | E25: 2017-01-18 | F25: 3466.543056 | G25: 1.34 | H25: 7.14 | I25: 5.1 | J25: 0.93 | K25: 7.1 | L25: 5.1 | S25: 13 | T25: 0.89 | U25: 7.2 | V25: 4.9
A26: 0 | B26: 0 | C26: 1 | D26: 1 | E26: 2017-01-19 | F26: 3810.491667 | G26: 1.29 | H26: 7.09 | I26: 5.1 | J26: 0.99 | K26: 7.1 | L26: 5.1 | S26: 12.5 | T26: 0.84 | U26: 7.2 | V26: 5.2
A27: 0 | B27: 0 | C27: 1 | D27: 1 | E27: 2017-01-20 | F27: 3611.130556 | G27: 1.1 | H27: 7.08 | I27: 6.9 | J27: 0.98 | K27: 7 | L27: 5.4 | S27: 14.2 | T27: 0.8 | U27: 7.1 | V27: 4.4
A28: 0 | B28: 0 | C28: 1 | D28: 1 | E28: 2017-01-21 | F28: 3617.304861 | G28: 1.6 | H28: 7.06 | I28: 5.3 | J28: 0.53 | K28: 7.09 | L28: 5.5 | S28: 12.9 | T28: 0.9 | U28: 7.1 | V28: 5.2
A29: 0 | B29: 0 | C29: 1 | D29: 1 | E29: 2017-01-22 | F29: 3808.382639 | G29: 1.45 | H29: 7.1 | I29: 5.9 | J29: 1.04 | K29: 7.11 | L29: 5.8 | S29: 11.9 | T29: 0.87 | U29: 7.1 | V29: 5.2
A30: 0 | B30: 0 | C30: 1 | D30: 1 | E30: 2017-01-23 | F30: 3783.951389 | G30: 1.43 | H30: 7.06 | I30: 6 | J30: 0.98 | K30: 7.07 | L30: 5.9 | S30: 11.9 | T30: 0.9 | U30: 7.2 | V30: 5.5
A31: 0 | B31: 0 | C31: 1 | D31: 1 | E31: 2017-01-24 | F31: 3483.565278 | G31: 1.24 | H31: 7.17 | I31: 5.7 | J31: 0.9 | K31: 7.16 | L31: 5.4 | S31: 12.5 | T31: 0.9 | U31: 7.2 | V31: 5.4
A32: 0 | B32: 0 | C32: 1 | D32: 1 | E32: 2017-01-25 | F32: 3413.754167 | G32: 1.24 | H32: 7.18 | I32: 5.2 | J32: 0.96 | K32: 7.23 | L32: 5.3 | S32: 12.5 | T32: 0.9 | U32: 7.2 | V32: 5.1
A33: 0 | B33: 0 | C33: 1 | D33: 1 | E33: 2017-01-26 | F33: 3520.397917 | G33: 1.05 | H33: 7.25 | I33: 5.5 | J33: 0.87 | K33: 7.09 | L33: 5.3 | S33: 13.2 | T33: 0.9 | U33: 7.1 | V33: 5.3
A34: 0 | B34: 0 | C34: 1 | D34: 1 | E34: 2017-01-27 | F34: 3542.250694 | G34: 1.16 | H34: 7.16 | I34: 6.1 | J34: 0.79 | K34: 7.04 | L34: 6.2 | S34: 13.6 | T34: 0.87 | U34: 7.3 | V34: 6
A35: 0 | B35: 0 | C35: 1 | D35: 1 | E35: 2017-01-28 | F35: 3506.236111 | G35: 1.17 | H35: 7.05 | I35: 6 | J35: 0.9 | K35: 7.02 | L35: 6.1 | S35: 14.2 | T35: 0.9 | U35: 7.2 | V35: 6.4
A36: 0 | B36: 0 | C36: 1 | D36: 1 | E36: 2017-01-29 | F36: 3442.1125 | G36: 0.95 | H36: 6.92 | I36: 5.9 | J36: 0.9 | K36: 7 | L36: 6 | S36: 12.8 | T36: 0.8 | U36: 7.1 | V36: 6
A37: 0 | B37: 0 | C37: 1 | D37: 1 | E37: 2017-01-30 | F37: 3596.729167 | G37: 1.08 | H37: 7.13 | I37: 6.4 | J37: 0.85 | K37: 7.13 | L37: 6.4 | S37: 13.2 | T37: 0.86 | U37: 7.2 | V37: 6.1
A38: 0 | B38: 0 | C38: 1 | D38: 1 | E38: 2017-01-31 | F38: 3623.089583 | G38: 1.18 | H38: 7.17 | I38: 5.9 | J38: 0.7 | K38: 7.01 | L38: 5.7 | S38: 12.4 | T38: 0.9 | U38: 7.2 | V38: 6.1
A39: feb | B39: feb | C39: 2 | D39: 2 | E39: 2017-02-01 | F39: 3619.421906 | G39: 1.62 | H39: 7.26 | I39: 5.8 | J39: 1.2 | K39: 7 | L39: 6 | S39: 11.3 | T39: 1.7 | U39: 7.1 | V39: 5.4
A40: feb | B40: feb | C40: 2 | D40: 2 | E40: 2017-02-02 | F40: 4143.126569 | G40: 1.88 | H40: 7.13 | I40: 5.7 | J40: 1.52 | K40: 7.15 | L40: 5.7 | S40: 14.3 | T40: 1.67 | U40: 7.2 | V40: 5.8
A41: feb | B41: feb | C41: 2 | D41: 2 | E41: 2017-02-03 | F41: 4134.095616 | G41: 1.8 | H41: 7.06 | I41: 6.4 | J41: 1.19 | K41: 7.08 | L41: 5.9 | S41: 13.6 | T41: 1.82 | U41: 7.1 | V41: 6.8
A42: feb | B42: feb | C42: 2 | D42: 2 | E42: 2017-02-04 | F42: 3394.561276 | G42: 1.63 | H42: 7.1 | I42: 5.7 | J42: 1.49 | K42: 7.05 | L42: 5.5 | S42: 13.9 | T42: 1.65 | U42: 7.2 | V42: 6.3
A43: feb | B43: feb | C43: 2 | D43: 2 | E43: 2017-02-05 | F43: 3814.279328 | G43: 1.72 | H43: 7.07 | I43: 6.8 | J43: 1.24 | K43: 7.09 | L43: 7 | S43: 13.6 | T43: 1.1 | U43: 7.3 | V43: 6.3
A44: feb | B44: feb | C44: 2 | D44: 2 | E44: 2017-02-06 | F44: 3449.389533 | G44: 1.4 | H44: 7.12 | I44: 6.4 | J44: 1 | K44: 7.12 | L44: 6.8 | S44: 13.9 | T44: 1 | U44: 7.1 | V44: 6.9
A45: feb | B45: feb | C45: 2 | D45: 2 | E45: 2017-02-07 | F45: 3326.790407 | G45: 1.32 | H45: 7.13 | I45: 6.8 | J45: 1.21 | K45: 7.15 | L45: 7.6 | S45: 13.9 | T45: 1.02 | U45: 7.2 | V45: 7.6
A46: feb | B46: feb | C46: 2 | D46: 2 | E46: 2017-02-08 | F46: 4267.06233 | G46: 1.12 | H46: 7.11 | I46: 10.7 | J46: 0.96 | K46: 6.94 | L46: 8.3 | S46: 13.9 | T46: 0.8 | U46: 7.2 | V46: 8.5
A47: feb | B47: feb | C47: 2 | D47: 2 | E47: 2017-02-09 | F47: 4255.497369 | G47: 1.43 | H47: 7.08 | I47: 8.8 | J47: 1.11 | K47: 7.08 | L47: 8.4 | S47: 13 | T47: 1 | U47: 7.2 | V47: 8.4
A48: feb | B48: feb | C48: 2 | D48: 2 | E48: 2017-02-10 | F48: 3327.167109 | G48: 1.19 | H48: 7.15 | I48: 8 | J48: 0.8 | K48: 7.04 | L48: 8.2 | S48: 14.4 | T48: 1.2 | U48: 7.2 | V48: 8.3
A49: feb | B49: feb | C49: 2 | D49: 2 | E49: 2017-02-11 | F49: 3707.064789 | G49: 1.2 | H49: 7.18 | I49: 8.2 | J49: 0.8 | K49: 7.08 | L49: 8.1 | S49: 14.5 | T49: 1.2 | U49: 7.2 | V49: 8.2
A50: feb | B50: feb | C50: 2 | D50: 2 | E50: 2017-02-12 | F50: 4253.919224 | G50: 1.32 | H50: 7.12 | I50: 9.2 | J50: 0.96 | K50: 7.1 | L50: 8.9 | S50: 15.1 | T50: 1.2 | U50: 7.2 | V50: 8.8
A51: feb | B51: feb | C51: 2 | D51: 2 | E51: 2017-02-13 | F51: 4244.244646 | G51: 1.32 | H51: 7.14 | I51: 9.8 | J51: 0.92 | K51: 7.06 | L51: 9.1 | S51: 14.3 | T51: 1.04 | U51: 7.1 | V51: 9.1
A52: feb | B52: feb | C52: 2 | D52: 2 | E52: 2017-02-14 | F52: 3822.9018 | G52: 1.22 | H52: 7.12 | I52: 9.1 | J52: 0.76 | K52: 7.1 | L52: 9.2 | S52: 14.7 | T52: 1.11 | U52: 7.2 | V52: 9.9
A53: feb | B53: feb | C53: 2 | D53: 2 | E53: 2017-02-15 | F53: 3959.599098 | G53: 1.28 | H53: 6.89 | I53: 10.3 | J53: 0.87 | K53: 6.98 | L53: 9.6 | S53: 13.6 | T53: 1.22 | U53: 7.1 | V53: 10.7
A54: feb | B54: feb | C54: 2 | D54: 2 | E54: 2017-02-16 | F54: 3268.028112 | G54: 1.42 | H54: 7.11 | I54: 9.8 | J54: 0.8 | K54: 7.13 | L54: 9.9 | S54: 11.7 | T54: 1.23 | U54: 7.2 | V54: 9.3
A55: feb | B55: feb | C55: 2 | D55: 2 | E55: 2017-02-17 | F55: 3316.77972 | G55: 1.2 | H55: 7.06 | I55: 10.1 | J55: 0.92 | K55: 7.09 | L55: 10 | S55: 13.4 | T55: 1.3 | U55: 7.1 | V55: 9
A56: feb | B56: feb | C56: 2 | D56: 2 | E56: 2017-02-18 | F56: 4130.393407 | G56: 1.3 | H56: 7.02 | I56: 10.6 | J56: 0.8 | K56: 7.04 | L56: 10.3 | S56: 13.7 | T56: 1.3 | U56: 7.1 | V56: 9.9
A57: feb | B57: feb | C57: 2 | D57: 2 | E57: 2017-02-19 | F57: 3963.563482 | G57: 1.31 | H57: 7.07 | I57: 10.1 | J57: 0.88 | K57: 7.06 | L57: 10.3 | S57: 10.1 | T57: 0.8 | U57: 7.2 | V57: 8.9
A58: feb | B58: feb | C58: 2 | D58: 2 | E58: 2017-02-20 | F58: 3436.337763 | G58: 1.22 | H58: 7.12 | I58: 10.6 | J58: 0.98 | K58: 7.14 | L58: 10.6 | S58: 10.6 | T58: 0.87 | U58: 7.1 | V58: 10.4
A59: feb | B59: feb | C59: 2 | D59: 2 | E59: 2017-02-21 | F59: 3622.250812 | G59: 0.82 | H59: 7.14 | I59: 10.8 | J59: 0.81 | K59: 7.18 | L59: 10.7 | S59: 13.7 | T59: 0.8 | U59: 7.2 | V59: 10.4
A60: feb | B60: feb | C60: 2 | D60: 2 | E60: 2017-02-22 | F60: 3680.365047 | G60: 1.39 | H60: 7.14 | I60: 11.9 | J60: 1.05 | K60: 7.07 | L60: 11.1 | S60: 12.4 | T60: 0.6 | U60: 7.1 | V60: 10.8
A61: feb | B61: feb | C61: 2 | D61: 2 | E61: 2017-02-23 | F61: 4337.695881 | G61: 1.55 | H61: 7.25 | I61: 12.5 | J61: 0.84 | K61: 7.27 | L61: 12.3 | S61: 13 | T61: 0.87 | U61: 7.2 | V61: 11.3
A62: feb | B62: feb | C62: 2 | D62: 2 | E62: 2017-02-24 | F62: 3283.657777 | G62: 1.2 | H62: 7.12 | I62: 10.8 | J62: 0.94 | K62: 7.05 | L62: 10.9 | S62: 11.6 | T62: 0.97 | U62: 7.1 | V62: 11.4
A63: feb | B63: feb | C63: 2 | D63: 2 | E63: 2017-02-25 | F63: 4026.263711 | G63: 1.12 | H63: 7.05 | I63: 10.1 | J63: 0.99 | K63: 7.08 | L63: 9.9 | S63: 9.6 | T63: 0.8 | U63: 7.1 | V63: 11.2
A64: feb | B64: feb | C64: 2 | D64: 2 | E64: 2017-02-26 | F64: 4006.009803 | G64: 0.75 | H64: 7.04 | I64: 11.8 | J64: 0.55 | K64: 6.68 | L64: 10.8 | S64: 10 | T64: 0.69 | U64: 7.1 | V64: 11.3
A65: feb | B65: feb | C65: 2 | D65: 2 | E65: 2017-02-27 | F65: 3594.705304 | G65: 1 | H65: 7.13 | I65: 11 | J65: 0.73 | K65: 7.14 | L65: 10.9 | S65: 14 | T65: 0.9 | U65: 7.1 | V65: 10.9
A66: feb | B66: feb | C66: 2 | D66: 2 | E66: 2017-02-28 | F66: 4318.440845 | G66: 1.03 | H66: 7.13 | I66: 11.7 | J66: 0.6 | K66: 7.13 | L66: 11.2 | S66: 13.9 | T66: 0.92 | U66: 7.2 | V66: 11
A67: 0 | B67: 0 | C67: 3 | D67: 3 | E67: 2017-03-01 | F67: 3627.90052 | G67: 1.08 | H67: 7.06 | I67: 12.1 | J67: 0.79 | K67: 7.05 | L67: 12.1 | S67: 14.5 | T67: 1 | U67: 7.1 | V67: 11.9
A68: 0 | B68: 0 | C68: 3 | D68: 3 | E68: 2017-03-02 | F68: 3855.302171 | G68: 1.28 | H68: 7.08 | I68: 13 | J68: 0.79 | K68: 7.08 | L68: 12.9 | S68: 13.3 | T68: 0.86 | U68: 7.1 | V68: 12.4
A69: 0 | B69: 0 | C69: 3 | D69: 3 | E69: 2017-03-03 | F69: 4010.898454 | G69: 1.7 | H69: 7.05 | I69: 11.9 | J69: 0.7 | K69: 7.05 | L69: 12 | S69: 14.1 | T69: 1 | U69: 7.1 | V69: 12.1
A70: 0 | B70: 0 | C70: 3 | D70: 3 | E70: 2017-03-04 | F70: 3430.953076 | G70: 1.3 | H70: 7.14 | I70: 12.3 | J70: 0.6 | K70: 7.05 | L70: 13.7 | S70: 14.5 | T70: 0.96 | U70: 7.1 | V70: 13.6
A71: 0 | B71: 0 | C71: 3 | D71: 3 | E71: 2017-03-05 | F71: 3814.505002 | G71: 0.92 | H71: 7.05 | I71: 14.7 | J71: 0.48 | K71: 7.07 | L71: 14.8 | S71: 10.9 | T71: 0.97 | U71: 7.2 | V71: 14
A72: 0 | B72: 0 | C72: 3 | D72: 3 | E72: 2017-03-06 | F72: 3733.032558 | G72: 1.4 | H72: 6.9 | I72: 14.7 | J72: 0.7 | K72: 6.99 | L72: 14.5 | S72: 10.8 | T72: 1.02 | U72: 7.1 | V72: 14
A73: 0 | B73: =IF(MONTH(E73)=2,"feb",) -> 0 | C73: =MONTH(E73) -> 3 | D73: 3 | E73: 2017-03-07 | F73: 3941.962477 | G73: 0.64 | H73: 7.13 | I73: 13.7 | J73: 0.87 | K73: 7 | L73: 13.7 | S73: 11.2 | T73: 0.89 | U73: 7.2 | V73: 12.6
A74: 0 | B74: 0 | C74: 3 | D74: 3 | E74: 2017-03-08 | F74: 4007.202428 | G74: 1.2 | H74: 7.09 | I74: 14.2 | J74: 0.61 | K74: 7.1 | L74: 13.8 | S74: 13.9 | T74: 0.96 | U74: 7.1 | V74: 15.3
A75: 0 | B75: 0 | C75: 3 | D75: 3 | E75: 2017-03-09 | F75: 3434.30105 | G75: 0.84 | H75: 7.1 | I75: 14.3 | J75: 0.47 | K75: 7.03 | L75: 14.5 | S75: 13.7 | T75: 0.92 | U75: 7.1 | V75: 14.2
A76: 0 | B76: 0 | C76: 3 | D76: 3 | E76: 2017-03-10 | F76: 3617.790272 | G76: 1.1 | H76: 7.1 | I76: 15.4 | J76: 0.38 | K76: 7.08 | L76: 15.2 | S76: 12.3 | T76: 0.97 | U76: 7.1 | V76: 14
A77: 0 | B77: 0 | C77: 3 | D77: 3 | E77: 2017-03-11 | F77: 4297.929258 | G77: 1.2 | H77: 7.06 | I77: 15 | J77: 0.52 | K77: 7.12 | L77: 15 | S77: 13 | T77: 1 | U77: 7.1 | V77: 14.4
A78: 0 | B78: 0 | C78: 3 | D78: 3 | E78: 2017-03-12 | F78: 4198.643423 | G78: 1.2 | H78: 7.08 | I78: 15.1 | J78: 0.78 | K78: 7.09 | L78: 15.1 | S78: 11.9 | T78: 0.99 | U78: 7.1 | V78: 14.5
A79: 0 | B79: 0 | C79: 3 | D79: 3 | E79: 2017-03-13 | F79: 3880.038257 | G79: 1.06 | H79: 6.92 | I79: 14.5 | J79: 0.54 | K79: 6.97 | L79: 14.7 | S79: 9.2 | T79: 1.05 | U79: 7.1 | V79: 14.5
A80: 0 | B80: 0 | C80: 3 | D80: 3 | E80: 2017-03-14 | F80: 4224.078012 | G80: 1.03 | H80: 7.13 | I80: 14.9 | J80: 0.65 | K80: 7.08 | L80: 14.6 | S80: 9 | T80: 0.92 | U80: 7.1 | V80: 14.6
A81: 0 | B81: 0 | C81: 3 | D81: 3 | E81: 2017-03-15 | F81: 4171.095746 | G81: 0.88 | H81: 6.97 | I81: 15.8 | J81: 0.47 | K81: 6.99 | L81: 15.7 | S81: 12.6 | T81: 0.98 | U81: 7 | V81: 14.6
A82: 0 | B82: 0 | C82: 3 | D82: 3 | E82: 2017-03-16 | F82: 3751.424515 | G82: 1.04 | H82: 6.98 | I82: 15.1 | J82: 0.4 | K82: 7.02 | L82: 15.1 | S82: 9.9 | T82: 0.99 | U82: 7.1 | V82: 14.6
A83: 0 | B83: 0 | C83: 3 | D83: 3 | E83: 2017-03-17 | F83: 3744.619932 | G83: 0.93 | H83: 7.04 | I83: 15.5 | J83: 0.52 | K83: 7.08 | L83: 15.6 | S83: 11.9 | T83: 0.91 | U83: 7.2 | V83: 15.4
A84: 0 | B84: 0 | C84: 3 | D84: 3 | E84: 2017-03-18 | F84: 3934.085367 | G84: 0.7 | H84: 7.1 | I84: 15.2 | J84: 0.49 | K84: 7.14 | L84: 15.2 | S84: 11.5 | T84: 0.9 | U84: 7.2 | V84: 15.8
A85: 0 | B85: 0 | C85: 3 | D85: 3 | E85: 2017-03-19 | F85: 3275.319266 | G85: 0.7 | H85: 7.04 | I85: 15.2 | J85: 0.39 | K85: 7.04 | L85: 16.3 | S85: 11.6 | T85: 0.91 | U85: 7.1 | V85: 15.6
A86: 0 | B86: 0 | C86: 3 | D86: 3 | E86: 2017-03-20 | F86: 3968.599319 | G86: 0.58 | H86: 7.13 | I86: 15.8 | J86: 0.31 | K86: 7.2 | L86: 15.9 | S86: 11.6 | T86: 0.89 | U86: 7.2 | V86: 16.1
A87: 0 | B87: 0 | C87: 3 | D87: 3 | E87: 2017-03-21 | F87: 4276.627657 | G87: 0.58 | H87: 7.27 | I87: 16.3 | J87: 0.37 | K87: 7.19 | L87: 15.8 | S87: 10.3 | T87: 0.93 | U87: 7.1 | V87: 16.3
A88: 0 | B88: 0 | C88: 3 | D88: 3 | E88: 2017-03-22 | F88: 4226.108022 | G88: 0.48 | H88: 7.12 | I88: 15.7 | J88: 0.3 | K88: 7.1 | L88: 16 | S88: 12.9 | T88: 0.97 | U88: 7.1 | V88: 16.1
A89: 0 | B89: 0 | C89: 3 | D89: 3 | E89: 2017-03-23 | F89: 3975.177604 | G89: 0.76 | H89: 7.18 | I89: 16.5 | J89: 0.36 | K89: 7.22 | L89: 16.3 | S89: 11.9 | T89: 0.95 | U89: 7.3 | V89: 16
A90: 0 | B90: 0 | C90: 3 | D90: 3 | E90: 2017-03-24 | F90: 3461.78114 | G90: 0.72 | H90: 7.12 | I90: 16.9 | J90: 0.3 | K90: 7.09 | L90: 16.9 | S90: 13.9 | T90: 1.1 | U90: 7.1 | V90: 16
A91: 0 | B91: 0 | C91: 3 | D91: 3 | E91: 2017-03-25 | F91: 4202.56182 | G91: 0.86 | H91: 7.11 | I91: 16.9 | J91: 0.3 | K91: 7.1 | L91: 17 | S91: 14.4 | T91: 1.05 | U91: 7.1 | V91: 15
A92: 0 | B92: 0 | C92: 3 | D92: 3 | E92: 2017-03-26 | F92: 3718.233713 | G92: 0.85 | H92: 7.02 | I92: 16.7 | J92: 0.45 | K92: 7.11 | L92: 16.8 | S92: 13.4 | T92: 0.82 | U92: 7.1 | V92: 16.6
A93: 0 | B93: 0 | C93: 3 | D93: 3 | E93: 2017-03-27 | F93: 4021.056168 | G93: 0.26 | H93: 6.97 | I93: 16.7 | J93: 0.09 | K93: 6.98 | L93: 16.9 | S93: 13.6 | T93: 0.94 | U93: 7.1 | V93: 17
A94: 0 | B94: 0 | C94: 3 | D94: 3 | E94: 2017-03-28 | F94: 3459.980974 | G94: 1.02 | H94: 7.05 | I94: 16.6 | J94: 0.3 | K94: 7.14 | L94: 16.7 | S94: 9.7 | T94: 1.02 | U94: 7.1 | V94: 16.8
A95: 0 | B95: 0 | C95: 3 | D95: 3 | E95: 2017-03-29 | F95: 3939.843623 | G95: 0.85 | H95: 7.02 | I95: 17.2 | J95: 0.31 | K95: 7.09 | L95: 17 | S95: 10.5 | T95: 0.98 | U95: 7.1 | V95: 16.7
A96: 0 | B96: 0 | C96: 3 | D96: 3 | E96: 2017-03-30 | F96: 3428.951684 | G96: 1.35 | H96: 7.04 | I96: 16.9 | J96: 0.76 | K96: 7.06 | L96: 16.9 | S96: 10.6 | T96: 1.01 | U96: 7.1 | V96: 16.1
A97: 0 | B97: 0 | C97: 3 | D97: 3 | E97: 2017-03-31 | F97: 3354.918794 | G97: 1.1 | H97: 7.09 | I97: 17.2 | J97: 0.39 | K97: 7.09 | L97: 17 | S97: 10.8 | T97: 1.03 | U97: 7.1 | V97: 16.6
A98: 0 | B98: 0 | C98: 4 | D98: 4 | E98: 2017-04-01 | F98: 4311.64997 | G98: 1.2 | H98: 7.05 | I98: 16.7 | J98: 0.39 | K98: 7.11 | L98: 16.8 | S98: 13.3 | T98: 0.9 | U98: 7.1 | V98: 15.6
A99: 0 | B99: 0 | C99: 4 | D99: 4 | E99: 2017-04-02 | F99: 4224.191285 | G99: 1.16 | H99: 7.05 | I99: 17.3 | J99: 0.69 | K99: 6.97 | L99: 17.1 | S99: 12.5 | T99: 0.92 | U99: 7.1 | V99: 17
A100: 0 | B100: 0 | C100: 4 | D100: 4 | E100: 2017-04-03 | F100: 3877.259495 | G100: 0.86 | H100: 7.17 | I100: 17.2 | J100: 0.57 | K100: 7.18 | L100: 17.3 | S100: 11.6 | T100: 0.88 | U100: 7.2 | V100: 16.7
A101: 0 | B101: 0 | C101: 4 | D101: 4 | E101: 2017-04-04 | F101: 3914.198347 | G101: 0.98 | H101: 7.13 | I101: 16.3 | J101: 0.53 | K101: 7.05 | L101: 16.6 | S101: 11 | T101: 0.87 | U101: 7.1 | V101: 17
A102: 0 | B102: 0 | C102: 4 | D102: 4 | E102: 2017-04-05 | F102: 4295.814957 | G102: 1.06 | H102: 7.03 | I102: 17.3 | J102: 0.77 | K102: 7.05 | L102: 17.4 | S102: 11 | T102: 1 | U102: 7.1 | V102: 17
A103: 0 | B103: 0 | C103: 4 | D103: 4 | E103: 2017-04-06 | F103: 3531.749821 | G103: 0.84 | H103: 7.2 | I103: 17 | J103: 0.57 | K103: 7.09 | L103: 17.1 | S103: 13.7 | T103: 1 | U103: 7.1 | V103: 16.7
A104: 0 | B104: 0 | C104: 4 | D104: 4 | E104: 2017-04-07 | F104: 4141.663333 | G104: 0.65 | H104: 7.05 | I104: 16.5 | J104: 0.38 | K104: 7.01 | L104: 16.7 | S104: 11.9 | T104: 0.97 | U104: 7.1 | V104: 16.8
A105: 0 | B105: 0 | C105: 4 | D105: 4 | E105: 2017-04-08 | F105: 3358.358872 | G105: 0.82 | H105: 7.07 | I105: 16.4 | J105: 0.57 | K105: 7.03 | L105: 16.4 | S105: 10 | T105: 0.89 | U105: 7.1 | V105: 17.2
A106: 0 | B106: 0 | C106: 4 | D106: 4 | E106: 2017-04-09 | F106: 3794.86153 | G106: 0.89 | H106: 7.06 | I106: 16.6 | J106: 0.47 | K106: 7.01 | L106: 16.6 | S106: 11.3 | T106: 1 | U106: 7.1 | V106: 16.9
A107: 0 | B107: 0 | C107: 4 | D107: 4 | E107: 2017-04-10 | F107: 3621.057666 | G107: 0.9 | H107: 7.02 | I107: 17 | J107: 0.52 | K107: 7.08 | L107: 17.2 | S107: 14.2 | T107: 0.88 | U107: 7.1 | V107: 16.6
A108: 0 | B108: 0 | C108: 4 | D108: 4 | E108: 2017-04-11 | F108: 3829.780888 | G108: 0.59 | H108: 7.17 | I108: 17.4 | J108: 0.12 | K108: 7.08 | L108: 17.5 | S108: 11.3 | T108: 1 | U108: 7.1 | V108: 17.3
A109: 0 | B109: 0 | C109: 4 | D109: 4 | E109: 2017-04-12 | F109: 3900.839169 | G109: 1.14 | H109: 7.05 | I109: 17.7 | J109: 0.43 | K109: 7 | L109: 17.5 | S109: 14.8 | T109: 1 | U109: 7.1 | V109: 17.3
A110: 0 | B110: 0 | C110: 4 | D110: 4 | E110: 2017-04-13 | F110: 4266.955518 | G110: 0.65 | H110: 6.95 | I110: 18.3 | J110: 0.32 | K110: 7.1 | L110: 18 | S110: 12.2 | T110: 0.71 | U110: 7.1 | V110: 18.1
A111: 0 | B111: 0 | C111: 4 | D111: 4 | E111: 2017-04-14 | F111: 3998.198576 | G111: 0.83 | H111: 7.11 | I111: 17.2 | J111: 0.3 | K111: 7.05 | L111: 17 | S111: 13.2 | T111: 0.8 | U111: 7.1 | V111: 17.6
A112: 0 | B112: 0 | C112: 4 | D112: 4 | E112: 2017-04-15 | F112: 3646.838818 | G112: 1.03 | H112: 7.1 | I112: 17.8 | J112: 0.3 | K112: 7.03 | L112: 17.4 | S112: 12.4 | T112: 0.8 | U112: 7.1 | V112: 17.8
A113: 0 | B113: 0 | C113: 4 | D113: 4 | E113: 2017-04-16 | F113: 4253.436527 | G113: 1.05 | H113: 7.04 | I113: 17.6 | J113: 0.27 | K113: 7.04 | L113: 17.7 | S113: 11.5 | T113: 0.71 | U113: 7 | V113: 17.4
A114: 0 | B114: 0 | C114: 4 | D114: 4 | E114: 2017-04-17 | F114: 3770.022696 | G114: 0.54 | H114: 7.02 | I114: 18.2 | J114: 0.29 | K114: 7.03 | L114: 18.8 | S114: 12.7 | T114: 0.72 | U114: 7.1 | V114: 18.1
A115: 0 | B115: 0 | C115: 4 | D115: 4 | E115: 2017-04-18 | F115: 4146.172448 | G115: 0.88 | H115: 6.88 | I115: 17.8 | J115: 0.34 | K115: 6.86 | L115: 18 | S115: 12.7 | T115: 0.72 | U115: 7.1 | V115: 17.8
A116: 0 | B116: 0 | C116: 4 | D116: 4 | E116: 2017-04-19 | F116: 3545.223381 | G116: 1.25 | H116: 7.05 | I116: 17.5 | J116: 0.43 | K116: 6.97 | L116: 17.9 | S116: 11.3 | T116: 0.68 | U116: 7 | V116: 17.6
A117: 0 | B117: 0 | C117: 4 | D117: 4 | E117: 2017-04-20 | F117: 3806.608297 | G117: 1 | H117: 7 | I117: 17.5 | J117: 0.3 | K117: 7.01 | L117: 17.6 | S117: 12.4 | T117: 0.92 | U117: 7.1 | V117: 18
A118: 0 | B118: 0 | C118: 4 | D118: 4 | E118: 2017-04-21 | F118: 3609.322405 | G118: 0.8 | H118: 7.03 | I118: 18 | J118: 0.49 | K118: 7.05 | L118: 18 | S118: 13.9 | T118: 1.14 | U118: 7.1 | V118: 17.6
A119: 0 | B119: 0 | C119: 4 | D119: 4 | E119: 2017-04-22 | F119: 3913.590628 | G119: 0.9 | H119: 7.03 | I119: 17.7 | J119: 0.3 | K119: 7.05 | L119: 17.9 | S119: 12.6 | T119: 1.17 | U119: 7 | V119: 17.4
A120: 0 | B120: 0 | C120: 4 | D120: 4 | E120: 2017-04-23 | F120: 3478.42152 | G120: 0.96 | H120: 7.17 | I120: 18 | J120: 0.4 | K120: 7.19 | L120: 18.1 | S120: 10.9 | T120: 1.1 | U120: 7.1 | V120: 17.7
A121: 0 | B121: 0 | C121: 4 | D121: 4 | E121: 2017-04-24 | F121: 4040.043618 | G121: 0.72 | H121: 7.56 | I121: 18 | J121: 0.67 | K121: 7.16 | L121: 18.8 | S121: 11.9 | T121: 1.05 | U121: 7.4 | V121: 18.1
A122: 0 | B122: 0 | C122: 4 | D122: 4 | E122: 2017-04-25 | F122: 4225.110847 | G122: 1.07 | H122: 7.42 | I122: 18.1 | J122: 0.39 | K122: 7.38 | L122: 19 | S122: 11.5 | T122: 1.2 | U122: 7.4 | V122: 18.5
A123: 0 | B123: 0 | C123: 4 | D123: 4 | E123: 2017-04-26 | F123: 3962.645348 | G123: 0.62 | H123: 7.55 | I123: 18.1 | J123: 0.29 | K123: 7.48 | L123: 18.5 | S123: 10.2 | T123: 1.22 | U123: 7.4 | V123: 18.3
A124: 0 | B124: 0 | C124: 4 | D124: 4 | E124: 2017-04-27 | F124: 3987.795346 | G124: 0.79 | H124: 7.63 | I124: 18.6 | J124: 0.47 | K124: 7.59 | L124: 18.3 | S124: 14 | T124: 1.17 | U124: 7.6 | V124: 18.2
A125: 0 | B125: 0 | C125: 4 | D125: 4 | E125: 2017-04-28 | F125: 3452.366866 | G125: 0.68 | H125: 7.5 | I125: 18.2 | J125: 0.32 | K125: 7.48 | L125: 18.3 | S125: 12.1 | T125: 1.17 | U125: 7.5 | V125: 18.8
A126: 0 | B126: 0 | C126: 4 | D126: 4 | E126: 2017-04-29 | F126: 3720.678165 | G126: 0.52 | H126: 7.48 | I126: 18.5 | J126: 0.42 | K126: 7.47 | L126: 18.5 | S126: 9.9 | T126: 1.13 | U126: 7.5 | V126: 18.8
A127: 0 | B127: 0 | C127: 4 | D127: 4 | E127: 2017-04-30 | F127: 3885.808246 | G127: 0.47 | H127: 7.52 | I127: 18.4 | J127: 0.2 | K127: 7.6 | L127: 18.6 | S127: 9.2 | T127: 1.2 | U127: 7.5 | V127: 18.9
A128: 0 | B128: 0 | C128: 5 | D128: 5 | E128: 2017-05-01 | F128: 4157.07422 | G128: 0.71 | H128: 7.4 | I128: 18.4 | J128: 0.39 | K128: 7.38 | L128: 18.5 | S128: 10.5 | T128: 1.2 | U128: 7.4 | V128: 18.4
A129: 0 | B129: 0 | C129: 5 | D129: 5 | E129: 2017-05-02 | F129: 3809.102405 | G129: 0.41 | H129: 7.46 | I129: 19.3 | J129: 0.22 | K129: 7.48 | L129: 19.3 | S129: 13.4 | T129: 1.11 | U129: 7.4 | V129: 18.9
A130: 0 | B130: 0 | C130: 5 | D130: 5 | E130: 2017-05-03 | F130: 3279.753219 | G130: 0.77 | H130: 7.49 | I130: 18.9 | J130: 0.48 | K130: 7.43 | L130: 18.9 | S130: 14.1 | T130: 1.24 | U130: 7.4 | V130: 18.7
A131: 0 | B131: 0 | C131: 5 | D131: 5 | E131: 2017-05-04 | F131: 3345.576945 | G131: 0.6 | H131: 7.43 | I131: 19.5 | J131: 0.47 | K131: 7.39 | L131: 19.5 | S131: 12.5 | T131: 1.24 | U131: 7.4 | V131: 19
A132: 0 | B132: 0 | C132: 5 | D132: 5 | E132: 2017-05-05 | F132: 3831.602024 | G132: 0.62 | H132: 7.57 | I132: 19.7 | J132: 0.4 | K132: 7.55 | L132: 19.5 | S132: 14.9 | T132: 1.18 | U132: 7.4 | V132: 19.5
A133: 0 | B133: 0 | C133: 5 | D133: 5 | E133: 2017-05-06 | F133: 4068.440627 | G133: 0.98 | H133: 7.57 | I133: 19.9 | J133: 0.3 | K133: 7.54 | L133: 20.2 | S133: 11.8 | T133: 1.15 | U133: 7.4 | V133: 20.2
A134: 0 | B134: 0 | C134: 5 | D134: 5 | E134: 2017-05-07 | F134: 3298.338978 | G134: 0.7 | H134: 7.46 | I134: 20.4 | J134: 0.2 | K134: 7.51 | L134: 20.3 | S134: 9.6 | T134: 1.14 | U134: 7.4 | V134: 20.1
A135: 0 | B135: 0 | C135: 5 | D135: 5 | E135: 2017-05-08 | F135: 4111.107169 | G135: 1.13 | H135: 7.45 | I135: 20.4 | J135: 0.58 | K135: 7.42 | L135: 20.6 | S135: 11.2 | T135: 1.24 | U135: 7.4 | V135: 20.4
A136: 0 | B136: 0 | C136: 5 | D136: 5 | E136: 2017-05-09 | F136: 3650.139751 | G136: 0.54 | H136: 7.41 | I136: 20.8 | J136: 0.29 | K136: 7.41 | L136: 20.8 | S136: 11.6 | T136: 1.2 | U136: 7.4 | V136: 21.1
A137: 0 | B137: =IF(MONTH(E137)=2,"feb",) -> 0 | C137: =MONTH(E137) -> 5 | D137: 5 | E137: 2017-05-10 | F137: 3575.942541 | G137: 0.26 | H137: 7.57 | I137: 22 | J137: 0.2 | K137: 7.4 | L137: 21.8 | S137: 13 | T137: 0.93 | U137: 7.5 | V137: 21.3
A138: 0 | B138: 0 | C138: 5 | D138: 5 | E138: 2017-05-11 | F138: 4211.143228 | G138: 0.63 | H138: 7.31 | I138: 21.4 | J138: 0.17 | K138: 7.3 | L138: 21.5 | S138: 9.6 | T138: 1.74 | U138: 7.4 | V138: 21.2
A139: 0 | B139: 0 | C139: 5 | D139: 5 | E139: 2017-05-12 | F139: 3533.862819 | G139: 0.989 | H139: 7.5 | I139: 21.4 | J139: 0.19 | K139: 7.49 | L139: 21.5 | S139: 13 | T139: 1.85 | U139: 7.4 | V139: 21.4
A140: 0 | B140: 0 | C140: 5 | D140: 5 | E140: 2017-05-13 | F140: 4174.122263 | G140: 0.31 | H140: 7.4 | I140: 21.4 | J140: 0.46 | K140: 7.43 | L140: 21.5 | S140: 9.3 | T140: 1.93 | U140: 7.4 | V140: 22
A141: 0 | B141: 0 | C141: 5 | D141: 5 | E141: 2017-05-14 | F141: 3916.849057 | G141: 0.52 | H141: 7.54 | I141: 22.5 | J141: 0.2 | K141: 7.52 | L141: 22.6 | S141: 9.3 | T141: 1.76 | U141: 7.5 | V141: 21.6
A142: 0 | B142: 0 | C142: 5 | D142: 5 | E142: 2017-05-15 | F142: 4344.359091 | G142: 0.65 | H142: 7.27 | I142: 22.4 | J142: 0.4 | K142: 7.27 | L142: 22.2 | S142: 11.6 | T142: 1.62 | U142: 7.4 | V142: 22.4
A143: 0 | B143: 0 | C143: 5 | D143: 5 | E143: 2017-05-16 | F143: 3357.458798 | G143: 0.72 | H143: 7.33 | I143: 21.9 | J143: 0.32 | K143: 7.3 | L143: 22.3 | S143: 10.1 | T143: 1.7 | U143: 7.4 | V143: 22.3
A144: 0 | B144: 0 | C144: 5 | D144: 5 | E144: 2017-05-17 | F144: 3274.647705 | G144: 0.52 | H144: 7.51 | I144: 22.7 | J144: 0.14 | K144: 7.55 | L144: 22.8 | S144: 14.9 | T144: 1.27 | U144: 7.6 | V144: 22.7
A145: 0 | B145: 0 | C145: 5 | D145: 5 | E145: 2017-05-18 | F145: 3775.262985 | G145: 0.33 | H145: 7.36 | I145: 22.8 | J145: 0.21 | K145: 7.36 | L145: 22.9 | S145: 12.6 | T145: 1.47 | U145: 7.4 | V145: 22.8
A146: 0 | B146: 0 | C146: 5 | D146: 5 | E146: 2017-05-19 | F146: 3371.372901 | G146: 0.4 | H146: 7.32 | I146: 22.3 | J146: 0.19 | K146: 7.48 | L146: 23 | S146: 14.9 | T146: 1.44 | U146: 7.4 | V146: 22.6
A147: 0 | B147: 0 | C147: 5 | D147: 5 | E147: 2017-05-20 | F147: 4281.000811 | G147: 0.3 | H147: 7.37 | I147: 22.5 | J147: 0.37 | K147: 7.43 | L147: 22.9 | S147: 11.1 | T147: 1.5 | U147: 7.4 | V147: 23.1
A148: 0 | B148: 0 | C148: 5 | D148: 5 | E148: 2017-05-21 | F148: 3872.630841 | G148: 0.48 | H148: 7.34 | I148: 23.4 | J148: 0.27 | K148: 7.35 | L148: 23.5 | S148: 13.1 | T148: 1.46 | U148: 7.4 | V148: 23.3
A149: 0 | B149: 0 | C149: 5 | D149: 5 | E149: 2017-05-22 | F149: 3587.308337 | G149: 0.56 | H149: 7.38 | I149: 24.6 | J149: 0.39 | K149: 7.5 | L149: 24.2 | S149: 11 | T149: 1.2 | U149: 7.4 | V149: 24.3
A150: 0 | B150: 0 | C150: 5 | D150: 5 | E150: 2017-05-23 | F150: 3766.844331 | G150: 0.27 | H150: 7.42 | I150: 24.6 | J150: 0.13 | K150: 7.42 | L150: 24.4 | S150: 11.3 | T150: 1.2 | U150: 7.4 | V150: 24
A151: 0 | B151: 0 | C151: 5 | D151: 5 | E151: 2017-05-24 | F151: 3763.916874 | G151: 0.68 | H151: 7.46 | I151: 23.5 | J151: 0.29 | K151: 7.43 | L151: 23.9 | S151: 11.7 | T151: 1.2 | U151: 7.5 | V151: 23.9
A152: 0 | B152: 0 | C152: 5 | D152: 5 | E152: 2017-05-25 | F152: 3409.203935 | G152: 0.54 | H152: 7.44 | I152: 24 | J152: 0.18 | K152: 7.43 | L152: 24.2 | S152: 12.3 | T152: 1.2 | U152: 7.5 | V152: 24.4
A153: 0 | B153: 0 | C153: 5 | D153: 5 | E153: 2017-05-26 | F153: 4188.535733 | G153: 0.58 | H153: 7.43 | I153: 24.4 | J153: 0.29 | K153: 7.43 | L153: 24.3 | S153: 12.6 | T153: 1.16 | U153: 7.5 | V153: 24.5
A154: 0 | B154: 0 | C154: 5 | D154: 5 | E154: 2017-05-27 | F154: 4195.601935 | G154: 0.45 | H154: 7.41 | I154: 24.9 | J154: 0.2 | K154: 7.43 | L154: 25 | S154: 13.9 | T154: 1.15 | U154: 7.4 | V154: 25
A155: 0 | B155: 0 | C155: 5 | D155: 5 | E155: 2017-05-28 | F155: 3293.575993 | G155: 0.68 | H155: 7.35 | I155: 25 | J155: 0.28 | K155: 7.46 | L155: 24.4 | S155: 11.8 | T155: 1.2 | U155: 7.5 | V155: 24.4
A156: 0 | B156: 0 | C156: 5 | D156: 5 | E156: 2017-05-29 | F156: 3841.43073 | G156: 0.29 | H156: 7.33 | I156: 25.8 | J156: 0.08 | K156: 7.36 | L156: 25.7 | S156: 12.6 | T156: 1.17 | U156: 7.4 | V156: 25.5
A157: 0 | B157: 0 | C157: 5 | D157: 5 | E157: 2017-05-30 | F157: 4166.939747 | G157: 0.54 | H157: 7.49 | I157: 25 | J157: 0.36 | K157: 7.48 | L157: 25.9 | S157: 13.9 | T157: 1.19 | U157: 7.7 | V157: 25.8
A158: 0 | B158: 0 | C158: 5 | D158: 5 | E158: 2017-05-31 | F158: 3876.62516 | G158: 0.99 | H158: 7.58 | I158: 25.9 | J158: 0.36 | K158: 7.48 | L158: 26.2 | S158: 11.7 | T158: 1.15 | U158: 7.6 | V158: 26.3
A159: 0 | B159: 0 | C159: 6 | D159: 6 | E159: 2017-06-01 | F159: 3316.654273 | G159: 0.73 | H159: 7.42 | I159: 25.8 | J159: 0.48 | K159: 7.35 | L159: 26.5 | S159: 10.5 | T159: 1.06 | U159: 7.5 | V159: 26.6
A160: 0 | B160: 0 | C160: 6 | D160: 6 | E160: 2017-06-02 | F160: 3498.916841 | G160: 0.3 | H160: 7.42 | I160: 25.6 | J160: 0.41 | K160: 7.39 | L160: 26 | S160: 10.7 | T160: 1.12 | U160: 7.4 | V160: 25.8
A161: 0 | B161: 0 | C161: 6 | D161: 6 | E161: 2017-06-03 | F161: 3716.536242 | G161: 0.2 | H161: 7.39 | I161: 25.7 | J161: 0.21 | K161: 7.39 | L161: 25.6 | S161: 10.9 | T161: 1.15 | U161: 7.4 | V161: 25.6
A162: 0 | B162: 0 | C162: 6 | D162: 6 | E162: 2017-06-04 | F162: 3784.321308 | G162: 0.4 | H162: 7.43 | I162: 25.2 | J162: 0.24 | K162: 7.36 | L162: 25.3 | S162: 13.4 | T162: 1.29 | U162: 7.4 | V162: 25.2
A163: 0 | B163: 0 | C163: 6 | D163: 6 | E163: 2017-06-05 | F163: 3841.668934 | G163: 1.51 | H163: 7.36 | I163: 27.6 | J163: 0.62 | K163: 7.06 | L163: 26.7 | S163: 9.6 | T163: 1.13 | U163: 7.5 | V163: 25.9
A164: 0 | B164: 0 | C164: 6 | D164: 6 | E164: 2017-06-06 | F164: 3765.213892 | G164: 0.74 | H164: 7.32 | I164: 25.6 | J164: 0.34 | K164: 7.39 | L164: 26.3 | S164: 11.4 | T164: 1.12 | U164: 7.4 | V164: 25.8
A165: 0 | B165: 0 | C165: 6 | D165: 6 | E165: 2017-06-07 | F165: 3878.046986 | G165: 0.78 | H165: 7.48 | I165: 25.8 | J165: 0.36 | K165: 7.41 | L165: 26.3 | S165: 11 | T165: 1.15 | U165: 7.6 | V165: 26.2
A166: 0 | B166: 0 | C166: 6 | D166: 6 | E166: 2017-06-08 | F166: 3479.706513 | G166: 0.85 | H166: 7.75 | I166: 23.6 | J166: 0.15 | K166: 7.4 | L166: 26.4 | S166: 14.5 | T166: 1.07 | U166: 7.6 | V166: 26.2
A167: 0 | B167: 0 | C167: 6 | D167: 6 | E167: 2017-06-09 | F167: 3826.857956 | G167: 0.18 | H167: 7.48 | I167: 25.8 | J167: 0.32 | K167: 7.53 | L167: 26 | S167: 11.8 | T167: 1.06 | U167: 7.5 | V167: 26.4
A168: 0 | B168: 0 | C168: 6 | D168: 6 | E168: 2017-06-10 | F168: 3290.363771 | G168: 0.85 | H168: 7.69 | I168: 26 | J168: 0.39 | K168: 7.54 | L168: 26.1 | S168: 10.6 | T168: 1.18 | U168: 7.6 | V168: 26.3
A169: 0 | B169: 0 | C169: 6 | D169: 6 | E169: 2017-06-11 | F169: 3723.340714 | G169: 1.112 | H169: 7.54 | I169: 26.5 | J169: 0.39 | K169: 7.44 | L169: 26.4 | S169: 10.9 | T169: 1.21 | U169: 7.5 | V169: 26.4
A170: 0 | B170: 0 | C170: 6 | D170: 6 | E170: 2017-06-12 | F170: 3885.865238 | G170: 1.35 | H170: 7.44 | I170: 26.5 | J170: 0.34 | K170: 7.46 | L170: 26.6 | S170: 11.9 | T170: 1.2 | U170: 7.5 | V170: 26.6
A171: 0 | B171: 0 | C171: 6 | D171: 6 | E171: 2017-06-13 | F171: 4013.03365 | G171: 0.76 | H171: 7.36 | I171: 26.9 | J171: 0.13 | K171: 7.41 | L171: 26.9 | S171: 12.6 | T171: 1.18 | U171: 7.4 | V171: 26.2
A172: 0 | B172: 0 | C172: 6 | D172: 6 | E172: 2017-06-14 | F172: 3593.913254 | G172: 1.38 | H172: 7.4 | I172: 26.5 | J172: 0.63 | K172: 7.42 | L172: 26.6 | S172: 12.6 | T172: 1.3 | U172: 7.4 | V172: 26.5
A173: 0 | B173: 0 | C173: 6 | D173: 6 | E173: 2017-06-15 | F173: 4094.429163 | G173: 1.3 | H173: 7.57 | I173: 27 | J173: 0.51 | K173: 7.52 | L173: 27 | S173: 10.4 | T173: 1.5 | U173: 7.5 | V173: 26.9
A174: 0 | B174: 0 | C174: 6 | D174: 6 | E174: 2017-06-16 | F174: 3446.140599 | G174: 0.7 | H174: 7.41 | I174: 26.9 | J174: 0.4 | K174: 7.54 | L174: 26.8 | S174: 12.9 | T174: 1.4 | U174: 7.5 | V174: 26.9
A175: 0 | B175: 0 | C175: 6 | D175: 6 | E175: 2017-06-17 | F175: 3304.19282 | G175: 1.5 | H175: 7.41 | I175: 26.8 | J175: 0.4 | K175: 7.54 | L175: 27.1 | S175: 13.6 | T175: 1.4 | U175: 7.4 | V175: 26.8
A176: 0 | B176: 0 | C176: 6 | D176: 6 | E176: 2017-06-18 | F176: 4231.831667 | G176: 1.09 | H176: 7.52 | I176: 26.7 | J176: 0.58 | K176: 7.48 | L176: 26.8 | S176: 14.8 | T176: 1.39 | U176: 7.5 | V176: 27.8
A177: 0 | B177: 0 | C177: 6 | D177: 6 | E177: 2017-06-19 | F177: 4139.680662 | G177: 0.96 | H177: 7.59 | I177: 27.6 | J177: 0.54 | K177: 7.52 | L177: 27.4 | S177: 10.7 | T177: 1.33 | U177: 7.6 | V177: 27
A178: 0 | B178: 0 | C178: 6 | D178: 6 | E178: 2017-06-20 | F178: 3312.73678 | G178: 0.66 | H178: 7.52 | I178: 26.8 | J178: 0.21 | K178: 7.5 | L178: 27 | S178: 15.1 | T178: 1.3 | U178: 7.6 | V178: 27.4
A179: 0 | B179: 0 | C179: 6 | D179: 6 | E179: 2017-06-21 | F179: 3435.407781 | G179: 0.3 | H179: 7.45 | I179: 27.3 | J179: 0.34 | K179: 7.47 | L179: 27.6 | S179: 14.8 | T179: 1.33 | U179: 7.5 | V179: 27.5
A180: 0 | B180: 0 | C180: 6 | D180: 6 | E180: 2017-06-22 | F180: 3281.043402 | G180: 0.48 | H180: 7.59 | I180: 27.8 | J180: 0.23 | K180: 7.54 | L180: 27.8 | S180: 12.5 | T180: 1.58 | U180: 7.5 | V180: 27.3
A181: 0 | B181: 0 | C181: 6 | D181: 6 | E181: 2017-06-23 | F181: 4005.095594 | G181: 0.29 | H181: 7.42 | I181: 27.5 | J181: 0.15 | K181: 7.44 | L181: 27.6 | S181: 12.2 | T181: 1.68 | U181: 7.4 | V181: 27.4
A182: 0 | B182: 0 | C182: 6 | D182: 6 | E182: 2017-06-24 | F182: 3312.419353 | G182: 0.81 | H182: 7.29 | I182: 27.1 | J182: 0.09 | K182: 7.39 | L182: 22.5 | S182: 16.1 | T182: 1.73 | U182: 7.5 | V182: 27.4
A183: 0 | B183: 0 | C183: 6 | D183: 6 | E183: 2017-06-25 | F183: 3994.0154 | G183: 0.9 | H183: 7.36 | I183: 27.8 | J183: 0.18 | K183: 7.41 | L183: 28.1 | S183: 13.3 | T183: 1.62 | U183: 7.4 | V183: 27.8
A184: 0 | B184: 0 | C184: 6 | D184: 6 | E184: 2017-06-26 | F184: 3950.341461 | G184: 1.36 | H184: 7.55 | I184: 27.5 | J184: 0.3 | K184: 7.5 | L184: 28 | S184: 12.6 | T184: 1.76 | U184: 7.4 | V184: 27.8
A185: 0 | B185: 0 | C185: 6 | D185: 6 | E185: 2017-06-27 | F185: 3912.600455 | G185: 1.05 | H185: 7.5 | I185: 27.4 | J185: 0.29 | K185: 7.43 | L185: 28.1 | S185: 13.5 | T185: 1.62 | U185: 7.4 | V185: 28.1
A186: 0 | B186: 0 | C186: 6 | D186: 6 | E186: 2017-06-28 | F186: 3931.778304 | G186: 1.05 | H186: 7.54 | I186: 27 | J186: 0.27 | K186: 7.32 | L186: 28.1 | S186: 13.5 | T186: 1.65 | U186: 7.4 | V186: 27.9
A187: 0 | B187: 0 | C187: 6 | D187: 6 | E187: 2017-06-29 | F187: 3919.008908 | G187: 1.44 | H187: 7.49 | I187: 28.4 | J187: 0.33 | K187: 7.44 | L187: 28.2 | S187: 12 | T187: 1.62 | U187: 7.4 | V187: 27.5
A188: 0 | B188: 0 | C188: 6 | D188: 6 | E188: 2017-06-30 | F188: 3521.548192 | G188: 1.02 | H188: 7.47 | I188: 27.4 | J188: 0.56 | K188: 7.4 | L188: 28.2 | S188: 14 | T188: 1.64 | U188: 7.4 | V188: 27.6
A189: 0 | B189: 0 | C189: 7 | D189: 7 | E189: 2017-07-01 | F189: 3288.816476 | G189: 1.04 | H189: 7.43 | I189: 28 | J189: 0.2 | K189: 7.41 | L189: 27.8 | S189: 12 | T189: 0.66 | U189: 7.4 | V189: 27.9
A190: 0 | B190: 0 | C190: 7 | D190: 7 | E190: 2017-07-02 | F190: 4096.553961 | G190: 3.2 | H190: 7.42 | I190: 27.6 | J190: 1.441 | K190: 7.41 | L190: 27.5 | S190: 9.4 | T190: 0.86 | U190: 7.4 | V190: 27.7
A191: 0 | B191: 0 | C191: 7 | D191: 7 | E191: 2017-07-03 | F191: 3798.052197 | G191: 1.26 | H191: 7.38 | I191: 27.9 | J191: 0.55 | K191: 7.42 | L191: 27.8 | S191: 13.2 | T191: 1.56 | U191: 7.4 | V191: 27.9
A192: 0 | B192: 0 | C192: 7 | D192: 7 | E192: 2017-07-04 | F192: 3321.19197 | G192: 1.24 | H192: 7.37 | I192: 27.4 | J192: 0.57 | K192: 7.39 | L192: 27.9 | S192: 10.8 | T192: 1.66 | U192: 7.4 | V192: 27.7
A193: 0 | B193: 0 | C193: 7 | D193: 7 | E193: 2017-07-05 | F193: 3682.820416 | G193: 0.5 | H193: 7.92 | I193: 27.7 | J193: 0.18 | K193: 7.36 | L193: 27.9 | S193: 13.7 | T193: 1.68 | U193: 7.4 | V193: 27.6
A194: 0 | B194: 0 | C194: 7 | D194: 7 | E194: 2017-07-06 | F194: 4137.767977 | G194: 1.5 | H194: 7.37 | I194: 27.2 | J194: 0.59 | K194: 7.33 | L194: 27.6 | S194: 11.4 | T194: 1.7 | U194: 7.4 | V194: 27.2
A195: 0 | B195: 0 | C195: 7 | D195: 7 | E195: 2017-07-07 | F195: 4244.295677 | G195: 0.59 | H195: 7.47 | I195: 26.5 | J195: 0.22 | K195: 7.44 | L195: 27.5 | S195: 12.1 | T195: 1.69 | U195: 7.4 | V195: 27.2
A196: 0 | B196: 0 | C196: 7 | D196: 7 | E196: 2017-07-08 | F196: 4074.825876 | G196: 0.51 | H196: 7.46 | I196: 26.9 | J196: 0.23 | K196: 7.47 | L196: 27.8 | S196: 12.6 | T196: 1.7 | U196: 7.4 | V196: 27.6
A197: 0 | B197: 0 | C197: 7 | D197: 7 | E197: 2017-07-09 | F197: 3558.245573 | G197: 0.74 | H197: 7.34 | I197: 27 | J197: 0.59 | K197: 7.35 | L197: 27 | S197: 11.7 | T197: 1.61 | U197: 7.3 | V197: 27.7
A198: 0 | B198: 0 | C198: 7 | D198: 7 | E198: 2017-07-10 | F198: 3984.160425 | G198: 0.73 | H198: 7.49 | I198: 28.2 | J198: 0.41 | K198: 7.51 | L198: 28.1 | S198: 13.4 | T198: 1.51 | U198: 7.4 | V198: 27.8
A199: 0 | B199: 0 | C199: 7 | D199: 7 | E199: 2017-07-11 | F199: 3282.04709 | G199: 1.06 | H199: 7.58 | I199: 27.9 | J199: 0.21 | K199: 7.42 | L199: 27.9 | S199: 13.3 | T199: 1.7 | U199: 7.4 | V199: 27.9
A200: 0 | B200: 0 | C200: 7 | D200: 7 | E200: 2017-07-12 | F200: 4174.873195 | G200: 1.12 | H200: 7.34 | I200: 27.6 | J200: 0.53 | K200: 7.46 | L200: 27.6 | S200: 13.9 | T200: 1.53 | U200: 7.4 | V200: 27.6
A201: 0 | B201: =IF(MONTH(E201)=2,"feb",) -> 0 | C201: =MONTH(E201) -> 7 | D201: 7 | E201: 2017-07-13 | F201: 3899.092782 | G201: 1.13 | H201: 7.34 | I201: 27.5 | J201: 0.53 | K201: 7.35 | L201: 27.9 | S201: 14.3 | T201: 1.7 | U201: 7.4 | V201: 27.8
... 172 more rows

Sheet MonthDist (hidden)
A1: MONTH | B1: RatioAvg | C1: RatioMin | D1: RatioMax | E1: InactAvg | F1: InactMin | G1: InactMax
A2: =MonthStart -> 2017-12-01 | B2: =AVERAGE(MonthPlotOne) -> 4.164468293 | C2: =MIN(MonthPlotOne) -> 2.266055494 | D2: =MAX(MonthPlotOne) -> 5.922243159 | E2: =AVERAGE(MonthPlotTwo) -> 4.164468293 | F2: =MIN(MonthPlotTwo) -> 2.266055494 | G2: =MAX(MonthPlotTwo) -> 5.922243159
A5: Monthly Data
C6: Segment 1 | F6: Segment 2 | I6: Segment 3 | L6: Segment 4 | O6: Segment 5
A7: Date | B7: Flow | C7: Residual | D7: pH | E7: Temp. | F7: Residual | G7: pH | H7: Temp. | I7: Residual | J7: pH | K7: Temp. | L7: Residual | M7: pH | N7: Temp. | O7: Depth | P7: Residual | Q7: pH | R7: Temp. | U7: Seg1 CT-M | V7: Seg1 CT-R | W7: Seg1 Ratio | X7: Seg2 CT-M | Y7: Seg2 CT-R | Z7: Seg2 Ratio | AA7: Seg3 CT-M | AB7: Seg3 CT-R | AC7: Seg3 Ratio | AD7: Seg4 CT M | AE7: Seg4 CT R | AF7: Seg4 Ratio | AG7: Seg5 CT M | AH7: Seg5 CT R | AI7: Seg5 Ratio | AJ7: Total Ratio | AK7: Total Inact | AM7: Total Ratio | AN7: Total Inact
B8: gpm | C8: mg/L | E8: C | F8: mg/L | H8: C | I8: mg/L | K8: C | L8: mg/L | N8: C | O8: ft | P8: mg/L | R8: C | U8: mg/L-min | V8: mg/L-min | W8: M/R | X8: mg/L-min | Y8: mg/L-min | Z8: M/R | AA8: mg/L-min | AB8: mg/L-min | AC8: M/R | AD8: mg/L-min | AE8: mg/L-min | AF8: M/R | AG8: mg/L-min | AH8: mg/L-min | AI8: M/R | AJ8: M/R | AK8: Log | AM8: M/R | AN8: Log
A9: 2017-12-01 | B9: 3426.707287 | C9: 0.87 | D9: 7.59 | E9: 6.2 | F9: 0.61 | G9: 7.55 | H9: 6 | O9: 13.9 | P9: 1.06 | Q9: 7.7 | R9: 5.4 | U9: =IF(B9="",,Seg1Vol*Seg1Fac/B9*C9) -> 0 | V9: =Target*0.2828*D9^2.69*C9^0.15*0.933^(E9-5) -> 0 | W9: =IF(V9=0,,U9/V9) -> 0 | X9: =IF(B9="",,Seg2Vol*Seg2Fac/B9*F9) -> 0 | Y9: =Target*0.2828*G9^2.69*F9^0.15*0.933^(H9-5) -> 0 | Z9: =IF(Y9=0,,X9/Y9) -> 0 | AA9: =IF(B9="",,Seg3Vol*Seg3Fac/B9*I9) -> 0 | AB9: =Target*0.2828*J9^2.69*I9^0.15*0.933^(K9-5) -> 0 | AC9: =IF(AB9=0,,AA9/AB9) -> 0 | AD9: =IF(B9="",,Seg4Vol*Seg4Fac/B9*L9) -> 0 | AE9: =Target*0.2828*M9^2.69*L9^0.15*0.933^(N9-5) -> 0 | AF9: =IF(AE9=0,,AD9/AE9) -> 0 | AG9: =IF(B9="",,Seg5Vol*O9*Seg5Fac/B9*P9) -> 0 | AH9: =Target*0.2828*Q9^2.69*P9^0.15*0.933^(R9-5) -> 0 | AI9: =IF(AH9=0,,AG9/AH9) -> 0 | AJ9: =W9+Z9+AC9+AF9+AI9 -> 0 | AK9: =AJ9*Target -> 0 | AM9: 5.500410589 | AN9: 5.500410589
A10: 2017-12-02 | B10: 3687.066666 | C10: 1.02 | D10: 7.62 | E10: 6 | F10: 1.01 | G10: 7.54 | H10: 5.8 | O10: 14.9 | P10: 1.11 | Q10: 7.7 | R10: 5.4 | U10: =IF(B10="",,Seg1Vol*Seg1Fac/B10*C10) -> 0 | V10: =Target*0.2828*D10^2.69*C10^0.15*0.933^(E10-5) -> 0 | W10: =IF(V10=0,,U10/V10) -> 0 | X10: =IF(B10="",,Seg2Vol*Seg2Fac/B10*F10) -> 0 | Y10: =Target*0.2828*G10^2.69*F10^0.15*0.933^(H10-5) -> 0 | Z10: =IF(Y10=0,,X10/Y10) -> 0 | AA10: =IF(B10="",,Seg3Vol*Seg3Fac/B10*I10) -> 0 | AB10: =Target*0.2828*J10^2.69*I10^0.15*0.933^(K10-5) -> 0 | AC10: =IF(AB10=0,,AA10/AB10) -> 0 | AD10: =IF(B10="",,Seg4Vol*Seg4Fac/B10*L10) -> 0 | AE10: =Target*0.2828*M10^2.69*L10^0.15*0.933^(N10-5) -> 0 | AF10: =IF(AE10=0,,AD10/AE10) -> 0 | AG10: =IF(B10="",,Seg5Vol*O10*Seg5Fac/B10*P10) -> 0 | AH10: =Target*0.2828*Q10^2.69*P10^0.15*0.933^(R10-5) -> 0 | AI10: =IF(AH10=0,,AG10/AH10) -> 0 | AJ10: 0 | AK10: =AJ10*Target -> 0 | AM10: 5.72160517 | AN10: 5.72160517
A11: 2017-12-03 | B11: 3940.306619 | C11: 1.1 | D11: 7.71 | E11: 5.1 | F11: 0.8 | G11: 7.74 | H11: 6 | O11: 12.8 | P11: 1.2 | Q11: 7.7 | R11: 5.6 | U11: 0 | V11: 0 | W11: 0 | X11: 0 | Y11: 0 | Z11: 0 | AA11: 0 | AB11: 0 | AC11: 0 | AD11: 0 | AE11: 0 | AF11: 0 | AG11: 0 | AH11: 0 | AI11: 0 | AJ11: 0 | AK11: 0 | AM11: 5.012922791 | AN11: 5.012922791
A12: 2017-12-04 | B12: 3292.774896 | C12: 1.7 | D12: 8.47 | E12: 6.2 | F12: 1.1 | G12: 8.15 | H12: 6 | O12: 13.4 | P12: 1.2 | Q12: 8.2 | R12: 6.3 | U12: 0 | V12: 0 | W12: 0 | X12: 0 | Y12: 0 | Z12: 0 | AA12: 0 | AB12: 0 | AC12: 0 | AD12: 0 | AE12: 0 | AF12: 0 | AG12: 0 | AH12: 0 | AI12: 0 | AJ12: 0 | AK12: 0 | AM12: 5.922243159 | AN12: 5.922243159
A13: 2017-12-05 | B13: 3369.786744 | C13: 0.9 | D13: 7.59 | E13: 5.7 | F13: 0.69 | G13: 7.39 | H13: 5.9 | O13: 13.5 | P13: 1.06 | Q13: 7.7 | R13: 5.7 | U13: 0 | V13: 0 | W13: 0 | X13: 0 | Y13: 0 | Z13: 0 | AA13: 0 | AB13: 0 | AC13: 0 | AD13: 0 | AE13: 0 | AF13: 0 | AG13: 0 | AH13: 0 | AI13: 0 | AJ13: 0 | AK13: 0 | AM13: 5.559118861 | AN13: 5.559118861
A14: 2017-12-06 | B14: 4348.339241 | C14: 0.8 | D14: 7.6 | E14: 6.4 | F14: 0.68 | G14: 7.56 | H14: 6 | O14: 14.8 | P14: 1 | Q14: 7.7 | R14: 5.6 | U14: 0 | V14: 0 | W14: 0 | X14: 0 | Y14: 0 | Z14: 0 | AA14: 0 | AB14: 0 | AC14: 0 | AD14: 0 | AE14: 0 | AF14: 0 | AG14: 0 | AH14: 0 | AI14: 0 | AJ14: 0 | AK14: 0 | AM14: 4.383960652 | AN14: 4.383960652
A15: 2017-12-07 | B15: 3529.334066 | C15: 1.01 | D15: 7.64 | E15: 6 | F15: 0.82 | G15: 7.61 | H15: 5.8 | O15: 14.1 | P15: 0.92 | Q15: 7.6 | R15: 5.5 | U15: 0 | V15: 0 | W15: 0 | X15: 0 | Y15: 0 | Z15: 0 | AA15: 0 | AB15: 0 | AC15: 0 | AD15: 0 | AE15: 0 | AF15: 0 | AG15: 0 | AH15: 0 | AI15: 0 | AJ15: 0 | AK15: 0 | AM15: 5.192406229 | AN15: 5.192406229
A16: 2017-12-08 | B16: 3287.879984 | C16: 0.1 | D16: 7.47 | E16: 5.5 | F16: 0.29 | G16: 7.57 | H16: 5.6 | O16: 15.3 | P16: 1.17 | Q16: 7.6 | R16: 4.2 | U16: 0 | V16: 0 | W16: 0 | X16: 0 | Y16: 0 | Z16: 0 | AA16: 0 | AB16: 0 | AC16: 0 | AD16: 0 | AE16: 0 | AF16: 0 | AG16: 0 | AH16: 0 | AI16: 0 | AJ16: 0 | AK16: 0 | AM16: 5.417317259 | AN16: 5.417317259
A17: 2017-12-09 | B17: 3735.229929 | C17: 0.6 | D17: 7.51 | E17: 5.2 | F17: 0.35 | G17: 7.47 | H17: 5.5 | O17: 14.4 | P17: 1.2 | Q17: 7.5 | R17: 4.2 | U17: 0 | V17: 0 | W17: 0 | X17: 0 | Y17: 0 | Z17: 0 | AA17: 0 | AB17: 0 | AC17: 0 | AD17: 0 | AE17: 0 | AF17: 0 | AG17: 0 | AH17: 0 | AI17: 0 | AJ17: 0 | AK17: 0 | AM17: 5.285674291 | AN17: 5.285674291
A18: 2017-12-10 | B18: 3981.722273 | C18: 0.3 | D18: 7.69 | E18: 5.4 | F18: 0.24 | G18: 7.62 | H18: 5.1 | O18: 11.9 | P18: 0.96 | Q18: 7.7 | R18: 5 | U18: 0 | V18: 0 | W18: 0 | X18: 0 | Y18: 0 | Z18: 0 | AA18: 0 | AB18: 0 | AC18: 0 | AD18: 0 | AE18: 0 | AF18: 0 | AG18: 0 | AH18: 0 | AI18: 0 | AJ18: 0 | AK18: 0 | AM18: 3.245046122 | AN18: 3.245046122
A19: 2017-12-11 | B19: 3967.401851 | C19: 0.42 | D19: 7.47 | E19: 5.8 | F19: 0.36 | G19: 7.54 | H19: 5.6 | O19: 8.5 | P19: 0.78 | Q19: 7.7 | R19: 5 | U19: 0 | V19: 0 | W19: 0 | X19: 0 | Y19: 0 | Z19: 0 | AA19: 0 | AB19: 0 | AC19: 0 | AD19: 0 | AE19: 0 | AF19: 0 | AG19: 0 | AH19: 0 | AI19: 0 | AJ19: 0 | AK19: 0 | AM19: 2.266055494 | AN19: 2.266055494
A20: 2017-12-12 | B20: 3674.562437 | C20: 0.32 | D20: 7.62 | E20: 5.6 | F20: 0.17 | G20: 7.57 | H20: 5.5 | O20: 10.4 | P20: 0.69 | Q20: 7.5 | R20: 5.1 | U20: 0 | V20: 0 | W20: 0 | X20: 0 | Y20: 0 | Z20: 0 | AA20: 0 | AB20: 0 | AC20: 0 | AD20: 0 | AE20: 0 | AF20: 0 | AG20: 0 | AH20: 0 | AI20: 0 | AJ20: 0 | AK20: 0 | AM20: 2.65056161 | AN20: 2.65056161
A21: 2017-12-13 | B21: 4063.570157 | C21: 0.1 | D21: 7.57 | E21: 6 | F21: 0.12 | G21: 7.53 | H21: 6.4 | O21: 13.4 | P21: 0.98 | Q21: 7.5 | R21: 5.9 | U21: 0 | V21: 0 | W21: 0 | X21: 0 | Y21: 0 | Z21: 0 | AA21: 0 | AB21: 0 | AC21: 0 | AD21: 0 | AE21: 0 | AF21: 0 | AG21: 0 | AH21: 0 | AI21: 0 | AJ21: 0 | AK21: 0 | AM21: 3.858277729 | AN21: 3.858277729
A22: 2017-12-14 | B22: 4320.94111 | C22: 0.62 | D22: 7.61 | E22: 5.4 | F22: 0.28 | G22: 7.54 | H22: 5.3 | O22: 11.7 | P22: 0.97 | Q22: 7.5 | R22: 5.2 | U22: 0 | V22: 0 | W22: 0 | X22: 0 | Y22: 0 | Z22: 0 | AA22: 0 | AB22: 0 | AC22: 0 | AD22: 0 | AE22: 0 | AF22: 0 | AG22: 0 | AH22: 0 | AI22: 0 | AJ22: 0 | AK22: 0 | AM22: 3.487235183 | AN22: 3.487235183
A23: 2017-12-15 | B23: 3883.690482 | C23: 0.43 | D23: 7.77 | E23: 5.4 | F23: 0.13 | G23: 7.47 | H23: 6 | O23: 12.6 | P23: 0.87 | Q23: 7.6 | R23: 5 | U23: 0 | V23: 0 | W23: 0 | X23: 0 | Y23: 0 | Z23: 0 | AA23: 0 | AB23: 0 | AC23: 0 | AD23: 0 | AE23: 0 | AF23: 0 | AG23: 0 | AH23: 0 | AI23: 0 | AJ23: 0 | AK23: 0 | AM23: 3.456972382 | AN23: 3.456972382
A24: 2017-12-16 | B24: 3688.28213 | C24: 0.28 | D24: 7.5 | E24: 6.9 | F24: 0.16 | G24: 7.51 | H24: 5.4 | O24: 14 | P24: 0.94 | Q24: 7.6 | R24: 5.5 | U24: 0 | V24: 0 | W24: 0 | X24: 0 | Y24: 0 | Z24: 0 | AA24: 0 | AB24: 0 | AC24: 0 | AD24: 0 | AE24: 0 | AF24: 0 | AG24: 0 | AH24: 0 | AI24: 0 | AJ24: 0 | AK24: 0 | AM24: 4.287198552 | AN24: 4.287198552
A25: 2017-12-17 | B25: 3957.428019 | C25: 0.35 | D25: 7.62 | E25: 5.7 | F25: 0.17 | G25: 7.49 | H25: 5.7 | O25: 14.7 | P25: 1 | Q25: 7.5 | R25: 5.7 | U25: 0 | V25: 0 | W25: 0 | X25: 0 | Y25: 0 | Z25: 0 | AA25: 0 | AB25: 0 | AC25: 0 | AD25: 0 | AE25: 0 | AF25: 0 | AG25: 0 | AH25: 0 | AI25: 0 | AJ25: 0 | AK25: 0 | AM25: 4.608290517 | AN25: 4.608290517
A26: 2017-12-18 | B26: 4095.720612 | C26: 0.33 | D26: 7.65 | E26: 6.5 | F26: 0.17 | G26: 7.62 | H26: 6.7 | O26: 13.8 | P26: 0.93 | Q26: 7.6 | R26: 6.1 | U26: 0 | V26: 0 | W26: 0 | X26: 0 | Y26: 0 | Z26: 0 | AA26: 0 | AB26: 0 | AC26: 0 | AD26: 0 | AE26: 0 | AF26: 0 | AG26: 0 | AH26: 0 | AI26: 0 | AJ26: 0 | AK26: 0 | AM26: 3.948094092 | AN26: 3.948094092
A27: 2017-12-19 | B27: 4111.108414 | C27: 0.5 | D27: 7.64 | E27: 5.4 | F27: 0.2 | G27: 7.63 | H27: 6.5 | O27: 12.3 | P27: 0.94 | Q27: 7.6 | R27: 5 | U27: 0 | V27: 0 | W27: 0 | X27: 0 | Y27: 0 | Z27: 0 | AA27: 0 | AB27: 0 | AC27: 0 | AD27: 0 | AE27: 0 | AF27: 0 | AG27: 0 | AH27: 0 | AI27: 0 | AJ27: 0 | AK27: 0 | AM27: 3.472848713 | AN27: 3.472848713
A28: 2017-12-20 | B28: 4063.937889 | C28: 0.55 | D28: 7.54 | E28: 5.5 | F28: 0.34 | G28: 7.57 | H28: 5.4 | O28: 14 | P28: 0.91 | Q28: 8 | R28: 5.1 | U28: 0 | V28: 0 | W28: 0 | X28: 0 | Y28: 0 | Z28: 0 | AA28: 0 | AB28: 0 | AC28: 0 | AD28: 0 | AE28: 0 | AF28: 0 | AG28: 0 | AH28: 0 | AI28: 0 | AJ28: 0 | AK28: 0 | AM28: 3.504640426 | AN28: 3.504640426
A29: 2017-12-21 | B29: 4277.852793 | C29: 0.3 | D29: 7.66 | E29: 5.9 | F29: 0.16 | G29: 7.53 | H29: 5.9 | O29: 14.2 | P29: 0.9 | Q29: 7.6 | R29: 6 | U29: 0 | V29: 0 | W29: 0 | X29: 0 | Y29: 0 | Z29: 0 | AA29: 0 | AB29: 0 | AC29: 0 | AD29: 0 | AE29: 0 | AF29: 0 | AG29: 0 | AH29: 0 | AI29: 0 | AJ29: 0 | AK29: 0 | AM29: 3.713640254 | AN29: 3.713640254
A30: 2017-12-22 | B30: 4126.601982 | C30: 0.69 | D30: 7.56 | E30: 5.6 | F30: 0.33 | G30: 7.51 | H30: 5.7 | O30: 12.4 | P30: 1 | Q30: 7.6 | R30: 5 | U30: 0 | V30: 0 | W30: 0 | X30: 0 | Y30: 0 | Z30: 0 | AA30: 0 | AB30: 0 | AC30: 0 | AD30: 0 | AE30: 0 | AF30: 0 | AG30: 0 | AH30: 0 | AI30: 0 | AJ30: 0 | AK30: 0 | AM30: 3.842355514 | AN30: 3.842355514
A31: 2017-12-23 | B31: 3647.033852 | C31: 0.34 | D31: 7.49 | E31: 5.8 | F31: 0.3 | G31: 7.46 | H31: 5.7 | O31: 12.6 | P31: 1 | Q31: 7.6 | R31: 5 | U31: 0 | V31: 0 | W31: 0 | X31: 0 | Y31: 0 | Z31: 0 | AA31: 0 | AB31: 0 | AC31: 0 | AD31: 0 | AE31: 0 | AF31: 0 | AG31: 0 | AH31: 0 | AI31: 0 | AJ31: 0 | AK31: 0 | AM31: 4.060875227 | AN31: 4.060875227
A32: 2017-12-24 | B32: 4200.607305 | C32: 0.38 | D32: 7.48 | E32: 5.7 | F32: 0.35 | G32: 7.44 | H32: 6.1 | O32: 13.3 | P32: 0.98 | Q32: 8 | R32: 5.1 | U32: 0 | V32: 0 | W32: 0 | X32: 0 | Y32: 0 | Z32: 0 | AA32: 0 | AB32: 0 | AC32: 0 | AD32: 0 | AE32: 0 | AF32: 0 | AG32: 0 | AH32: 0 | AI32: 0 | AJ32: 0 | AK32: 0 | AM32: 3.288400254 | AN32: 3.288400254
A33: 2017-12-25 | B33: 3850.81949 | C33: 0.4 | D33: 7.54 | E33: 6.3 | F33: 0.15 | G33: 7.47 | H33: 6.6 | O33: 15.8 | P33: 0.92 | Q33: 7.6 | R33: 4.5 | U33: 0 | V33: 0 | W33: 0 | X33: 0 | Y33: 0 | Z33: 0 | AA33: 0 | AB33: 0 | AC33: 0 | AD33: 0 | AE33: 0 | AF33: 0 | AG33: 0 | AH33: 0 | AI33: 0 | AJ33: 0 | AK33: 0 | AM33: 4.341863308 | AN33: 4.341863308
A34: 2017-12-26 | B34: 4080.361666 | C34: 0.43 | D34: 7.65 | E34: 6.1 | F34: 0.22 | G34: 7.55 | H34: 6.4 | O34: 14.3 | P34: 0.94 | Q34: 7.6 | R34: 4.6 | U34: 0 | V34: 0 | W34: 0 | X34: 0 | Y34: 0 | Z34: 0 | AA34: 0 | AB34: 0 | AC34: 0 | AD34: 0 | AE34: 0 | AF34: 0 | AG34: 0 | AH34: 0 | AI34: 0 | AJ34: 0 | AK34: 0 | AM34: 3.847279354 | AN34: 3.847279354
A35: 2017-12-27 | B35: 3663.58093 | C35: 0.49 | D35: 7.64 | E35: 5.7 | F35: 0.2 | G35: 7.5 | H35: 6.2 | O35: 13.1 | P35: 0.93 | Q35: 7.6 | R35: 4.7 | U35: 0 | V35: 0 | W35: 0 | X35: 0 | Y35: 0 | Z35: 0 | AA35: 0 | AB35: 0 | AC35: 0 | AD35: 0 | AE35: 0 | AF35: 0 | AG35: 0 | AH35: 0 | AI35: 0 | AJ35: 0 | AK35: 0 | AM35: 4.0108306 | AN35: 4.0108306
A36: 2017-12-28 | B36: 4314.566491 | C36: 0.43 | D36: 7.58 | E36: 6.6 | F36: 0.15 | G36: 7.47 | H36: 6.4 | O36: 14 | P36: 0.93 | Q36: 8 | R36: 5.1 | U36: 0 | V36: 0 | W36: 0 | X36: 0 | Y36: 0 | Z36: 0 | AA36: 0 | AB36: 0 | AC36: 0 | AD36: 0 | AE36: 0 | AF36: 0 | AG36: 0 | AH36: 0 | AI36: 0 | AJ36: 0 | AK36: 0 | AM36: 3.264822679 | AN36: 3.264822679
A37: 2017-12-29 | B37: 3686.072809 | C37: 0.4 | D37: 7.54 | E37: 6 | F37: 0.3 | G37: 7.59 | H37: 6.4 | O37: 16.5 | P37: 0.9 | Q37: 7.6 | R37: 4.4 | U37: 0 | V37: 0 | W37: 0 | X37: 0 | Y37: 0 | Z37: 0 | AA37: 0 | AB37: 0 | AC37: 0 | AD37: 0 | AE37: 0 | AF37: 0 | AG37: 0 | AH37: 0 | AI37: 0 | AJ37: 0 | AK37: 0 | AM37: 4.608329188 | AN37: 4.608329188
A38: 2017-12-30 | B38: 4299.545412 | C38: 0.4 | D38: 7.49 | E38: 5.8 | F38: 0.2 | G38: 7.48 | H38: 6.2 | O38: 14.6 | P38: 0.99 | Q38: 7.7 | R38: 4.7 | U38: 0 | V38: 0 | W38: 0 | X38: 0 | Y38: 0 | Z38: 0 | AA38: 0 | AB38: 0 | AC38: 0 | AD38: 0 | AE38: 0 | AF38: 0 | AG38: 0 | AH38: 0 | AI38: 0 | AJ38: =W38+Z38+AC38+AF38+AI38 -> 0 | AK38: 0 | AM38: 3.757044158 | AN38: 3.757044158
A39: 2017-12-31 | B39: 4193.765559 | C39: 0.32 | D39: 7.62 | E39: 6.2 | F39: 0.11 | G39: 7.5 | H39: 6.3 | O39: 13.5 | P39: 0.85 | Q39: 7.5 | R39: 5.9 | U39: 0 | V39: 0 | W39: 0 | X39: 0 | Y39: 0 | Z39: 0 | AA39: 0 | AB39: 0 | AC39: 0 | AD39: 0 | AE39: 0 | AF39: 0 | AG39: 0 | AH39: 0 | AI39: 0 | AJ39: =W39+Z39+AC39+AF39+AI39 -> 0 | AK39: 0 | AM39: 3.582196718 | AN39: 3.582196718
G42: =COUNT(Filter1) -> 31 | H42: =COUNT(Filter2) -> 31 | I42: =COUNT(Filter3) -> 0 | J42: =COUNT(Filter4) -> 0 | K42: =COUNT(Filter5) -> 0 | L42: =COUNT(Filter6) -> 0
